{"text_format":"3","workbook":"xlsx","n_sheets":4,"sheets":["Rezultātu izsekotājs","Jūsu rezultāti","Iestatījumi","Aprēķini"],"not_rendered":{"defined_names":3,"comments":1},"read":"whole","date_system":"1900"}

{"sheet":"Rezultātu izsekotājs","index":0,"n_rows":14,"n_cols":6,"rows_kept":14}
[null,"Ievadiet savus rezultātus šeit"]
[]
[null,null,"Mācību priekšmets","Tips","Apraksts","Rezultāts"]
[null,null,"Mūsdienu franču valoda","Mājasdarbi","Otrā Pasaules kara vēsture",{"v":0.8,"d":"80%"}]
[null,null,"Uzlabotā Java programmēšana","Semestra vidus pārbaudījums",null,{"v":0.75,"d":"75%"}]
[null,null,"Spāņu valoda","Mājasdarbi",null,{"v":0.5,"d":"50%"}]
[null,null,"Teorētiskā fizika","Mājasdarbi",null,{"v":0.95,"d":"95%"}]
[null,null,"Mūsdienu franču valoda","Mājasdarbi","Pirmā Pasaules kara vēsture",{"v":0.9,"d":"90%"}]
[null,null,"Mūsdienu franču valoda","Mājasdarbi","30.–41. lpp.",{"v":0.8,"d":"80%"}]
[null,null,"Kompozīcija","Eseja","Motivācijas vēstule",{"v":0.95,"d":"95%"}]
[null,null,"Matemātika 1","Mājasdarbi","21. un 26. lpp.",{"v":0.8,"d":"80%"}]
[null,null,"Matemātika 2","Mājasdarbi","15. un 18. lpp.",{"v":0.85,"d":"85%"}]
[null,null,"Matemātika 1","Mājasdarbi","34.–41. lpp.",{"v":0.8,"d":"80%"}]
[null,null,"Matemātika 2","Kontroldarbs",null,{"v":0.95,"d":"95%"}]

{"sheet":"Jūsu rezultāti","index":1,"n_rows":31,"n_cols":8,"rows_kept":31}
[null,"Jūsu rezultāti"]
[]
[null,null,"Kopā"]
[null,null,{"$f":"\"Stundas: \"&SUM(TabulaMācībuPriekšmeti[Kredītstundas])","v":"Stundas: 24"},{"$f":"AVERAGE(D7:D31)","v":{"v":0.8104761904761906,"d":"81%"}},{"$f":"AVERAGE(E7:E31)","v":{"v":2.7142857142857144,"d":"2.71"}},{"$f":"SUM(F7:F31)","v":{"v":2.625,"d":"2.63"}},{"$f":"IFERROR(HLOOKUP(D4,_1._GPA_kartēšana,2),\"\")","v":"B-"}]
[]
[null,null,"Mācību priekšmeti","%","Vidējā akadēmiskā atzīme","Vidējā svērtā akadēmiskā atzīme","Burts","Kopējie rezultāti"]
[null,null,{"$f":"Aprēķini!C6","v":"Mūsdienu franču valoda"},{"$f":"Aprēķini!AL6","v":{"v":0.8333333333333334,"d":"83%"}},{"$f":"Aprēķini!AM6","v":{"v":3,"d":"3.00"}},{"$f":"IFERROR(E7*Iestatījumi!D9/SUM(TabulaMācībuPriekšmeti[Kredītstundas]),\"\")","v":{"v":0.375,"d":"0.38"}},{"$f":"Aprēķini!AN6","v":"B"}]
[null,null,{"$f":"Aprēķini!C7","v":"Teorētiskā fizika"},{"$f":"Aprēķini!AL7","v":{"v":0.95,"d":"95%"}},{"$f":"Aprēķini!AM7","v":{"v":4,"d":"4.00"}},{"$f":"IFERROR(E8*Iestatījumi!D10/SUM(TabulaMācībuPriekšmeti[Kredītstundas]),\"\")","v":{"v":0.5,"d":"0.50"}},{"$f":"Aprēķini!AN7","v":"A"}]
[null,null,{"$f":"Aprēķini!C8","v":"Matemātika 1"},{"$f":"Aprēķini!AL8","v":{"v":0.8000000000000002,"d":"80%"}},{"$f":"Aprēķini!AM8","v":2.67},{"$f":"IFERROR(E9*Iestatījumi!D11/SUM(TabulaMācībuPriekšmeti[Kredītstundas]),\"\")","v":{"v":0.445,"d":"0.45"}},{"$f":"Aprēķini!AN8","v":"B-"}]
[null,null,{"$f":"Aprēķini!C9","v":"Matemātika 2"},{"$f":"Aprēķini!AL9","v":{"v":0.89,"d":"89%"}},{"$f":"Aprēķini!AM9","v":3.33},{"$f":"IFERROR(E10*Iestatījumi!D12/SUM(TabulaMācībuPriekšmeti[Kredītstundas]),\"\")","v":{"v":0.555,"d":"0.56"}},{"$f":"Aprēķini!AN9","v":"B+"}]
[null,null,{"$f":"Aprēķini!C10","v":"Uzlabotā Java programmēšana"},{"$f":"Aprēķini!AL10","v":{"v":0.7500000000000001,"d":"75%"}},{"$f":"Aprēķini!AM10","v":{"v":2,"d":"2.00"}},{"$f":"IFERROR(E11*Iestatījumi!D13/SUM(TabulaMācībuPriekšmeti[Kredītstundas]),\"\")","v":{"v":0.4166666666666667,"d":"0.42"}},{"$f":"Aprēķini!AN10","v":"C"}]
[null,null,{"$f":"Aprēķini!C11","v":"Spāņu valoda"},{"$f":"Aprēķini!AL11","v":{"v":0.5,"d":"50%"}},{"$f":"Aprēķini!AM11","v":{"v":0,"d":"0.00"}},{"$f":"IFERROR(E12*Iestatījumi!D14/SUM(TabulaMācībuPriekšmeti[Kredītstundas]),\"\")","v":{"v":0,"d":"0.00"}},{"$f":"Aprēķini!AN11","v":"F"}]
[null,null,{"$f":"Aprēķini!C12","v":"Kompozīcija"},{"$f":"Aprēķini!AL12","v":{"v":0.95,"d":"95%"}},{"$f":"Aprēķini!AM12","v":{"v":4,"d":"4.00"}},{"$f":"IFERROR(E13*Iestatījumi!D15/SUM(TabulaMācībuPriekšmeti[Kredītstundas]),\"\")","v":{"v":0.3333333333333333,"d":"0.33"}},{"$f":"Aprēķini!AN12","v":"A"}]
[null,null,{"$f":"Aprēķini!C13","v":""},{"$f":"Aprēķini!AL13","v":""},{"$f":"Aprēķini!AM13","v":""},{"$f":"IFERROR(E14*Iestatījumi!D16/SUM(TabulaMācībuPriekšmeti[Kredītstundas]),\"\")","v":""},{"$f":"Aprēķini!AN13","v":""}]
[null,null,{"$f":"Aprēķini!C14","v":""},{"$f":"Aprēķini!AL14","v":""},{"$f":"Aprēķini!AM14","v":""},{"$f":"IFERROR(E15*Iestatījumi!D17/SUM(TabulaMācībuPriekšmeti[Kredītstundas]),\"\")","v":""},{"$f":"Aprēķini!AN14","v":""}]
[null,null,{"$f":"Aprēķini!C15","v":""},{"$f":"Aprēķini!AL15","v":""},{"$f":"Aprēķini!AM15","v":""},{"$f":"IFERROR(E16*Iestatījumi!D18/SUM(TabulaMācībuPriekšmeti[Kredītstundas]),\"\")","v":""},{"$f":"Aprēķini!AN15","v":""}]
[null,null,{"$f":"Aprēķini!C16","v":""},{"$f":"Aprēķini!AL16","v":""},{"$f":"Aprēķini!AM16","v":""},{"$f":"IFERROR(E17*Iestatījumi!D19/SUM(TabulaMācībuPriekšmeti[Kredītstundas]),\"\")","v":""},{"$f":"Aprēķini!AN16","v":""}]
[null,null,{"$f":"Aprēķini!C17","v":""},{"$f":"Aprēķini!AL17","v":""},{"$f":"Aprēķini!AM17","v":""},{"$f":"IFERROR(E18*Iestatījumi!D20/SUM(TabulaMācībuPriekšmeti[Kredītstundas]),\"\")","v":""},{"$f":"Aprēķini!AN17","v":""}]
[null,null,{"$f":"Aprēķini!C18","v":""},{"$f":"Aprēķini!AL18","v":""},{"$f":"Aprēķini!AM18","v":""},{"$f":"IFERROR(E19*Iestatījumi!D21/SUM(TabulaMācībuPriekšmeti[Kredītstundas]),\"\")","v":""},{"$f":"Aprēķini!AN18","v":""}]
[null,null,{"$f":"Aprēķini!C19","v":""},{"$f":"Aprēķini!AL19","v":""},{"$f":"Aprēķini!AM19","v":""},{"$f":"IFERROR(E20*Iestatījumi!D22/SUM(TabulaMācībuPriekšmeti[Kredītstundas]),\"\")","v":""},{"$f":"Aprēķini!AN19","v":""}]
[null,null,{"$f":"Aprēķini!C20","v":""},{"$f":"Aprēķini!AL20","v":""},{"$f":"Aprēķini!AM20","v":""},{"$f":"IFERROR(E21*Iestatījumi!D23/SUM(TabulaMācībuPriekšmeti[Kredītstundas]),\"\")","v":""},{"$f":"Aprēķini!AN20","v":""}]
[null,null,{"$f":"Aprēķini!C21","v":""},{"$f":"Aprēķini!AL21","v":""},{"$f":"Aprēķini!AM21","v":""},{"$f":"IFERROR(E22*Iestatījumi!D24/SUM(TabulaMācībuPriekšmeti[Kredītstundas]),\"\")","v":""},{"$f":"Aprēķini!AN21","v":""}]
[null,null,{"$f":"Aprēķini!C22","v":""},{"$f":"Aprēķini!AL22","v":""},{"$f":"Aprēķini!AM22","v":""},{"$f":"IFERROR(E23*Iestatījumi!D25/SUM(TabulaMācībuPriekšmeti[Kredītstundas]),\"\")","v":""},{"$f":"Aprēķini!AN22","v":""}]
[null,null,{"$f":"Aprēķini!C23","v":""},{"$f":"Aprēķini!AL23","v":""},{"$f":"Aprēķini!AM23","v":""},{"$f":"IFERROR(E24*Iestatījumi!D26/SUM(TabulaMācībuPriekšmeti[Kredītstundas]),\"\")","v":""},{"$f":"Aprēķini!AN23","v":""}]
[null,null,{"$f":"Aprēķini!C24","v":""},{"$f":"Aprēķini!AL24","v":""},{"$f":"Aprēķini!AM24","v":""},{"$f":"IFERROR(E25*Iestatījumi!D27/SUM(TabulaMācībuPriekšmeti[Kredītstundas]),\"\")","v":""},{"$f":"Aprēķini!AN24","v":""}]
[null,null,{"$f":"Aprēķini!C25","v":""},{"$f":"Aprēķini!AL25","v":""},{"$f":"Aprēķini!AM25","v":""},{"$f":"IFERROR(E26*Iestatījumi!D28/SUM(TabulaMācībuPriekšmeti[Kredītstundas]),\"\")","v":""},{"$f":"Aprēķini!AN25","v":""}]
[null,null,{"$f":"Aprēķini!C26","v":""},{"$f":"Aprēķini!AL26","v":""},{"$f":"Aprēķini!AM26","v":""},{"$f":"IFERROR(E27*Iestatījumi!D29/SUM(TabulaMācībuPriekšmeti[Kredītstundas]),\"\")","v":""},{"$f":"Aprēķini!AN26","v":""}]
[null,null,{"$f":"Aprēķini!C27","v":""},{"$f":"Aprēķini!AL27","v":""},{"$f":"Aprēķini!AM27","v":""},{"$f":"IFERROR(E28*Iestatījumi!D30/SUM(TabulaMācībuPriekšmeti[Kredītstundas]),\"\")","v":""},{"$f":"Aprēķini!AN27","v":""}]
[null,null,{"$f":"Aprēķini!C28","v":""},{"$f":"Aprēķini!AL28","v":""},{"$f":"Aprēķini!AM28","v":""},{"$f":"IFERROR(E29*Iestatījumi!D31/SUM(TabulaMācībuPriekšmeti[Kredītstundas]),\"\")","v":""},{"$f":"Aprēķini!AN28","v":""}]
[null,null,{"$f":"Aprēķini!C29","v":""},{"$f":"Aprēķini!AL29","v":""},{"$f":"Aprēķini!AM29","v":""},{"$f":"IFERROR(E30*Iestatījumi!D32/SUM(TabulaMācībuPriekšmeti[Kredītstundas]),\"\")","v":""},{"$f":"Aprēķini!AN29","v":""}]
[null,null,{"$f":"Aprēķini!C30","v":""},{"$f":"Aprēķini!AL30","v":""},{"$f":"Aprēķini!AM30","v":""},{"$f":"IFERROR(E31*Iestatījumi!D33/SUM(TabulaMācībuPriekšmeti[Kredītstundas]),\"\")","v":""},{"$f":"Aprēķini!AN30","v":""}]

{"sheet":"Iestatījumi","index":2,"n_rows":15,"n_cols":16,"rows_kept":15,"merged":[[5,2,5,15]]}
[null,"Iestatījumi"]
[null,null,"Rezultātu un vidējās akadēmiskās atzīmes kartēšana"]
[null,null,"Procenti",{"v":0,"d":"0%"},{"v":0.6,"d":"60%"},{"v":0.63,"d":"63%"},{"v":0.67,"d":"67%"},{"v":0.7,"d":"70%"},{"v":0.73,"d":"73%"},{"v":0.77,"d":"77%"},{"v":0.8,"d":"80%"},{"v":0.83,"d":"83%"},{"v":0.87,"d":"87%"},{"v":0.9,"d":"90%"},{"v":0.93,"d":"93%"},{"v":0.97,"d":"97%"}]
[null,null,"Atzīmes burts","F","D-","D","D+","C-","C","C+","B-","B","B+","A-","A","A+"]
[null,null,"Vidējā akadēmiskā atzīme",0,0.67,1,1.33,1.67,2,2.33,2.67,3,3.33,3.67,4,4]
[]
[null,null,"Svērtie rezultāti par līdz pat 25 mācību priekšmetiem"]
[null,null,"Atlasītie mācību priekšmeti","Kredītstundas","Mājasdarbi","Eseja","Kontroldarbs","Projekts","Semestra vidus pārbaudījums","Gala eksāmens","Cits","% kopā"]
[null,null,"Mūsdienu franču valoda",{"v":3,"d":"3.0"},{"v":0.1,"d":"10%"},{"v":0.15,"d":"15%"},{"v":0.15,"d":"15%"},{"v":0.1,"d":"10%"},{"v":0.2,"d":"20%"},{"v":0.3,"d":"30%"},null,{"$f":"SUM(TabulaMācībuPriekšmeti[[#This Row],[Mājasdarbi]:[Cits]])","v":{"v":1,"d":"100%"}}]
[null,null,"Teorētiskā fizika",{"v":3,"d":"3.0"},{"v":0.15,"d":"15%"},{"v":0.15,"d":"15%"},{"v":0.1,"d":"10%"},{"v":0.1,"d":"10%"},{"v":0.15,"d":"15%"},{"v":0.3,"d":"30%"},{"v":0.05,"d":"5%"},{"$f":"SUM(TabulaMācībuPriekšmeti[[#This Row],[Mājasdarbi]:[Cits]])","v":{"v":1,"d":"100%"}}]
[null,null,"Matemātika 1",{"v":4,"d":"4.0"},{"v":0.1,"d":"10%"},{"v":0.15,"d":"15%"},{"v":0.15,"d":"15%"},{"v":0.1,"d":"10%"},{"v":0.2,"d":"20%"},{"v":0.3,"d":"30%"},null,{"$f":"SUM(TabulaMācībuPriekšmeti[[#This Row],[Mājasdarbi]:[Cits]])","v":{"v":1,"d":"100%"}}]
[null,null,"Matemātika 2",{"v":4,"d":"4.0"},{"v":0.15,"d":"15%"},{"v":0.15,"d":"15%"},{"v":0.1,"d":"10%"},{"v":0.1,"d":"10%"},{"v":0.15,"d":"15%"},{"v":0.3,"d":"30%"},{"v":0.05,"d":"5%"},{"$f":"SUM(TabulaMācībuPriekšmeti[[#This Row],[Mājasdarbi]:[Cits]])","v":{"v":1,"d":"100%"}}]
[null,null,"Uzlabotā Java programmēšana",{"v":5,"d":"5.0"},{"v":0.15,"d":"15%"},{"v":0.15,"d":"15%"},{"v":0.1,"d":"10%"},{"v":0.1,"d":"10%"},{"v":0.2,"d":"20%"},{"v":0.3,"d":"30%"},null,{"$f":"SUM(TabulaMācībuPriekšmeti[[#This Row],[Mājasdarbi]:[Cits]])","v":{"v":1,"d":"100%"}}]
[null,null,"Spāņu valoda",{"v":3,"d":"3.0"},{"v":0.1,"d":"10%"},{"v":0.15,"d":"15%"},{"v":0.17,"d":"17%"},{"v":0.13,"d":"13%"},{"v":0.2,"d":"20%"},{"v":0.2,"d":"20%"},{"v":0.05,"d":"5%"},{"$f":"SUM(TabulaMācībuPriekšmeti[[#This Row],[Mājasdarbi]:[Cits]])","v":{"v":1,"d":"100%"}}]
[null,null,"Kompozīcija",{"v":2,"d":"2.0"},{"v":0.15,"d":"15%"},{"v":0.15,"d":"15%"},{"v":0.12,"d":"12%"},{"v":0.15,"d":"15%"},{"v":0.15,"d":"15%"},{"v":0.25,"d":"25%"},{"v":0.03,"d":"3%"},{"$f":"SUM(TabulaMācībuPriekšmeti[[#This Row],[Mājasdarbi]:[Cits]])","v":{"v":1,"d":"100%"}}]

{"sheet":"Aprēķini","index":3,"n_rows":657,"n_cols":40,"rows_kept":657,"hidden":true}
[null,"Aprēķini"]
[null,null,"Šajā darblapā tiek veikti atzīmju un un vidējās akadēmiskās atzīmes aprēķini, un tai ir jāpaliek paslēptai. Jebkādas šajā lapā veiktas izmaiņas var izraisīt kļūdas."]
[]
[null,null,"Pašreizējo mācību priekšmetu saraksts","Rezultāti (no 1)",{"$nulls":24},"Atzīmes aprēķināšana"]
[null,null,"Mācību priekšmets",1,2,3,4,5,6,7,8,9,10,11,12,13,14,15,16,17,18,19,20,21,22,23,24,25,{"$f":"TabulaMācībuPriekšmeti[[#Headers],[Mājasdarbi]]","v":"Mājasdarbi"},{"$f":"TabulaMācībuPriekšmeti[[#Headers],[Eseja]]","v":"Eseja"},{"$f":"TabulaMācībuPriekšmeti[[#Headers],[Kontroldarbs]]","v":"Kontroldarbs"},{"$f":"TabulaMācībuPriekšmeti[[#Headers],[Projekts]]","v":"Projekts"},{"$f":"TabulaMācībuPriekšmeti[[#Headers],[Semestra vidus pārbaudījums]]","v":"Semestra vidus pārbaudījums"},{"$f":"TabulaMācībuPriekšmeti[[#Headers],[Gala eksāmens]]","v":"Gala eksāmens"},{"$f":"TabulaMācībuPriekšmeti[[#Headers],[Cits]]","v":"Cits"},"Kopā","Lespējamie punkti kopā","Kopā %","Atzīmes punkti","Atzīmes burts"]
[null,null,{"$f":"IF(Iestatījumi!C9=\"\",\"\",Iestatījumi!C9)","v":"Mūsdienu franču valoda"},{"$f":"IFERROR(INDEX(TabulaMācībuRezultāti[],MATCH($C6:$C30&D$5:AB$5,Aprēķini!$C$33:$C$657,0),4),\"\")","v":{"v":0.8,"d":"80%"}},{"v":0.9,"d":"90%"},{"v":0.8,"d":"80%"},"","","","","","","","","","","","","","","","","","","","","","",{"$f":"IFERROR(AVERAGEIFS(TabulaMācībuRezultāti[Rezultāts],TabulaMācībuRezultāti[Mācību priekšmets],Aprēķini!$C6,TabulaMācībuRezultāti[Tips],Aprēķini!AC$5)*Iestatījumi!E9,\"\")","v":0.08333333333333334},{"$f":"IFERROR(AVERAGEIFS(TabulaMācībuRezultāti[Rezultāts],TabulaMācībuRezultāti[Mācību priekšmets],Aprēķini!$C6,TabulaMācībuRezultāti[Tips],Aprēķini!AD$5)*Iestatījumi!F9,\"\")","v":""},{"$f":"IFERROR(AVERAGEIFS(TabulaMācībuRezultāti[Rezultāts],TabulaMācībuRezultāti[Mācību priekšmets],Aprēķini!$C6,TabulaMācībuRezultāti[Tips],Aprēķini!AE$5)*Iestatījumi!G9,\"\")","v":""},{"$f":"IFERROR(AVERAGEIFS(TabulaMācībuRezultāti[Rezultāts],TabulaMācībuRezultāti[Mācību priekšmets],Aprēķini!$C6,TabulaMācībuRezultāti[Tips],Aprēķini!AF$5)*Iestatījumi!H9,\"\")","v":""},{"$f":"IFERROR(AVERAGEIFS(TabulaMācībuRezultāti[Rezultāts],TabulaMācībuRezultāti[Mācību priekšmets],Aprēķini!$C6,TabulaMācībuRezultāti[Tips],Aprēķini!AG$5)*Iestatījumi!I9,\"\")","v":""},{"$f":"IFERROR(AVERAGEIFS(TabulaMācībuRezultāti[Rezultāts],TabulaMācībuRezultāti[Mācību priekšmets],Aprēķini!$C6,TabulaMācībuRezultāti[Tips],Aprēķini!AH$5)*Iestatījumi!J9,\"\")","v":""},{"$f":"IFERROR(AVERAGEIFS(TabulaMācībuRezultāti[Rezultāts],TabulaMācībuRezultāti[Mācību priekšmets],Aprēķini!$C6,TabulaMācībuRezultāti[Tips],Aprēķini!AI$5)*Iestatījumi!K9,\"\")","v":""},{"$f":"SUM(AC6:AI6)","v":0.08333333333333334},{"$f":"SUMIFS(Iestatījumi!E9:K9,Aprēķini!AC6:AI6,\">0\")","v":0.1},{"$f":"IFERROR(AJ6/AK6,\"\")","v":{"v":0.8333333333333334,"d":"83%"}},{"$f":"IFERROR(HLOOKUP(AL6,_1._GPA_kartēšana,3),\"\")","v":3},{"$f":"IFERROR(HLOOKUP(AL6,_1._GPA_kartēšana,2),\"\")","v":"B"}]
[null,null,{"$f":"IF(Iestatījumi!C10=\"\",\"\",Iestatījumi!C10)","v":"Teorētiskā fizika"},{"v":0.95,"d":"95%"},"","","","","","","","","","","","","","","","","","","","","","","","",{"$f":"IFERROR(AVERAGEIFS(TabulaMācībuRezultāti[Rezultāts],TabulaMācībuRezultāti[Mācību priekšmets],Aprēķini!$C7,TabulaMācībuRezultāti[Tips],Aprēķini!AC$5)*Iestatījumi!E10,\"\")","v":0.1425},{"$f":"IFERROR(AVERAGEIFS(TabulaMācībuRezultāti[Rezultāts],TabulaMācībuRezultāti[Mācību priekšmets],Aprēķini!$C7,TabulaMācībuRezultāti[Tips],Aprēķini!AD$5)*Iestatījumi!F10,\"\")","v":""},{"$f":"IFERROR(AVERAGEIFS(TabulaMācībuRezultāti[Rezultāts],TabulaMācībuRezultāti[Mācību priekšmets],Aprēķini!$C7,TabulaMācībuRezultāti[Tips],Aprēķini!AE$5)*Iestatījumi!G10,\"\")","v":""},{"$f":"IFERROR(AVERAGEIFS(TabulaMācībuRezultāti[Rezultāts],TabulaMācībuRezultāti[Mācību priekšmets],Aprēķini!$C7,TabulaMācībuRezultāti[Tips],Aprēķini!AF$5)*Iestatījumi!H10,\"\")","v":""},{"$f":"IFERROR(AVERAGEIFS(TabulaMācībuRezultāti[Rezultāts],TabulaMācībuRezultāti[Mācību priekšmets],Aprēķini!$C7,TabulaMācībuRezultāti[Tips],Aprēķini!AG$5)*Iestatījumi!I10,\"\")","v":""},{"$f":"IFERROR(AVERAGEIFS(TabulaMācībuRezultāti[Rezultāts],TabulaMācībuRezultāti[Mācību priekšmets],Aprēķini!$C7,TabulaMācībuRezultāti[Tips],Aprēķini!AH$5)*Iestatījumi!J10,\"\")","v":""},{"$f":"IFERROR(AVERAGEIFS(TabulaMācībuRezultāti[Rezultāts],TabulaMācībuRezultāti[Mācību priekšmets],Aprēķini!$C7,TabulaMācībuRezultāti[Tips],Aprēķini!AI$5)*Iestatījumi!K10,\"\")","v":""},{"$f":"SUM(AC7:AI7)","v":0.1425},{"$f":"SUMIFS(Iestatījumi!E10:K10,Aprēķini!AC7:AI7,\">0\")","v":0.15},{"$f":"IFERROR(AJ7/AK7,\"\")","v":{"v":0.95,"d":"95%"}},4,"A"]
[null,null,{"$f":"IF(Iestatījumi!C11=\"\",\"\",Iestatījumi!C11)","v":"Matemātika 1"},{"v":0.8,"d":"80%"},{"v":0.8,"d":"80%"},"","","","","","","","","","","","","","","","","","","","","","","",{"$f":"IFERROR(AVERAGEIFS(TabulaMācībuRezultāti[Rezultāts],TabulaMācībuRezultāti[Mācību priekšmets],Aprēķini!$C8,TabulaMācībuRezultāti[Tips],Aprēķini!AC$5)*Iestatījumi!E11,\"\")","v":0.08000000000000002},{"$f":"IFERROR(AVERAGEIFS(TabulaMācībuRezultāti[Rezultāts],TabulaMācībuRezultāti[Mācību priekšmets],Aprēķini!$C8,TabulaMācībuRezultāti[Tips],Aprēķini!AD$5)*Iestatījumi!F11,\"\")","v":""},{"$f":"IFERROR(AVERAGEIFS(TabulaMācībuRezultāti[Rezultāts],TabulaMācībuRezultāti[Mācību priekšmets],Aprēķini!$C8,TabulaMācībuRezultāti[Tips],Aprēķini!AE$5)*Iestatījumi!G11,\"\")","v":""},{"$f":"IFERROR(AVERAGEIFS(TabulaMācībuRezultāti[Rezultāts],TabulaMācībuRezultāti[Mācību priekšmets],Aprēķini!$C8,TabulaMācībuRezultāti[Tips],Aprēķini!AF$5)*Iestatījumi!H11,\"\")","v":""},{"$f":"IFERROR(AVERAGEIFS(TabulaMācībuRezultāti[Rezultāts],TabulaMācībuRezultāti[Mācību priekšmets],Aprēķini!$C8,TabulaMācībuRezultāti[Tips],Aprēķini!AG$5)*Iestatījumi!I11,\"\")","v":""},{"$f":"IFERROR(AVERAGEIFS(TabulaMācībuRezultāti[Rezultāts],TabulaMācībuRezultāti[Mācību priekšmets],Aprēķini!$C8,TabulaMācībuRezultāti[Tips],Aprēķini!AH$5)*Iestatījumi!J11,\"\")","v":""},{"$f":"IFERROR(AVERAGEIFS(TabulaMācībuRezultāti[Rezultāts],TabulaMācībuRezultāti[Mācību priekšmets],Aprēķini!$C8,TabulaMācībuRezultāti[Tips],Aprēķini!AI$5)*Iestatījumi!K11,\"\")","v":""},0.08000000000000002,{"$f":"SUMIFS(Iestatījumi!E11:K11,Aprēķini!AC8:AI8,\">0\")","v":0.1},{"v":0.8000000000000002,"d":"80%"},2.67,"B-"]
[null,null,{"$f":"IF(Iestatījumi!C12=\"\",\"\",Iestatījumi!C12)","v":"Matemātika 2"},{"v":0.85,"d":"85%"},{"v":0.95,"d":"95%"},"","","","","","","","","","","","","","","","","","","","","","","",{"$f":"IFERROR(AVERAGEIFS(TabulaMācībuRezultāti[Rezultāts],TabulaMācībuRezultāti[Mācību priekšmets],Aprēķini!$C9,TabulaMācībuRezultāti[Tips],Aprēķini!AC$5)*Iestatījumi!E12,\"\")","v":0.1275},{"$f":"IFERROR(AVERAGEIFS(TabulaMācībuRezultāti[Rezultāts],TabulaMācībuRezultāti[Mācību priekšmets],Aprēķini!$C9,TabulaMācībuRezultāti[Tips],Aprēķini!AD$5)*Iestatījumi!F12,\"\")","v":""},{"$f":"IFERROR(AVERAGEIFS(TabulaMācībuRezultāti[Rezultāts],TabulaMācībuRezultāti[Mācību priekšmets],Aprēķini!$C9,TabulaMācībuRezultāti[Tips],Aprēķini!AE$5)*Iestatījumi!G12,\"\")","v":0.095},{"$f":"IFERROR(AVERAGEIFS(TabulaMācībuRezultāti[Rezultāts],TabulaMācībuRezultāti[Mācību priekšmets],Aprēķini!$C9,TabulaMācībuRezultāti[Tips],Aprēķini!AF$5)*Iestatījumi!H12,\"\")","v":""},{"$f":"IFERROR(AVERAGEIFS(TabulaMācībuRezultāti[Rezultāts],TabulaMācībuRezultāti[Mācību priekšmets],Aprēķini!$C9,TabulaMācībuRezultāti[Tips],Aprēķini!AG$5)*Iestatījumi!I12,\"\")","v":""},{"$f":"IFERROR(AVERAGEIFS(TabulaMācībuRezultāti[Rezultāts],TabulaMācībuRezultāti[Mācību priekšmets],Aprēķini!$C9,TabulaMācībuRezultāti[Tips],Aprēķini!AH$5)*Iestatījumi!J12,\"\")","v":""},{"$f":"IFERROR(AVERAGEIFS(TabulaMācībuRezultāti[Rezultāts],TabulaMācībuRezultāti[Mācību priekšmets],Aprēķini!$C9,TabulaMācībuRezultāti[Tips],Aprēķini!AI$5)*Iestatījumi!K12,\"\")","v":""},0.2225,{"$f":"SUMIFS(Iestatījumi!E12:K12,Aprēķini!AC9:AI9,\">0\")","v":0.25},{"v":0.89,"d":"89%"},3.33,"B+"]
[null,null,{"$f":"IF(Iestatījumi!C13=\"\",\"\",Iestatījumi!C13)","v":"Uzlabotā Java programmēšana"},{"v":0.75,"d":"75%"},"","","","","","","","","","","","","","","","","","","","","","","","",{"$f":"IFERROR(AVERAGEIFS(TabulaMācībuRezultāti[Rezultāts],TabulaMācībuRezultāti[Mācību priekšmets],Aprēķini!$C10,TabulaMācībuRezultāti[Tips],Aprēķini!AC$5)*Iestatījumi!E13,\"\")","v":""},{"$f":"IFERROR(AVERAGEIFS(TabulaMācībuRezultāti[Rezultāts],TabulaMācībuRezultāti[Mācību priekšmets],Aprēķini!$C10,TabulaMācībuRezultāti[Tips],Aprēķini!AD$5)*Iestatījumi!F13,\"\")","v":""},{"$f":"IFERROR(AVERAGEIFS(TabulaMācībuRezultāti[Rezultāts],TabulaMācībuRezultāti[Mācību priekšmets],Aprēķini!$C10,TabulaMācībuRezultāti[Tips],Aprēķini!AE$5)*Iestatījumi!G13,\"\")","v":""},{"$f":"IFERROR(AVERAGEIFS(TabulaMācībuRezultāti[Rezultāts],TabulaMācībuRezultāti[Mācību priekšmets],Aprēķini!$C10,TabulaMācībuRezultāti[Tips],Aprēķini!AF$5)*Iestatījumi!H13,\"\")","v":""},{"$f":"IFERROR(AVERAGEIFS(TabulaMācībuRezultāti[Rezultāts],TabulaMācībuRezultāti[Mācību priekšmets],Aprēķini!$C10,TabulaMācībuRezultāti[Tips],Aprēķini!AG$5)*Iestatījumi!I13,\"\")","v":0.15000000000000002},{"$f":"IFERROR(AVERAGEIFS(TabulaMācībuRezultāti[Rezultāts],TabulaMācībuRezultāti[Mācību priekšmets],Aprēķini!$C10,TabulaMācībuRezultāti[Tips],Aprēķini!AH$5)*Iestatījumi!J13,\"\")","v":""},{"$f":"IFERROR(AVERAGEIFS(TabulaMācībuRezultāti[Rezultāts],TabulaMācībuRezultāti[Mācību priekšmets],Aprēķini!$C10,TabulaMācībuRezultāti[Tips],Aprēķini!AI$5)*Iestatījumi!K13,\"\")","v":""},0.15000000000000002,{"$f":"SUMIFS(Iestatījumi!E13:K13,Aprēķini!AC10:AI10,\">0\")","v":0.2},{"v":0.7500000000000001,"d":"75%"},2,"C"]
[null,null,{"$f":"IF(Iestatījumi!C14=\"\",\"\",Iestatījumi!C14)","v":"Spāņu valoda"},{"v":0.5,"d":"50%"},"","","","","","","","","","","","","","","","","","","","","","","","",{"$f":"IFERROR(AVERAGEIFS(TabulaMācībuRezultāti[Rezultāts],TabulaMācībuRezultāti[Mācību priekšmets],Aprēķini!$C11,TabulaMācībuRezultāti[Tips],Aprēķini!AC$5)*Iestatījumi!E14,\"\")","v":0.05},{"$f":"IFERROR(AVERAGEIFS(TabulaMācībuRezultāti[Rezultāts],TabulaMācībuRezultāti[Mācību priekšmets],Aprēķini!$C11,TabulaMācībuRezultāti[Tips],Aprēķini!AD$5)*Iestatījumi!F14,\"\")","v":""},{"$f":"IFERROR(AVERAGEIFS(TabulaMācībuRezultāti[Rezultāts],TabulaMācībuRezultāti[Mācību priekšmets],Aprēķini!$C11,TabulaMācībuRezultāti[Tips],Aprēķini!AE$5)*Iestatījumi!G14,\"\")","v":""},{"$f":"IFERROR(AVERAGEIFS(TabulaMācībuRezultāti[Rezultāts],TabulaMācībuRezultāti[Mācību priekšmets],Aprēķini!$C11,TabulaMācībuRezultāti[Tips],Aprēķini!AF$5)*Iestatījumi!H14,\"\")","v":""},{"$f":"IFERROR(AVERAGEIFS(TabulaMācībuRezultāti[Rezultāts],TabulaMācībuRezultāti[Mācību priekšmets],Aprēķini!$C11,TabulaMācībuRezultāti[Tips],Aprēķini!AG$5)*Iestatījumi!I14,\"\")","v":""},{"$f":"IFERROR(AVERAGEIFS(TabulaMācībuRezultāti[Rezultāts],TabulaMācībuRezultāti[Mācību priekšmets],Aprēķini!$C11,TabulaMācībuRezultāti[Tips],Aprēķini!AH$5)*Iestatījumi!J14,\"\")","v":""},{"$f":"IFERROR(AVERAGEIFS(TabulaMācībuRezultāti[Rezultāts],TabulaMācībuRezultāti[Mācību priekšmets],Aprēķini!$C11,TabulaMācībuRezultāti[Tips],Aprēķini!AI$5)*Iestatījumi!K14,\"\")","v":""},0.05,{"$f":"SUMIFS(Iestatījumi!E14:K14,Aprēķini!AC11:AI11,\">0\")","v":0.1},{"v":0.5,"d":"50%"},0,"F"]
[null,null,{"$f":"IF(Iestatījumi!C15=\"\",\"\",Iestatījumi!C15)","v":"Kompozīcija"},{"v":0.95,"d":"95%"},"","","","","","","","","","","","","","","","","","","","","","","","",{"$f":"IFERROR(AVERAGEIFS(TabulaMācībuRezultāti[Rezultāts],TabulaMācībuRezultāti[Mācību priekšmets],Aprēķini!$C12,TabulaMācībuRezultāti[Tips],Aprēķini!AC$5)*Iestatījumi!E15,\"\")","v":""},{"$f":"IFERROR(AVERAGEIFS(TabulaMācībuRezultāti[Rezultāts],TabulaMācībuRezultāti[Mācību priekšmets],Aprēķini!$C12,TabulaMācībuRezultāti[Tips],Aprēķini!AD$5)*Iestatījumi!F15,\"\")","v":0.1425},{"$f":"IFERROR(AVERAGEIFS(TabulaMācībuRezultāti[Rezultāts],TabulaMācībuRezultāti[Mācību priekšmets],Aprēķini!$C12,TabulaMācībuRezultāti[Tips],Aprēķini!AE$5)*Iestatījumi!G15,\"\")","v":""},{"$f":"IFERROR(AVERAGEIFS(TabulaMācībuRezultāti[Rezultāts],TabulaMācībuRezultāti[Mācību priekšmets],Aprēķini!$C12,TabulaMācībuRezultāti[Tips],Aprēķini!AF$5)*Iestatījumi!H15,\"\")","v":""},{"$f":"IFERROR(AVERAGEIFS(TabulaMācībuRezultāti[Rezultāts],TabulaMācībuRezultāti[Mācību priekšmets],Aprēķini!$C12,TabulaMācībuRezultāti[Tips],Aprēķini!AG$5)*Iestatījumi!I15,\"\")","v":""},{"$f":"IFERROR(AVERAGEIFS(TabulaMācībuRezultāti[Rezultāts],TabulaMācībuRezultāti[Mācību priekšmets],Aprēķini!$C12,TabulaMācībuRezultāti[Tips],Aprēķini!AH$5)*Iestatījumi!J15,\"\")","v":""},{"$f":"IFERROR(AVERAGEIFS(TabulaMācībuRezultāti[Rezultāts],TabulaMācībuRezultāti[Mācību priekšmets],Aprēķini!$C12,TabulaMācībuRezultāti[Tips],Aprēķini!AI$5)*Iestatījumi!K15,\"\")","v":""},0.1425,{"$f":"SUMIFS(Iestatījumi!E15:K15,Aprēķini!AC12:AI12,\">0\")","v":0.15},{"v":0.95,"d":"95%"},4,"A"]
[null,null,{"$f":"IF(Iestatījumi!C16=\"\",\"\",Iestatījumi!C16)","v":""},"","","","","","","","","","","","","","","","","","","","","","","","","",{"$f":"IFERROR(AVERAGEIFS(TabulaMācībuRezultāti[Rezultāts],TabulaMācībuRezultāti[Mācību priekšmets],Aprēķini!$C13,TabulaMācībuRezultāti[Tips],Aprēķini!AC$5)*Iestatījumi!E16,\"\")","v":""},{"$f":"IFERROR(AVERAGEIFS(TabulaMācībuRezultāti[Rezultāts],TabulaMācībuRezultāti[Mācību priekšmets],Aprēķini!$C13,TabulaMācībuRezultāti[Tips],Aprēķini!AD$5)*Iestatījumi!F16,\"\")","v":""},{"$f":"IFERROR(AVERAGEIFS(TabulaMācībuRezultāti[Rezultāts],TabulaMācībuRezultāti[Mācību priekšmets],Aprēķini!$C13,TabulaMācībuRezultāti[Tips],Aprēķini!AE$5)*Iestatījumi!G16,\"\")","v":""},{"$f":"IFERROR(AVERAGEIFS(TabulaMācībuRezultāti[Rezultāts],TabulaMācībuRezultāti[Mācību priekšmets],Aprēķini!$C13,TabulaMācībuRezultāti[Tips],Aprēķini!AF$5)*Iestatījumi!H16,\"\")","v":""},{"$f":"IFERROR(AVERAGEIFS(TabulaMācībuRezultāti[Rezultāts],TabulaMācībuRezultāti[Mācību priekšmets],Aprēķini!$C13,TabulaMācībuRezultāti[Tips],Aprēķini!AG$5)*Iestatījumi!I16,\"\")","v":""},{"$f":"IFERROR(AVERAGEIFS(TabulaMācībuRezultāti[Rezultāts],TabulaMācībuRezultāti[Mācību priekšmets],Aprēķini!$C13,TabulaMācībuRezultāti[Tips],Aprēķini!AH$5)*Iestatījumi!J16,\"\")","v":""},{"$f":"IFERROR(AVERAGEIFS(TabulaMācībuRezultāti[Rezultāts],TabulaMācībuRezultāti[Mācību priekšmets],Aprēķini!$C13,TabulaMācībuRezultāti[Tips],Aprēķini!AI$5)*Iestatījumi!K16,\"\")","v":""},0,{"$f":"SUMIFS(Iestatījumi!E16:K16,Aprēķini!AC13:AI13,\">0\")","v":0},"","",""]
[null,null,{"$f":"IF(Iestatījumi!C17=\"\",\"\",Iestatījumi!C17)","v":""},"","","","","","","","","","","","","","","","","","","","","","","","","",{"$f":"IFERROR(AVERAGEIFS(TabulaMācībuRezultāti[Rezultāts],TabulaMācībuRezultāti[Mācību priekšmets],Aprēķini!$C14,TabulaMācībuRezultāti[Tips],Aprēķini!AC$5)*Iestatījumi!E17,\"\")","v":""},{"$f":"IFERROR(AVERAGEIFS(TabulaMācībuRezultāti[Rezultāts],TabulaMācībuRezultāti[Mācību priekšmets],Aprēķini!$C14,TabulaMācībuRezultāti[Tips],Aprēķini!AD$5)*Iestatījumi!F17,\"\")","v":""},{"$f":"IFERROR(AVERAGEIFS(TabulaMācībuRezultāti[Rezultāts],TabulaMācībuRezultāti[Mācību priekšmets],Aprēķini!$C14,TabulaMācībuRezultāti[Tips],Aprēķini!AE$5)*Iestatījumi!G17,\"\")","v":""},{"$f":"IFERROR(AVERAGEIFS(TabulaMācībuRezultāti[Rezultāts],TabulaMācībuRezultāti[Mācību priekšmets],Aprēķini!$C14,TabulaMācībuRezultāti[Tips],Aprēķini!AF$5)*Iestatījumi!H17,\"\")","v":""},{"$f":"IFERROR(AVERAGEIFS(TabulaMācībuRezultāti[Rezultāts],TabulaMācībuRezultāti[Mācību priekšmets],Aprēķini!$C14,TabulaMācībuRezultāti[Tips],Aprēķini!AG$5)*Iestatījumi!I17,\"\")","v":""},{"$f":"IFERROR(AVERAGEIFS(TabulaMācībuRezultāti[Rezultāts],TabulaMācībuRezultāti[Mācību priekšmets],Aprēķini!$C14,TabulaMācībuRezultāti[Tips],Aprēķini!AH$5)*Iestatījumi!J17,\"\")","v":""},{"$f":"IFERROR(AVERAGEIFS(TabulaMācībuRezultāti[Rezultāts],TabulaMācībuRezultāti[Mācību priekšmets],Aprēķini!$C14,TabulaMācībuRezultāti[Tips],Aprēķini!AI$5)*Iestatījumi!K17,\"\")","v":""},0,{"$f":"SUMIFS(Iestatījumi!E17:K17,Aprēķini!AC14:AI14,\">0\")","v":0},"","",""]
[null,null,{"$f":"IF(Iestatījumi!C18=\"\",\"\",Iestatījumi!C18)","v":""},"","","","","","","","","","","","","","","","","","","","","","","","","",{"$f":"IFERROR(AVERAGEIFS(TabulaMācībuRezultāti[Rezultāts],TabulaMācībuRezultāti[Mācību priekšmets],Aprēķini!$C15,TabulaMācībuRezultāti[Tips],Aprēķini!AC$5)*Iestatījumi!E18,\"\")","v":""},{"$f":"IFERROR(AVERAGEIFS(TabulaMācībuRezultāti[Rezultāts],TabulaMācībuRezultāti[Mācību priekšmets],Aprēķini!$C15,TabulaMācībuRezultāti[Tips],Aprēķini!AD$5)*Iestatījumi!F18,\"\")","v":""},{"$f":"IFERROR(AVERAGEIFS(TabulaMācībuRezultāti[Rezultāts],TabulaMācībuRezultāti[Mācību priekšmets],Aprēķini!$C15,TabulaMācībuRezultāti[Tips],Aprēķini!AE$5)*Iestatījumi!G18,\"\")","v":""},{"$f":"IFERROR(AVERAGEIFS(TabulaMācībuRezultāti[Rezultāts],TabulaMācībuRezultāti[Mācību priekšmets],Aprēķini!$C15,TabulaMācībuRezultāti[Tips],Aprēķini!AF$5)*Iestatījumi!H18,\"\")","v":""},{"$f":"IFERROR(AVERAGEIFS(TabulaMācībuRezultāti[Rezultāts],TabulaMācībuRezultāti[Mācību priekšmets],Aprēķini!$C15,TabulaMācībuRezultāti[Tips],Aprēķini!AG$5)*Iestatījumi!I18,\"\")","v":""},{"$f":"IFERROR(AVERAGEIFS(TabulaMācībuRezultāti[Rezultāts],TabulaMācībuRezultāti[Mācību priekšmets],Aprēķini!$C15,TabulaMācībuRezultāti[Tips],Aprēķini!AH$5)*Iestatījumi!J18,\"\")","v":""},{"$f":"IFERROR(AVERAGEIFS(TabulaMācībuRezultāti[Rezultāts],TabulaMācībuRezultāti[Mācību priekšmets],Aprēķini!$C15,TabulaMācībuRezultāti[Tips],Aprēķini!AI$5)*Iestatījumi!K18,\"\")","v":""},0,{"$f":"SUMIFS(Iestatījumi!E18:K18,Aprēķini!AC15:AI15,\">0\")","v":0},"","",""]
[null,null,{"$f":"IF(Iestatījumi!C19=\"\",\"\",Iestatījumi!C19)","v":""},"","","","","","","","","","","","","","","","","","","","","","","","","",{"$f":"IFERROR(AVERAGEIFS(TabulaMācībuRezultāti[Rezultāts],TabulaMācībuRezultāti[Mācību priekšmets],Aprēķini!$C16,TabulaMācībuRezultāti[Tips],Aprēķini!AC$5)*Iestatījumi!E19,\"\")","v":""},{"$f":"IFERROR(AVERAGEIFS(TabulaMācībuRezultāti[Rezultāts],TabulaMācībuRezultāti[Mācību priekšmets],Aprēķini!$C16,TabulaMācībuRezultāti[Tips],Aprēķini!AD$5)*Iestatījumi!F19,\"\")","v":""},{"$f":"IFERROR(AVERAGEIFS(TabulaMācībuRezultāti[Rezultāts],TabulaMācībuRezultāti[Mācību priekšmets],Aprēķini!$C16,TabulaMācībuRezultāti[Tips],Aprēķini!AE$5)*Iestatījumi!G19,\"\")","v":""},{"$f":"IFERROR(AVERAGEIFS(TabulaMācībuRezultāti[Rezultāts],TabulaMācībuRezultāti[Mācību priekšmets],Aprēķini!$C16,TabulaMācībuRezultāti[Tips],Aprēķini!AF$5)*Iestatījumi!H19,\"\")","v":""},{"$f":"IFERROR(AVERAGEIFS(TabulaMācībuRezultāti[Rezultāts],TabulaMācībuRezultāti[Mācību priekšmets],Aprēķini!$C16,TabulaMācībuRezultāti[Tips],Aprēķini!AG$5)*Iestatījumi!I19,\"\")","v":""},{"$f":"IFERROR(AVERAGEIFS(TabulaMācībuRezultāti[Rezultāts],TabulaMācībuRezultāti[Mācību priekšmets],Aprēķini!$C16,TabulaMācībuRezultāti[Tips],Aprēķini!AH$5)*Iestatījumi!J19,\"\")","v":""},{"$f":"IFERROR(AVERAGEIFS(TabulaMācībuRezultāti[Rezultāts],TabulaMācībuRezultāti[Mācību priekšmets],Aprēķini!$C16,TabulaMācībuRezultāti[Tips],Aprēķini!AI$5)*Iestatījumi!K19,\"\")","v":""},0,{"$f":"SUMIFS(Iestatījumi!E19:K19,Aprēķini!AC16:AI16,\">0\")","v":0},"","",""]
[null,null,{"$f":"IF(Iestatījumi!C20=\"\",\"\",Iestatījumi!C20)","v":""},"","","","","","","","","","","","","","","","","","","","","","","","","",{"$f":"IFERROR(AVERAGEIFS(TabulaMācībuRezultāti[Rezultāts],TabulaMācībuRezultāti[Mācību priekšmets],Aprēķini!$C17,TabulaMācībuRezultāti[Tips],Aprēķini!AC$5)*Iestatījumi!E20,\"\")","v":""},{"$f":"IFERROR(AVERAGEIFS(TabulaMācībuRezultāti[Rezultāts],TabulaMācībuRezultāti[Mācību priekšmets],Aprēķini!$C17,TabulaMācībuRezultāti[Tips],Aprēķini!AD$5)*Iestatījumi!F20,\"\")","v":""},{"$f":"IFERROR(AVERAGEIFS(TabulaMācībuRezultāti[Rezultāts],TabulaMācībuRezultāti[Mācību priekšmets],Aprēķini!$C17,TabulaMācībuRezultāti[Tips],Aprēķini!AE$5)*Iestatījumi!G20,\"\")","v":""},{"$f":"IFERROR(AVERAGEIFS(TabulaMācībuRezultāti[Rezultāts],TabulaMācībuRezultāti[Mācību priekšmets],Aprēķini!$C17,TabulaMācībuRezultāti[Tips],Aprēķini!AF$5)*Iestatījumi!H20,\"\")","v":""},{"$f":"IFERROR(AVERAGEIFS(TabulaMācībuRezultāti[Rezultāts],TabulaMācībuRezultāti[Mācību priekšmets],Aprēķini!$C17,TabulaMācībuRezultāti[Tips],Aprēķini!AG$5)*Iestatījumi!I20,\"\")","v":""},{"$f":"IFERROR(AVERAGEIFS(TabulaMācībuRezultāti[Rezultāts],TabulaMācībuRezultāti[Mācību priekšmets],Aprēķini!$C17,TabulaMācībuRezultāti[Tips],Aprēķini!AH$5)*Iestatījumi!J20,\"\")","v":""},{"$f":"IFERROR(AVERAGEIFS(TabulaMācībuRezultāti[Rezultāts],TabulaMācībuRezultāti[Mācību priekšmets],Aprēķini!$C17,TabulaMācībuRezultāti[Tips],Aprēķini!AI$5)*Iestatījumi!K20,\"\")","v":""},0,{"$f":"SUMIFS(Iestatījumi!E20:K20,Aprēķini!AC17:AI17,\">0\")","v":0},"","",""]
[null,null,{"$f":"IF(Iestatījumi!C21=\"\",\"\",Iestatījumi!C21)","v":""},"","","","","","","","","","","","","","","","","","","","","","","","","",{"$f":"IFERROR(AVERAGEIFS(TabulaMācībuRezultāti[Rezultāts],TabulaMācībuRezultāti[Mācību priekšmets],Aprēķini!$C18,TabulaMācībuRezultāti[Tips],Aprēķini!AC$5)*Iestatījumi!E21,\"\")","v":""},{"$f":"IFERROR(AVERAGEIFS(TabulaMācībuRezultāti[Rezultāts],TabulaMācībuRezultāti[Mācību priekšmets],Aprēķini!$C18,TabulaMācībuRezultāti[Tips],Aprēķini!AD$5)*Iestatījumi!F21,\"\")","v":""},{"$f":"IFERROR(AVERAGEIFS(TabulaMācībuRezultāti[Rezultāts],TabulaMācībuRezultāti[Mācību priekšmets],Aprēķini!$C18,TabulaMācībuRezultāti[Tips],Aprēķini!AE$5)*Iestatījumi!G21,\"\")","v":""},{"$f":"IFERROR(AVERAGEIFS(TabulaMācībuRezultāti[Rezultāts],TabulaMācībuRezultāti[Mācību priekšmets],Aprēķini!$C18,TabulaMācībuRezultāti[Tips],Aprēķini!AF$5)*Iestatījumi!H21,\"\")","v":""},{"$f":"IFERROR(AVERAGEIFS(TabulaMācībuRezultāti[Rezultāts],TabulaMācībuRezultāti[Mācību priekšmets],Aprēķini!$C18,TabulaMācībuRezultāti[Tips],Aprēķini!AG$5)*Iestatījumi!I21,\"\")","v":""},{"$f":"IFERROR(AVERAGEIFS(TabulaMācībuRezultāti[Rezultāts],TabulaMācībuRezultāti[Mācību priekšmets],Aprēķini!$C18,TabulaMācībuRezultāti[Tips],Aprēķini!AH$5)*Iestatījumi!J21,\"\")","v":""},{"$f":"IFERROR(AVERAGEIFS(TabulaMācībuRezultāti[Rezultāts],TabulaMācībuRezultāti[Mācību priekšmets],Aprēķini!$C18,TabulaMācībuRezultāti[Tips],Aprēķini!AI$5)*Iestatījumi!K21,\"\")","v":""},0,{"$f":"SUMIFS(Iestatījumi!E21:K21,Aprēķini!AC18:AI18,\">0\")","v":0},"","",""]
[null,null,{"$f":"IF(Iestatījumi!C22=\"\",\"\",Iestatījumi!C22)","v":""},"","","","","","","","","","","","","","","","","","","","","","","","","",{"$f":"IFERROR(AVERAGEIFS(TabulaMācībuRezultāti[Rezultāts],TabulaMācībuRezultāti[Mācību priekšmets],Aprēķini!$C19,TabulaMācībuRezultāti[Tips],Aprēķini!AC$5)*Iestatījumi!E22,\"\")","v":""},{"$f":"IFERROR(AVERAGEIFS(TabulaMācībuRezultāti[Rezultāts],TabulaMācībuRezultāti[Mācību priekšmets],Aprēķini!$C19,TabulaMācībuRezultāti[Tips],Aprēķini!AD$5)*Iestatījumi!F22,\"\")","v":""},{"$f":"IFERROR(AVERAGEIFS(TabulaMācībuRezultāti[Rezultāts],TabulaMācībuRezultāti[Mācību priekšmets],Aprēķini!$C19,TabulaMācībuRezultāti[Tips],Aprēķini!AE$5)*Iestatījumi!G22,\"\")","v":""},{"$f":"IFERROR(AVERAGEIFS(TabulaMācībuRezultāti[Rezultāts],TabulaMācībuRezultāti[Mācību priekšmets],Aprēķini!$C19,TabulaMācībuRezultāti[Tips],Aprēķini!AF$5)*Iestatījumi!H22,\"\")","v":""},{"$f":"IFERROR(AVERAGEIFS(TabulaMācībuRezultāti[Rezultāts],TabulaMācībuRezultāti[Mācību priekšmets],Aprēķini!$C19,TabulaMācībuRezultāti[Tips],Aprēķini!AG$5)*Iestatījumi!I22,\"\")","v":""},{"$f":"IFERROR(AVERAGEIFS(TabulaMācībuRezultāti[Rezultāts],TabulaMācībuRezultāti[Mācību priekšmets],Aprēķini!$C19,TabulaMācībuRezultāti[Tips],Aprēķini!AH$5)*Iestatījumi!J22,\"\")","v":""},{"$f":"IFERROR(AVERAGEIFS(TabulaMācībuRezultāti[Rezultāts],TabulaMācībuRezultāti[Mācību priekšmets],Aprēķini!$C19,TabulaMācībuRezultāti[Tips],Aprēķini!AI$5)*Iestatījumi!K22,\"\")","v":""},0,{"$f":"SUMIFS(Iestatījumi!E22:K22,Aprēķini!AC19:AI19,\">0\")","v":0},"","",""]
[null,null,{"$f":"IF(Iestatījumi!C23=\"\",\"\",Iestatījumi!C23)","v":""},"","","","","","","","","","","","","","","","","","","","","","","","","",{"$f":"IFERROR(AVERAGEIFS(TabulaMācībuRezultāti[Rezultāts],TabulaMācībuRezultāti[Mācību priekšmets],Aprēķini!$C20,TabulaMācībuRezultāti[Tips],Aprēķini!AC$5)*Iestatījumi!E23,\"\")","v":""},{"$f":"IFERROR(AVERAGEIFS(TabulaMācībuRezultāti[Rezultāts],TabulaMācībuRezultāti[Mācību priekšmets],Aprēķini!$C20,TabulaMācībuRezultāti[Tips],Aprēķini!AD$5)*Iestatījumi!F23,\"\")","v":""},{"$f":"IFERROR(AVERAGEIFS(TabulaMācībuRezultāti[Rezultāts],TabulaMācībuRezultāti[Mācību priekšmets],Aprēķini!$C20,TabulaMācībuRezultāti[Tips],Aprēķini!AE$5)*Iestatījumi!G23,\"\")","v":""},{"$f":"IFERROR(AVERAGEIFS(TabulaMācībuRezultāti[Rezultāts],TabulaMācībuRezultāti[Mācību priekšmets],Aprēķini!$C20,TabulaMācībuRezultāti[Tips],Aprēķini!AF$5)*Iestatījumi!H23,\"\")","v":""},{"$f":"IFERROR(AVERAGEIFS(TabulaMācībuRezultāti[Rezultāts],TabulaMācībuRezultāti[Mācību priekšmets],Aprēķini!$C20,TabulaMācībuRezultāti[Tips],Aprēķini!AG$5)*Iestatījumi!I23,\"\")","v":""},{"$f":"IFERROR(AVERAGEIFS(TabulaMācībuRezultāti[Rezultāts],TabulaMācībuRezultāti[Mācību priekšmets],Aprēķini!$C20,TabulaMācībuRezultāti[Tips],Aprēķini!AH$5)*Iestatījumi!J23,\"\")","v":""},{"$f":"IFERROR(AVERAGEIFS(TabulaMācībuRezultāti[Rezultāts],TabulaMācībuRezultāti[Mācību priekšmets],Aprēķini!$C20,TabulaMācībuRezultāti[Tips],Aprēķini!AI$5)*Iestatījumi!K23,\"\")","v":""},0,{"$f":"SUMIFS(Iestatījumi!E23:K23,Aprēķini!AC20:AI20,\">0\")","v":0},"","",""]
[null,null,{"$f":"IF(Iestatījumi!C24=\"\",\"\",Iestatījumi!C24)","v":""},"","","","","","","","","","","","","","","","","","","","","","","","","",{"$f":"IFERROR(AVERAGEIFS(TabulaMācībuRezultāti[Rezultāts],TabulaMācībuRezultāti[Mācību priekšmets],Aprēķini!$C21,TabulaMācībuRezultāti[Tips],Aprēķini!AC$5)*Iestatījumi!E24,\"\")","v":""},{"$f":"IFERROR(AVERAGEIFS(TabulaMācībuRezultāti[Rezultāts],TabulaMācībuRezultāti[Mācību priekšmets],Aprēķini!$C21,TabulaMācībuRezultāti[Tips],Aprēķini!AD$5)*Iestatījumi!F24,\"\")","v":""},{"$f":"IFERROR(AVERAGEIFS(TabulaMācībuRezultāti[Rezultāts],TabulaMācībuRezultāti[Mācību priekšmets],Aprēķini!$C21,TabulaMācībuRezultāti[Tips],Aprēķini!AE$5)*Iestatījumi!G24,\"\")","v":""},{"$f":"IFERROR(AVERAGEIFS(TabulaMācībuRezultāti[Rezultāts],TabulaMācībuRezultāti[Mācību priekšmets],Aprēķini!$C21,TabulaMācībuRezultāti[Tips],Aprēķini!AF$5)*Iestatījumi!H24,\"\")","v":""},{"$f":"IFERROR(AVERAGEIFS(TabulaMācībuRezultāti[Rezultāts],TabulaMācībuRezultāti[Mācību priekšmets],Aprēķini!$C21,TabulaMācībuRezultāti[Tips],Aprēķini!AG$5)*Iestatījumi!I24,\"\")","v":""},{"$f":"IFERROR(AVERAGEIFS(TabulaMācībuRezultāti[Rezultāts],TabulaMācībuRezultāti[Mācību priekšmets],Aprēķini!$C21,TabulaMācībuRezultāti[Tips],Aprēķini!AH$5)*Iestatījumi!J24,\"\")","v":""},{"$f":"IFERROR(AVERAGEIFS(TabulaMācībuRezultāti[Rezultāts],TabulaMācībuRezultāti[Mācību priekšmets],Aprēķini!$C21,TabulaMācībuRezultāti[Tips],Aprēķini!AI$5)*Iestatījumi!K24,\"\")","v":""},0,{"$f":"SUMIFS(Iestatījumi!E24:K24,Aprēķini!AC21:AI21,\">0\")","v":0},"","",""]
[null,null,{"$f":"IF(Iestatījumi!C25=\"\",\"\",Iestatījumi!C25)","v":""},"","","","","","","","","","","","","","","","","","","","","","","","","",{"$f":"IFERROR(AVERAGEIFS(TabulaMācībuRezultāti[Rezultāts],TabulaMācībuRezultāti[Mācību priekšmets],Aprēķini!$C22,TabulaMācībuRezultāti[Tips],Aprēķini!AC$5)*Iestatījumi!E25,\"\")","v":""},{"$f":"IFERROR(AVERAGEIFS(TabulaMācībuRezultāti[Rezultāts],TabulaMācībuRezultāti[Mācību priekšmets],Aprēķini!$C22,TabulaMācībuRezultāti[Tips],Aprēķini!AD$5)*Iestatījumi!F25,\"\")","v":""},{"$f":"IFERROR(AVERAGEIFS(TabulaMācībuRezultāti[Rezultāts],TabulaMācībuRezultāti[Mācību priekšmets],Aprēķini!$C22,TabulaMācībuRezultāti[Tips],Aprēķini!AE$5)*Iestatījumi!G25,\"\")","v":""},{"$f":"IFERROR(AVERAGEIFS(TabulaMācībuRezultāti[Rezultāts],TabulaMācībuRezultāti[Mācību priekšmets],Aprēķini!$C22,TabulaMācībuRezultāti[Tips],Aprēķini!AF$5)*Iestatījumi!H25,\"\")","v":""},{"$f":"IFERROR(AVERAGEIFS(TabulaMācībuRezultāti[Rezultāts],TabulaMācībuRezultāti[Mācību priekšmets],Aprēķini!$C22,TabulaMācībuRezultāti[Tips],Aprēķini!AG$5)*Iestatījumi!I25,\"\")","v":""},{"$f":"IFERROR(AVERAGEIFS(TabulaMācībuRezultāti[Rezultāts],TabulaMācībuRezultāti[Mācību priekšmets],Aprēķini!$C22,TabulaMācībuRezultāti[Tips],Aprēķini!AH$5)*Iestatījumi!J25,\"\")","v":""},{"$f":"IFERROR(AVERAGEIFS(TabulaMācībuRezultāti[Rezultāts],TabulaMācībuRezultāti[Mācību priekšmets],Aprēķini!$C22,TabulaMācībuRezultāti[Tips],Aprēķini!AI$5)*Iestatījumi!K25,\"\")","v":""},0,{"$f":"SUMIFS(Iestatījumi!E25:K25,Aprēķini!AC22:AI22,\">0\")","v":0},"","",""]
[null,null,{"$f":"IF(Iestatījumi!C26=\"\",\"\",Iestatījumi!C26)","v":""},"","","","","","","","","","","","","","","","","","","","","","","","","",{"$f":"IFERROR(AVERAGEIFS(TabulaMācībuRezultāti[Rezultāts],TabulaMācībuRezultāti[Mācību priekšmets],Aprēķini!$C23,TabulaMācībuRezultāti[Tips],Aprēķini!AC$5)*Iestatījumi!E26,\"\")","v":""},{"$f":"IFERROR(AVERAGEIFS(TabulaMācībuRezultāti[Rezultāts],TabulaMācībuRezultāti[Mācību priekšmets],Aprēķini!$C23,TabulaMācībuRezultāti[Tips],Aprēķini!AD$5)*Iestatījumi!F26,\"\")","v":""},{"$f":"IFERROR(AVERAGEIFS(TabulaMācībuRezultāti[Rezultāts],TabulaMācībuRezultāti[Mācību priekšmets],Aprēķini!$C23,TabulaMācībuRezultāti[Tips],Aprēķini!AE$5)*Iestatījumi!G26,\"\")","v":""},{"$f":"IFERROR(AVERAGEIFS(TabulaMācībuRezultāti[Rezultāts],TabulaMācībuRezultāti[Mācību priekšmets],Aprēķini!$C23,TabulaMācībuRezultāti[Tips],Aprēķini!AF$5)*Iestatījumi!H26,\"\")","v":""},{"$f":"IFERROR(AVERAGEIFS(TabulaMācībuRezultāti[Rezultāts],TabulaMācībuRezultāti[Mācību priekšmets],Aprēķini!$C23,TabulaMācībuRezultāti[Tips],Aprēķini!AG$5)*Iestatījumi!I26,\"\")","v":""},{"$f":"IFERROR(AVERAGEIFS(TabulaMācībuRezultāti[Rezultāts],TabulaMācībuRezultāti[Mācību priekšmets],Aprēķini!$C23,TabulaMācībuRezultāti[Tips],Aprēķini!AH$5)*Iestatījumi!J26,\"\")","v":""},{"$f":"IFERROR(AVERAGEIFS(TabulaMācībuRezultāti[Rezultāts],TabulaMācībuRezultāti[Mācību priekšmets],Aprēķini!$C23,TabulaMācībuRezultāti[Tips],Aprēķini!AI$5)*Iestatījumi!K26,\"\")","v":""},0,{"$f":"SUMIFS(Iestatījumi!E26:K26,Aprēķini!AC23:AI23,\">0\")","v":0},"","",""]
[null,null,{"$f":"IF(Iestatījumi!C27=\"\",\"\",Iestatījumi!C27)","v":""},"","","","","","","","","","","","","","","","","","","","","","","","","",{"$f":"IFERROR(AVERAGEIFS(TabulaMācībuRezultāti[Rezultāts],TabulaMācībuRezultāti[Mācību priekšmets],Aprēķini!$C24,TabulaMācībuRezultāti[Tips],Aprēķini!AC$5)*Iestatījumi!E27,\"\")","v":""},{"$f":"IFERROR(AVERAGEIFS(TabulaMācībuRezultāti[Rezultāts],TabulaMācībuRezultāti[Mācību priekšmets],Aprēķini!$C24,TabulaMācībuRezultāti[Tips],Aprēķini!AD$5)*Iestatījumi!F27,\"\")","v":""},{"$f":"IFERROR(AVERAGEIFS(TabulaMācībuRezultāti[Rezultāts],TabulaMācībuRezultāti[Mācību priekšmets],Aprēķini!$C24,TabulaMācībuRezultāti[Tips],Aprēķini!AE$5)*Iestatījumi!G27,\"\")","v":""},{"$f":"IFERROR(AVERAGEIFS(TabulaMācībuRezultāti[Rezultāts],TabulaMācībuRezultāti[Mācību priekšmets],Aprēķini!$C24,TabulaMācībuRezultāti[Tips],Aprēķini!AF$5)*Iestatījumi!H27,\"\")","v":""},{"$f":"IFERROR(AVERAGEIFS(TabulaMācībuRezultāti[Rezultāts],TabulaMācībuRezultāti[Mācību priekšmets],Aprēķini!$C24,TabulaMācībuRezultāti[Tips],Aprēķini!AG$5)*Iestatījumi!I27,\"\")","v":""},{"$f":"IFERROR(AVERAGEIFS(TabulaMācībuRezultāti[Rezultāts],TabulaMācībuRezultāti[Mācību priekšmets],Aprēķini!$C24,TabulaMācībuRezultāti[Tips],Aprēķini!AH$5)*Iestatījumi!J27,\"\")","v":""},{"$f":"IFERROR(AVERAGEIFS(TabulaMācībuRezultāti[Rezultāts],TabulaMācībuRezultāti[Mācību priekšmets],Aprēķini!$C24,TabulaMācībuRezultāti[Tips],Aprēķini!AI$5)*Iestatījumi!K27,\"\")","v":""},0,{"$f":"SUMIFS(Iestatījumi!E27:K27,Aprēķini!AC24:AI24,\">0\")","v":0},"","",""]
[null,null,{"$f":"IF(Iestatījumi!C28=\"\",\"\",Iestatījumi!C28)","v":""},"","","","","","","","","","","","","","","","","","","","","","","","","",{"$f":"IFERROR(AVERAGEIFS(TabulaMācībuRezultāti[Rezultāts],TabulaMācībuRezultāti[Mācību priekšmets],Aprēķini!$C25,TabulaMācībuRezultāti[Tips],Aprēķini!AC$5)*Iestatījumi!E28,\"\")","v":""},{"$f":"IFERROR(AVERAGEIFS(TabulaMācībuRezultāti[Rezultāts],TabulaMācībuRezultāti[Mācību priekšmets],Aprēķini!$C25,TabulaMācībuRezultāti[Tips],Aprēķini!AD$5)*Iestatījumi!F28,\"\")","v":""},{"$f":"IFERROR(AVERAGEIFS(TabulaMācībuRezultāti[Rezultāts],TabulaMācībuRezultāti[Mācību priekšmets],Aprēķini!$C25,TabulaMācībuRezultāti[Tips],Aprēķini!AE$5)*Iestatījumi!G28,\"\")","v":""},{"$f":"IFERROR(AVERAGEIFS(TabulaMācībuRezultāti[Rezultāts],TabulaMācībuRezultāti[Mācību priekšmets],Aprēķini!$C25,TabulaMācībuRezultāti[Tips],Aprēķini!AF$5)*Iestatījumi!H28,\"\")","v":""},{"$f":"IFERROR(AVERAGEIFS(TabulaMācībuRezultāti[Rezultāts],TabulaMācībuRezultāti[Mācību priekšmets],Aprēķini!$C25,TabulaMācībuRezultāti[Tips],Aprēķini!AG$5)*Iestatījumi!I28,\"\")","v":""},{"$f":"IFERROR(AVERAGEIFS(TabulaMācībuRezultāti[Rezultāts],TabulaMācībuRezultāti[Mācību priekšmets],Aprēķini!$C25,TabulaMācībuRezultāti[Tips],Aprēķini!AH$5)*Iestatījumi!J28,\"\")","v":""},{"$f":"IFERROR(AVERAGEIFS(TabulaMācībuRezultāti[Rezultāts],TabulaMācībuRezultāti[Mācību priekšmets],Aprēķini!$C25,TabulaMācībuRezultāti[Tips],Aprēķini!AI$5)*Iestatījumi!K28,\"\")","v":""},0,{"$f":"SUMIFS(Iestatījumi!E28:K28,Aprēķini!AC25:AI25,\">0\")","v":0},"","",""]
[null,null,{"$f":"IF(Iestatījumi!C29=\"\",\"\",Iestatījumi!C29)","v":""},"","","","","","","","","","","","","","","","","","","","","","","","","",{"$f":"IFERROR(AVERAGEIFS(TabulaMācībuRezultāti[Rezultāts],TabulaMācībuRezultāti[Mācību priekšmets],Aprēķini!$C26,TabulaMācībuRezultāti[Tips],Aprēķini!AC$5)*Iestatījumi!E29,\"\")","v":""},{"$f":"IFERROR(AVERAGEIFS(TabulaMācībuRezultāti[Rezultāts],TabulaMācībuRezultāti[Mācību priekšmets],Aprēķini!$C26,TabulaMācībuRezultāti[Tips],Aprēķini!AD$5)*Iestatījumi!F29,\"\")","v":""},{"$f":"IFERROR(AVERAGEIFS(TabulaMācībuRezultāti[Rezultāts],TabulaMācībuRezultāti[Mācību priekšmets],Aprēķini!$C26,TabulaMācībuRezultāti[Tips],Aprēķini!AE$5)*Iestatījumi!G29,\"\")","v":""},{"$f":"IFERROR(AVERAGEIFS(TabulaMācībuRezultāti[Rezultāts],TabulaMācībuRezultāti[Mācību priekšmets],Aprēķini!$C26,TabulaMācībuRezultāti[Tips],Aprēķini!AF$5)*Iestatījumi!H29,\"\")","v":""},{"$f":"IFERROR(AVERAGEIFS(TabulaMācībuRezultāti[Rezultāts],TabulaMācībuRezultāti[Mācību priekšmets],Aprēķini!$C26,TabulaMācībuRezultāti[Tips],Aprēķini!AG$5)*Iestatījumi!I29,\"\")","v":""},{"$f":"IFERROR(AVERAGEIFS(TabulaMācībuRezultāti[Rezultāts],TabulaMācībuRezultāti[Mācību priekšmets],Aprēķini!$C26,TabulaMācībuRezultāti[Tips],Aprēķini!AH$5)*Iestatījumi!J29,\"\")","v":""},{"$f":"IFERROR(AVERAGEIFS(TabulaMācībuRezultāti[Rezultāts],TabulaMācībuRezultāti[Mācību priekšmets],Aprēķini!$C26,TabulaMācībuRezultāti[Tips],Aprēķini!AI$5)*Iestatījumi!K29,\"\")","v":""},0,{"$f":"SUMIFS(Iestatījumi!E29:K29,Aprēķini!AC26:AI26,\">0\")","v":0},"","",""]
[null,null,{"$f":"IF(Iestatījumi!C30=\"\",\"\",Iestatījumi!C30)","v":""},"","","","","","","","","","","","","","","","","","","","","","","","","",{"$f":"IFERROR(AVERAGEIFS(TabulaMācībuRezultāti[Rezultāts],TabulaMācībuRezultāti[Mācību priekšmets],Aprēķini!$C27,TabulaMācībuRezultāti[Tips],Aprēķini!AC$5)*Iestatījumi!E30,\"\")","v":""},{"$f":"IFERROR(AVERAGEIFS(TabulaMācībuRezultāti[Rezultāts],TabulaMācībuRezultāti[Mācību priekšmets],Aprēķini!$C27,TabulaMācībuRezultāti[Tips],Aprēķini!AD$5)*Iestatījumi!F30,\"\")","v":""},{"$f":"IFERROR(AVERAGEIFS(TabulaMācībuRezultāti[Rezultāts],TabulaMācībuRezultāti[Mācību priekšmets],Aprēķini!$C27,TabulaMācībuRezultāti[Tips],Aprēķini!AE$5)*Iestatījumi!G30,\"\")","v":""},{"$f":"IFERROR(AVERAGEIFS(TabulaMācībuRezultāti[Rezultāts],TabulaMācībuRezultāti[Mācību priekšmets],Aprēķini!$C27,TabulaMācībuRezultāti[Tips],Aprēķini!AF$5)*Iestatījumi!H30,\"\")","v":""},{"$f":"IFERROR(AVERAGEIFS(TabulaMācībuRezultāti[Rezultāts],TabulaMācībuRezultāti[Mācību priekšmets],Aprēķini!$C27,TabulaMācībuRezultāti[Tips],Aprēķini!AG$5)*Iestatījumi!I30,\"\")","v":""},{"$f":"IFERROR(AVERAGEIFS(TabulaMācībuRezultāti[Rezultāts],TabulaMācībuRezultāti[Mācību priekšmets],Aprēķini!$C27,TabulaMācībuRezultāti[Tips],Aprēķini!AH$5)*Iestatījumi!J30,\"\")","v":""},{"$f":"IFERROR(AVERAGEIFS(TabulaMācībuRezultāti[Rezultāts],TabulaMācībuRezultāti[Mācību priekšmets],Aprēķini!$C27,TabulaMācībuRezultāti[Tips],Aprēķini!AI$5)*Iestatījumi!K30,\"\")","v":""},0,{"$f":"SUMIFS(Iestatījumi!E30:K30,Aprēķini!AC27:AI27,\">0\")","v":0},"","",""]
[null,null,{"$f":"IF(Iestatījumi!C31=\"\",\"\",Iestatījumi!C31)","v":""},"","","","","","","","","","","","","","","","","","","","","","","","","",{"$f":"IFERROR(AVERAGEIFS(TabulaMācībuRezultāti[Rezultāts],TabulaMācībuRezultāti[Mācību priekšmets],Aprēķini!$C28,TabulaMācībuRezultāti[Tips],Aprēķini!AC$5)*Iestatījumi!E31,\"\")","v":""},{"$f":"IFERROR(AVERAGEIFS(TabulaMācībuRezultāti[Rezultāts],TabulaMācībuRezultāti[Mācību priekšmets],Aprēķini!$C28,TabulaMācībuRezultāti[Tips],Aprēķini!AD$5)*Iestatījumi!F31,\"\")","v":""},{"$f":"IFERROR(AVERAGEIFS(TabulaMācībuRezultāti[Rezultāts],TabulaMācībuRezultāti[Mācību priekšmets],Aprēķini!$C28,TabulaMācībuRezultāti[Tips],Aprēķini!AE$5)*Iestatījumi!G31,\"\")","v":""},{"$f":"IFERROR(AVERAGEIFS(TabulaMācībuRezultāti[Rezultāts],TabulaMācībuRezultāti[Mācību priekšmets],Aprēķini!$C28,TabulaMācībuRezultāti[Tips],Aprēķini!AF$5)*Iestatījumi!H31,\"\")","v":""},{"$f":"IFERROR(AVERAGEIFS(TabulaMācībuRezultāti[Rezultāts],TabulaMācībuRezultāti[Mācību priekšmets],Aprēķini!$C28,TabulaMācībuRezultāti[Tips],Aprēķini!AG$5)*Iestatījumi!I31,\"\")","v":""},{"$f":"IFERROR(AVERAGEIFS(TabulaMācībuRezultāti[Rezultāts],TabulaMācībuRezultāti[Mācību priekšmets],Aprēķini!$C28,TabulaMācībuRezultāti[Tips],Aprēķini!AH$5)*Iestatījumi!J31,\"\")","v":""},{"$f":"IFERROR(AVERAGEIFS(TabulaMācībuRezultāti[Rezultāts],TabulaMācībuRezultāti[Mācību priekšmets],Aprēķini!$C28,TabulaMācībuRezultāti[Tips],Aprēķini!AI$5)*Iestatījumi!K31,\"\")","v":""},0,{"$f":"SUMIFS(Iestatījumi!E31:K31,Aprēķini!AC28:AI28,\">0\")","v":0},"","",""]
[null,null,{"$f":"IF(Iestatījumi!C32=\"\",\"\",Iestatījumi!C32)","v":""},"","","","","","","","","","","","","","","","","","","","","","","","","",{"$f":"IFERROR(AVERAGEIFS(TabulaMācībuRezultāti[Rezultāts],TabulaMācībuRezultāti[Mācību priekšmets],Aprēķini!$C29,TabulaMācībuRezultāti[Tips],Aprēķini!AC$5)*Iestatījumi!E32,\"\")","v":""},{"$f":"IFERROR(AVERAGEIFS(TabulaMācībuRezultāti[Rezultāts],TabulaMācībuRezultāti[Mācību priekšmets],Aprēķini!$C29,TabulaMācībuRezultāti[Tips],Aprēķini!AD$5)*Iestatījumi!F32,\"\")","v":""},{"$f":"IFERROR(AVERAGEIFS(TabulaMācībuRezultāti[Rezultāts],TabulaMācībuRezultāti[Mācību priekšmets],Aprēķini!$C29,TabulaMācībuRezultāti[Tips],Aprēķini!AE$5)*Iestatījumi!G32,\"\")","v":""},{"$f":"IFERROR(AVERAGEIFS(TabulaMācībuRezultāti[Rezultāts],TabulaMācībuRezultāti[Mācību priekšmets],Aprēķini!$C29,TabulaMācībuRezultāti[Tips],Aprēķini!AF$5)*Iestatījumi!H32,\"\")","v":""},{"$f":"IFERROR(AVERAGEIFS(TabulaMācībuRezultāti[Rezultāts],TabulaMācībuRezultāti[Mācību priekšmets],Aprēķini!$C29,TabulaMācībuRezultāti[Tips],Aprēķini!AG$5)*Iestatījumi!I32,\"\")","v":""},{"$f":"IFERROR(AVERAGEIFS(TabulaMācībuRezultāti[Rezultāts],TabulaMācībuRezultāti[Mācību priekšmets],Aprēķini!$C29,TabulaMācībuRezultāti[Tips],Aprēķini!AH$5)*Iestatījumi!J32,\"\")","v":""},{"$f":"IFERROR(AVERAGEIFS(TabulaMācībuRezultāti[Rezultāts],TabulaMācībuRezultāti[Mācību priekšmets],Aprēķini!$C29,TabulaMācībuRezultāti[Tips],Aprēķini!AI$5)*Iestatījumi!K32,\"\")","v":""},0,{"$f":"SUMIFS(Iestatījumi!E32:K32,Aprēķini!AC29:AI29,\">0\")","v":0},"","",""]
[null,null,{"$f":"IF(Iestatījumi!C33=\"\",\"\",Iestatījumi!C33)","v":""},"","","","","","","","","","","","","","","","","","","","","","","","","",{"$f":"IFERROR(AVERAGEIFS(TabulaMācībuRezultāti[Rezultāts],TabulaMācībuRezultāti[Mācību priekšmets],Aprēķini!$C30,TabulaMācībuRezultāti[Tips],Aprēķini!AC$5)*Iestatījumi!E33,\"\")","v":""},{"$f":"IFERROR(AVERAGEIFS(TabulaMācībuRezultāti[Rezultāts],TabulaMācībuRezultāti[Mācību priekšmets],Aprēķini!$C30,TabulaMācībuRezultāti[Tips],Aprēķini!AD$5)*Iestatījumi!F33,\"\")","v":""},{"$f":"IFERROR(AVERAGEIFS(TabulaMācībuRezultāti[Rezultāts],TabulaMācībuRezultāti[Mācību priekšmets],Aprēķini!$C30,TabulaMācībuRezultāti[Tips],Aprēķini!AE$5)*Iestatījumi!G33,\"\")","v":""},{"$f":"IFERROR(AVERAGEIFS(TabulaMācībuRezultāti[Rezultāts],TabulaMācībuRezultāti[Mācību priekšmets],Aprēķini!$C30,TabulaMācībuRezultāti[Tips],Aprēķini!AF$5)*Iestatījumi!H33,\"\")","v":""},{"$f":"IFERROR(AVERAGEIFS(TabulaMācībuRezultāti[Rezultāts],TabulaMācībuRezultāti[Mācību priekšmets],Aprēķini!$C30,TabulaMācībuRezultāti[Tips],Aprēķini!AG$5)*Iestatījumi!I33,\"\")","v":""},{"$f":"IFERROR(AVERAGEIFS(TabulaMācībuRezultāti[Rezultāts],TabulaMācībuRezultāti[Mācību priekšmets],Aprēķini!$C30,TabulaMācībuRezultāti[Tips],Aprēķini!AH$5)*Iestatījumi!J33,\"\")","v":""},{"$f":"IFERROR(AVERAGEIFS(TabulaMācībuRezultāti[Rezultāts],TabulaMācībuRezultāti[Mācību priekšmets],Aprēķini!$C30,TabulaMācībuRezultāti[Tips],Aprēķini!AI$5)*Iestatījumi!K33,\"\")","v":""},0,{"$f":"SUMIFS(Iestatījumi!E33:K33,Aprēķini!AC30:AI30,\">0\")","v":0},"","",""]
[]
[]
[null,1,{"$f":"'Rezultātu izsekotājs'!C4&COUNTIF('Rezultātu izsekotājs'!$C$4:C4,'Rezultātu izsekotājs'!C4)","v":"Mūsdienu franču valoda1"}]
[null,2,{"$f":"'Rezultātu izsekotājs'!C5&COUNTIF('Rezultātu izsekotājs'!$C$4:C5,'Rezultātu izsekotājs'!C5)","v":"Uzlabotā Java programmēšana1"}]
[null,3,{"$f":"'Rezultātu izsekotājs'!C6&COUNTIF('Rezultātu izsekotājs'!$C$4:C6,'Rezultātu izsekotājs'!C6)","v":"Spāņu valoda1"}]
[null,4,{"$f":"'Rezultātu izsekotājs'!C7&COUNTIF('Rezultātu izsekotājs'!$C$4:C7,'Rezultātu izsekotājs'!C7)","v":"Teorētiskā fizika1"}]
[null,5,{"$f":"'Rezultātu izsekotājs'!C8&COUNTIF('Rezultātu izsekotājs'!$C$4:C8,'Rezultātu izsekotājs'!C8)","v":"Mūsdienu franču valoda2"}]
[null,6,{"$f":"'Rezultātu izsekotājs'!C9&COUNTIF('Rezultātu izsekotājs'!$C$4:C9,'Rezultātu izsekotājs'!C9)","v":"Mūsdienu franču valoda3"}]
[null,7,{"$f":"'Rezultātu izsekotājs'!C10&COUNTIF('Rezultātu izsekotājs'!$C$4:C10,'Rezultātu izsekotājs'!C10)","v":"Kompozīcija1"}]
[null,8,{"$f":"'Rezultātu izsekotājs'!C11&COUNTIF('Rezultātu izsekotājs'!$C$4:C11,'Rezultātu izsekotājs'!C11)","v":"Matemātika 11"}]
[null,9,{"$f":"'Rezultātu izsekotājs'!C12&COUNTIF('Rezultātu izsekotājs'!$C$4:C12,'Rezultātu izsekotājs'!C12)","v":"Matemātika 21"}]
[null,10,{"$f":"'Rezultātu izsekotājs'!C13&COUNTIF('Rezultātu izsekotājs'!$C$4:C14,'Rezultātu izsekotājs'!C13)","v":"Matemātika 12"}]
[null,11,{"$f":"'Rezultātu izsekotājs'!C14&COUNTIF('Rezultātu izsekotājs'!$C$4:C14,'Rezultātu izsekotājs'!C14)","v":"Matemātika 22"}]
[null,12,{"$f":"'Rezultātu izsekotājs'!C15&COUNTIF('Rezultātu izsekotājs'!$C$4:C15,'Rezultātu izsekotājs'!C15)","v":"0"}]
[null,13,{"$f":"'Rezultātu izsekotājs'!C16&COUNTIF('Rezultātu izsekotājs'!$C$4:C16,'Rezultātu izsekotājs'!C16)","v":"0"}]
[null,14,{"$f":"'Rezultātu izsekotājs'!C17&COUNTIF('Rezultātu izsekotājs'!$C$4:C17,'Rezultātu izsekotājs'!C17)","v":"0"}]
[null,15,{"$f":"'Rezultātu izsekotājs'!C18&COUNTIF('Rezultātu izsekotājs'!$C$4:C18,'Rezultātu izsekotājs'!C18)","v":"0"}]
[null,16,{"$f":"'Rezultātu izsekotājs'!C19&COUNTIF('Rezultātu izsekotājs'!$C$4:C19,'Rezultātu izsekotājs'!C19)","v":"0"}]
[null,17,{"$f":"'Rezultātu izsekotājs'!C20&COUNTIF('Rezultātu izsekotājs'!$C$4:C20,'Rezultātu izsekotājs'!C20)","v":"0"}]
[null,18,{"$f":"'Rezultātu izsekotājs'!C21&COUNTIF('Rezultātu izsekotājs'!$C$4:C21,'Rezultātu izsekotājs'!C21)","v":"0"}]
[null,19,{"$f":"'Rezultātu izsekotājs'!C22&COUNTIF('Rezultātu izsekotājs'!$C$4:C22,'Rezultātu izsekotājs'!C22)","v":"0"}]
[null,20,{"$f":"'Rezultātu izsekotājs'!C23&COUNTIF('Rezultātu izsekotājs'!$C$4:C23,'Rezultātu izsekotājs'!C23)","v":"0"}]
[null,21,{"$f":"'Rezultātu izsekotājs'!C24&COUNTIF('Rezultātu izsekotājs'!$C$4:C24,'Rezultātu izsekotājs'!C24)","v":"0"}]
[null,22,{"$f":"'Rezultātu izsekotājs'!C25&COUNTIF('Rezultātu izsekotājs'!$C$4:C25,'Rezultātu izsekotājs'!C25)","v":"0"}]
[null,23,{"$f":"'Rezultātu izsekotājs'!C26&COUNTIF('Rezultātu izsekotājs'!$C$4:C26,'Rezultātu izsekotājs'!C26)","v":"0"}]
[null,24,{"$f":"'Rezultātu izsekotājs'!C27&COUNTIF('Rezultātu izsekotājs'!$C$4:C27,'Rezultātu izsekotājs'!C27)","v":"0"}]
[null,25,{"$f":"'Rezultātu izsekotājs'!C28&COUNTIF('Rezultātu izsekotājs'!$C$4:C28,'Rezultātu izsekotājs'!C28)","v":"0"}]
[null,26,{"$f":"'Rezultātu izsekotājs'!C29&COUNTIF('Rezultātu izsekotājs'!$C$4:C29,'Rezultātu izsekotājs'!C29)","v":"0"}]
[null,27,{"$f":"'Rezultātu izsekotājs'!C30&COUNTIF('Rezultātu izsekotājs'!$C$4:C30,'Rezultātu izsekotājs'!C30)","v":"0"}]
[null,28,{"$f":"'Rezultātu izsekotājs'!C31&COUNTIF('Rezultātu izsekotājs'!$C$4:C31,'Rezultātu izsekotājs'!C31)","v":"0"}]
[null,29,{"$f":"'Rezultātu izsekotājs'!C32&COUNTIF('Rezultātu izsekotājs'!$C$4:C32,'Rezultātu izsekotājs'!C32)","v":"0"}]
[null,30,{"$f":"'Rezultātu izsekotājs'!C33&COUNTIF('Rezultātu izsekotājs'!$C$4:C33,'Rezultātu izsekotājs'!C33)","v":"0"}]
[null,31,{"$f":"'Rezultātu izsekotājs'!C34&COUNTIF('Rezultātu izsekotājs'!$C$4:C34,'Rezultātu izsekotājs'!C34)","v":"0"}]
[null,32,{"$f":"'Rezultātu izsekotājs'!C35&COUNTIF('Rezultātu izsekotājs'!$C$4:C35,'Rezultātu izsekotājs'!C35)","v":"0"}]
[null,33,{"$f":"'Rezultātu izsekotājs'!C36&COUNTIF('Rezultātu izsekotājs'!$C$4:C36,'Rezultātu izsekotājs'!C36)","v":"0"}]
[null,34,{"$f":"'Rezultātu izsekotājs'!C37&COUNTIF('Rezultātu izsekotājs'!$C$4:C37,'Rezultātu izsekotājs'!C37)","v":"0"}]
[null,35,{"$f":"'Rezultātu izsekotājs'!C38&COUNTIF('Rezultātu izsekotājs'!$C$4:C38,'Rezultātu izsekotājs'!C38)","v":"0"}]
[null,36,{"$f":"'Rezultātu izsekotājs'!C39&COUNTIF('Rezultātu izsekotājs'!$C$4:C39,'Rezultātu izsekotājs'!C39)","v":"0"}]
[null,37,{"$f":"'Rezultātu izsekotājs'!C40&COUNTIF('Rezultātu izsekotājs'!$C$4:C40,'Rezultātu izsekotājs'!C40)","v":"0"}]
[null,38,{"$f":"'Rezultātu izsekotājs'!C41&COUNTIF('Rezultātu izsekotājs'!$C$4:C41,'Rezultātu izsekotājs'!C41)","v":"0"}]
[null,39,{"$f":"'Rezultātu izsekotājs'!C42&COUNTIF('Rezultātu izsekotājs'!$C$4:C42,'Rezultātu izsekotājs'!C42)","v":"0"}]
[null,40,{"$f":"'Rezultātu izsekotājs'!C43&COUNTIF('Rezultātu izsekotājs'!$C$4:C43,'Rezultātu izsekotājs'!C43)","v":"0"}]
[null,41,{"$f":"'Rezultātu izsekotājs'!C44&COUNTIF('Rezultātu izsekotājs'!$C$4:C44,'Rezultātu izsekotājs'!C44)","v":"0"}]
[null,42,{"$f":"'Rezultātu izsekotājs'!C45&COUNTIF('Rezultātu izsekotājs'!$C$4:C45,'Rezultātu izsekotājs'!C45)","v":"0"}]
[null,43,{"$f":"'Rezultātu izsekotājs'!C46&COUNTIF('Rezultātu izsekotājs'!$C$4:C46,'Rezultātu izsekotājs'!C46)","v":"0"}]
[null,44,{"$f":"'Rezultātu izsekotājs'!C47&COUNTIF('Rezultātu izsekotājs'!$C$4:C47,'Rezultātu izsekotājs'!C47)","v":"0"}]
[null,45,{"$f":"'Rezultātu izsekotājs'!C48&COUNTIF('Rezultātu izsekotājs'!$C$4:C48,'Rezultātu izsekotājs'!C48)","v":"0"}]
[null,46,{"$f":"'Rezultātu izsekotājs'!C49&COUNTIF('Rezultātu izsekotājs'!$C$4:C49,'Rezultātu izsekotājs'!C49)","v":"0"}]
[null,47,{"$f":"'Rezultātu izsekotājs'!C50&COUNTIF('Rezultātu izsekotājs'!$C$4:C50,'Rezultātu izsekotājs'!C50)","v":"0"}]
[null,48,{"$f":"'Rezultātu izsekotājs'!C51&COUNTIF('Rezultātu izsekotājs'!$C$4:C51,'Rezultātu izsekotājs'!C51)","v":"0"}]
[null,49,{"$f":"'Rezultātu izsekotājs'!C52&COUNTIF('Rezultātu izsekotājs'!$C$4:C52,'Rezultātu izsekotājs'!C52)","v":"0"}]
[null,50,{"$f":"'Rezultātu izsekotājs'!C53&COUNTIF('Rezultātu izsekotājs'!$C$4:C53,'Rezultātu izsekotājs'!C53)","v":"0"}]
[null,51,{"$f":"'Rezultātu izsekotājs'!C54&COUNTIF('Rezultātu izsekotājs'!$C$4:C54,'Rezultātu izsekotājs'!C54)","v":"0"}]
[null,52,{"$f":"'Rezultātu izsekotājs'!C55&COUNTIF('Rezultātu izsekotājs'!$C$4:C55,'Rezultātu izsekotājs'!C55)","v":"0"}]
[null,53,{"$f":"'Rezultātu izsekotājs'!C56&COUNTIF('Rezultātu izsekotājs'!$C$4:C56,'Rezultātu izsekotājs'!C56)","v":"0"}]
[null,54,{"$f":"'Rezultātu izsekotājs'!C57&COUNTIF('Rezultātu izsekotājs'!$C$4:C57,'Rezultātu izsekotājs'!C57)","v":"0"}]
[null,55,{"$f":"'Rezultātu izsekotājs'!C58&COUNTIF('Rezultātu izsekotājs'!$C$4:C58,'Rezultātu izsekotājs'!C58)","v":"0"}]
[null,56,{"$f":"'Rezultātu izsekotājs'!C59&COUNTIF('Rezultātu izsekotājs'!$C$4:C59,'Rezultātu izsekotājs'!C59)","v":"0"}]
[null,57,{"$f":"'Rezultātu izsekotājs'!C60&COUNTIF('Rezultātu izsekotājs'!$C$4:C60,'Rezultātu izsekotājs'!C60)","v":"0"}]
[null,58,{"$f":"'Rezultātu izsekotājs'!C61&COUNTIF('Rezultātu izsekotājs'!$C$4:C61,'Rezultātu izsekotājs'!C61)","v":"0"}]
[null,59,{"$f":"'Rezultātu izsekotājs'!C62&COUNTIF('Rezultātu izsekotājs'!$C$4:C62,'Rezultātu izsekotājs'!C62)","v":"0"}]
[null,60,{"$f":"'Rezultātu izsekotājs'!C63&COUNTIF('Rezultātu izsekotājs'!$C$4:C63,'Rezultātu izsekotājs'!C63)","v":"0"}]
[null,61,{"$f":"'Rezultātu izsekotājs'!C64&COUNTIF('Rezultātu izsekotājs'!$C$4:C64,'Rezultātu izsekotājs'!C64)","v":"0"}]
[null,62,{"$f":"'Rezultātu izsekotājs'!C65&COUNTIF('Rezultātu izsekotājs'!$C$4:C65,'Rezultātu izsekotājs'!C65)","v":"0"}]
[null,63,{"$f":"'Rezultātu izsekotājs'!C66&COUNTIF('Rezultātu izsekotājs'!$C$4:C66,'Rezultātu izsekotājs'!C66)","v":"0"}]
[null,64,{"$f":"'Rezultātu izsekotājs'!C67&COUNTIF('Rezultātu izsekotājs'!$C$4:C67,'Rezultātu izsekotājs'!C67)","v":"0"}]
[null,65,{"$f":"'Rezultātu izsekotājs'!C68&COUNTIF('Rezultātu izsekotājs'!$C$4:C68,'Rezultātu izsekotājs'!C68)","v":"0"}]
[null,66,{"$f":"'Rezultātu izsekotājs'!C69&COUNTIF('Rezultātu izsekotājs'!$C$4:C69,'Rezultātu izsekotājs'!C69)","v":"0"}]
[null,67,{"$f":"'Rezultātu izsekotājs'!C70&COUNTIF('Rezultātu izsekotājs'!$C$4:C70,'Rezultātu izsekotājs'!C70)","v":"0"}]
[null,68,{"$f":"'Rezultātu izsekotājs'!C71&COUNTIF('Rezultātu izsekotājs'!$C$4:C71,'Rezultātu izsekotājs'!C71)","v":"0"}]
[null,69,{"$f":"'Rezultātu izsekotājs'!C72&COUNTIF('Rezultātu izsekotājs'!$C$4:C72,'Rezultātu izsekotājs'!C72)","v":"0"}]
[null,70,{"$f":"'Rezultātu izsekotājs'!C73&COUNTIF('Rezultātu izsekotājs'!$C$4:C73,'Rezultātu izsekotājs'!C73)","v":"0"}]
[null,71,{"$f":"'Rezultātu izsekotājs'!C74&COUNTIF('Rezultātu izsekotājs'!$C$4:C74,'Rezultātu izsekotājs'!C74)","v":"0"}]
[null,72,{"$f":"'Rezultātu izsekotājs'!C75&COUNTIF('Rezultātu izsekotājs'!$C$4:C75,'Rezultātu izsekotājs'!C75)","v":"0"}]
[null,73,{"$f":"'Rezultātu izsekotājs'!C76&COUNTIF('Rezultātu izsekotājs'!$C$4:C76,'Rezultātu izsekotājs'!C76)","v":"0"}]
[null,74,{"$f":"'Rezultātu izsekotājs'!C77&COUNTIF('Rezultātu izsekotājs'!$C$4:C77,'Rezultātu izsekotājs'!C77)","v":"0"}]
[null,75,{"$f":"'Rezultātu izsekotājs'!C78&COUNTIF('Rezultātu izsekotājs'!$C$4:C78,'Rezultātu izsekotājs'!C78)","v":"0"}]
[null,76,{"$f":"'Rezultātu izsekotājs'!C79&COUNTIF('Rezultātu izsekotājs'!$C$4:C79,'Rezultātu izsekotājs'!C79)","v":"0"}]
[null,77,{"$f":"'Rezultātu izsekotājs'!C80&COUNTIF('Rezultātu izsekotājs'!$C$4:C80,'Rezultātu izsekotājs'!C80)","v":"0"}]
[null,78,{"$f":"'Rezultātu izsekotājs'!C81&COUNTIF('Rezultātu izsekotājs'!$C$4:C81,'Rezultātu izsekotājs'!C81)","v":"0"}]
[null,79,{"$f":"'Rezultātu izsekotājs'!C82&COUNTIF('Rezultātu izsekotājs'!$C$4:C82,'Rezultātu izsekotājs'!C82)","v":"0"}]
[null,80,{"$f":"'Rezultātu izsekotājs'!C83&COUNTIF('Rezultātu izsekotājs'!$C$4:C83,'Rezultātu izsekotājs'!C83)","v":"0"}]
[null,81,{"$f":"'Rezultātu izsekotājs'!C84&COUNTIF('Rezultātu izsekotājs'!$C$4:C84,'Rezultātu izsekotājs'!C84)","v":"0"}]
[null,82,{"$f":"'Rezultātu izsekotājs'!C85&COUNTIF('Rezultātu izsekotājs'!$C$4:C85,'Rezultātu izsekotājs'!C85)","v":"0"}]
[null,83,{"$f":"'Rezultātu izsekotājs'!C86&COUNTIF('Rezultātu izsekotājs'!$C$4:C86,'Rezultātu izsekotājs'!C86)","v":"0"}]
[null,84,{"$f":"'Rezultātu izsekotājs'!C87&COUNTIF('Rezultātu izsekotājs'!$C$4:C87,'Rezultātu izsekotājs'!C87)","v":"0"}]
[null,85,{"$f":"'Rezultātu izsekotājs'!C88&COUNTIF('Rezultātu izsekotājs'!$C$4:C88,'Rezultātu izsekotājs'!C88)","v":"0"}]
[null,86,{"$f":"'Rezultātu izsekotājs'!C89&COUNTIF('Rezultātu izsekotājs'!$C$4:C89,'Rezultātu izsekotājs'!C89)","v":"0"}]
[null,87,{"$f":"'Rezultātu izsekotājs'!C90&COUNTIF('Rezultātu izsekotājs'!$C$4:C90,'Rezultātu izsekotājs'!C90)","v":"0"}]
[null,88,{"$f":"'Rezultātu izsekotājs'!C91&COUNTIF('Rezultātu izsekotājs'!$C$4:C91,'Rezultātu izsekotājs'!C91)","v":"0"}]
[null,89,{"$f":"'Rezultātu izsekotājs'!C92&COUNTIF('Rezultātu izsekotājs'!$C$4:C92,'Rezultātu izsekotājs'!C92)","v":"0"}]
[null,90,{"$f":"'Rezultātu izsekotājs'!C93&COUNTIF('Rezultātu izsekotājs'!$C$4:C93,'Rezultātu izsekotājs'!C93)","v":"0"}]
[null,91,{"$f":"'Rezultātu izsekotājs'!C94&COUNTIF('Rezultātu izsekotājs'!$C$4:C94,'Rezultātu izsekotājs'!C94)","v":"0"}]
[null,92,{"$f":"'Rezultātu izsekotājs'!C95&COUNTIF('Rezultātu izsekotājs'!$C$4:C95,'Rezultātu izsekotājs'!C95)","v":"0"}]
[null,93,{"$f":"'Rezultātu izsekotājs'!C96&COUNTIF('Rezultātu izsekotājs'!$C$4:C96,'Rezultātu izsekotājs'!C96)","v":"0"}]
[null,94,{"$f":"'Rezultātu izsekotājs'!C97&COUNTIF('Rezultātu izsekotājs'!$C$4:C97,'Rezultātu izsekotājs'!C97)","v":"0"}]
[null,95,{"$f":"'Rezultātu izsekotājs'!C98&COUNTIF('Rezultātu izsekotājs'!$C$4:C98,'Rezultātu izsekotājs'!C98)","v":"0"}]
[null,96,{"$f":"'Rezultātu izsekotājs'!C99&COUNTIF('Rezultātu izsekotājs'!$C$4:C99,'Rezultātu izsekotājs'!C99)","v":"0"}]
[null,97,{"$f":"'Rezultātu izsekotājs'!C100&COUNTIF('Rezultātu izsekotājs'!$C$4:C100,'Rezultātu izsekotājs'!C100)","v":"0"}]
[null,98,{"$f":"'Rezultātu izsekotājs'!C101&COUNTIF('Rezultātu izsekotājs'!$C$4:C101,'Rezultātu izsekotājs'!C101)","v":"0"}]
[null,99,{"$f":"'Rezultātu izsekotājs'!C102&COUNTIF('Rezultātu izsekotājs'!$C$4:C102,'Rezultātu izsekotājs'!C102)","v":"0"}]
[null,100,{"$f":"'Rezultātu izsekotājs'!C103&COUNTIF('Rezultātu izsekotājs'!$C$4:C103,'Rezultātu izsekotājs'!C103)","v":"0"}]
[null,101,{"$f":"'Rezultātu izsekotājs'!C104&COUNTIF('Rezultātu izsekotājs'!$C$4:C104,'Rezultātu izsekotājs'!C104)","v":"0"}]
[null,102,{"$f":"'Rezultātu izsekotājs'!C105&COUNTIF('Rezultātu izsekotājs'!$C$4:C105,'Rezultātu izsekotājs'!C105)","v":"0"}]
[null,103,{"$f":"'Rezultātu izsekotājs'!C106&COUNTIF('Rezultātu izsekotājs'!$C$4:C106,'Rezultātu izsekotājs'!C106)","v":"0"}]
[null,104,{"$f":"'Rezultātu izsekotājs'!C107&COUNTIF('Rezultātu izsekotājs'!$C$4:C107,'Rezultātu izsekotājs'!C107)","v":"0"}]
[null,105,{"$f":"'Rezultātu izsekotājs'!C108&COUNTIF('Rezultātu izsekotājs'!$C$4:C108,'Rezultātu izsekotājs'!C108)","v":"0"}]
[null,106,{"$f":"'Rezultātu izsekotājs'!C109&COUNTIF('Rezultātu izsekotājs'!$C$4:C109,'Rezultātu izsekotājs'!C109)","v":"0"}]
[null,107,{"$f":"'Rezultātu izsekotājs'!C110&COUNTIF('Rezultātu izsekotājs'!$C$4:C110,'Rezultātu izsekotājs'!C110)","v":"0"}]
[null,108,{"$f":"'Rezultātu izsekotājs'!C111&COUNTIF('Rezultātu izsekotājs'!$C$4:C111,'Rezultātu izsekotājs'!C111)","v":"0"}]
[null,109,{"$f":"'Rezultātu izsekotājs'!C112&COUNTIF('Rezultātu izsekotājs'!$C$4:C112,'Rezultātu izsekotājs'!C112)","v":"0"}]
[null,110,{"$f":"'Rezultātu izsekotājs'!C113&COUNTIF('Rezultātu izsekotājs'!$C$4:C113,'Rezultātu izsekotājs'!C113)","v":"0"}]
[null,111,{"$f":"'Rezultātu izsekotājs'!C114&COUNTIF('Rezultātu izsekotājs'!$C$4:C114,'Rezultātu izsekotājs'!C114)","v":"0"}]
[null,112,{"$f":"'Rezultātu izsekotājs'!C115&COUNTIF('Rezultātu izsekotājs'!$C$4:C115,'Rezultātu izsekotājs'!C115)","v":"0"}]
[null,113,{"$f":"'Rezultātu izsekotājs'!C116&COUNTIF('Rezultātu izsekotājs'!$C$4:C116,'Rezultātu izsekotājs'!C116)","v":"0"}]
[null,114,{"$f":"'Rezultātu izsekotājs'!C117&COUNTIF('Rezultātu izsekotājs'!$C$4:C117,'Rezultātu izsekotājs'!C117)","v":"0"}]
[null,115,{"$f":"'Rezultātu izsekotājs'!C118&COUNTIF('Rezultātu izsekotājs'!$C$4:C118,'Rezultātu izsekotājs'!C118)","v":"0"}]
[null,116,{"$f":"'Rezultātu izsekotājs'!C119&COUNTIF('Rezultātu izsekotājs'!$C$4:C119,'Rezultātu izsekotājs'!C119)","v":"0"}]
[null,117,{"$f":"'Rezultātu izsekotājs'!C120&COUNTIF('Rezultātu izsekotājs'!$C$4:C120,'Rezultātu izsekotājs'!C120)","v":"0"}]
[null,118,{"$f":"'Rezultātu izsekotājs'!C121&COUNTIF('Rezultātu izsekotājs'!$C$4:C121,'Rezultātu izsekotājs'!C121)","v":"0"}]
[null,119,{"$f":"'Rezultātu izsekotājs'!C122&COUNTIF('Rezultātu izsekotājs'!$C$4:C122,'Rezultātu izsekotājs'!C122)","v":"0"}]
[null,120,{"$f":"'Rezultātu izsekotājs'!C123&COUNTIF('Rezultātu izsekotājs'!$C$4:C123,'Rezultātu izsekotājs'!C123)","v":"0"}]
[null,121,{"$f":"'Rezultātu izsekotājs'!C124&COUNTIF('Rezultātu izsekotājs'!$C$4:C124,'Rezultātu izsekotājs'!C124)","v":"0"}]
[null,122,{"$f":"'Rezultātu izsekotājs'!C125&COUNTIF('Rezultātu izsekotājs'!$C$4:C125,'Rezultātu izsekotājs'!C125)","v":"0"}]
[null,123,{"$f":"'Rezultātu izsekotājs'!C126&COUNTIF('Rezultātu izsekotājs'!$C$4:C126,'Rezultātu izsekotājs'!C126)","v":"0"}]
[null,124,{"$f":"'Rezultātu izsekotājs'!C127&COUNTIF('Rezultātu izsekotājs'!$C$4:C127,'Rezultātu izsekotājs'!C127)","v":"0"}]
[null,125,{"$f":"'Rezultātu izsekotājs'!C128&COUNTIF('Rezultātu izsekotājs'!$C$4:C128,'Rezultātu izsekotājs'!C128)","v":"0"}]
[null,126,{"$f":"'Rezultātu izsekotājs'!C129&COUNTIF('Rezultātu izsekotājs'!$C$4:C129,'Rezultātu izsekotājs'!C129)","v":"0"}]
[null,127,{"$f":"'Rezultātu izsekotājs'!C130&COUNTIF('Rezultātu izsekotājs'!$C$4:C130,'Rezultātu izsekotājs'!C130)","v":"0"}]
[null,128,{"$f":"'Rezultātu izsekotājs'!C131&COUNTIF('Rezultātu izsekotājs'!$C$4:C131,'Rezultātu izsekotājs'!C131)","v":"0"}]
[null,129,{"$f":"'Rezultātu izsekotājs'!C132&COUNTIF('Rezultātu izsekotājs'!$C$4:C132,'Rezultātu izsekotājs'!C132)","v":"0"}]
[null,130,{"$f":"'Rezultātu izsekotājs'!C133&COUNTIF('Rezultātu izsekotājs'!$C$4:C133,'Rezultātu izsekotājs'!C133)","v":"0"}]
[null,131,{"$f":"'Rezultātu izsekotājs'!C134&COUNTIF('Rezultātu izsekotājs'!$C$4:C134,'Rezultātu izsekotājs'!C134)","v":"0"}]
[null,132,{"$f":"'Rezultātu izsekotājs'!C135&COUNTIF('Rezultātu izsekotājs'!$C$4:C135,'Rezultātu izsekotājs'!C135)","v":"0"}]
[null,133,{"$f":"'Rezultātu izsekotājs'!C136&COUNTIF('Rezultātu izsekotājs'!$C$4:C136,'Rezultātu izsekotājs'!C136)","v":"0"}]
[null,134,{"$f":"'Rezultātu izsekotājs'!C137&COUNTIF('Rezultātu izsekotājs'!$C$4:C137,'Rezultātu izsekotājs'!C137)","v":"0"}]
[null,135,{"$f":"'Rezultātu izsekotājs'!C138&COUNTIF('Rezultātu izsekotājs'!$C$4:C138,'Rezultātu izsekotājs'!C138)","v":"0"}]
[null,136,{"$f":"'Rezultātu izsekotājs'!C139&COUNTIF('Rezultātu izsekotājs'!$C$4:C139,'Rezultātu izsekotājs'!C139)","v":"0"}]
[null,137,{"$f":"'Rezultātu izsekotājs'!C140&COUNTIF('Rezultātu izsekotājs'!$C$4:C140,'Rezultātu izsekotājs'!C140)","v":"0"}]
[null,138,{"$f":"'Rezultātu izsekotājs'!C141&COUNTIF('Rezultātu izsekotājs'!$C$4:C141,'Rezultātu izsekotājs'!C141)","v":"0"}]
[null,139,{"$f":"'Rezultātu izsekotājs'!C142&COUNTIF('Rezultātu izsekotājs'!$C$4:C142,'Rezultātu izsekotājs'!C142)","v":"0"}]
[null,140,{"$f":"'Rezultātu izsekotājs'!C143&COUNTIF('Rezultātu izsekotājs'!$C$4:C143,'Rezultātu izsekotājs'!C143)","v":"0"}]
[null,141,{"$f":"'Rezultātu izsekotājs'!C144&COUNTIF('Rezultātu izsekotājs'!$C$4:C144,'Rezultātu izsekotājs'!C144)","v":"0"}]
[null,142,{"$f":"'Rezultātu izsekotājs'!C145&COUNTIF('Rezultātu izsekotājs'!$C$4:C145,'Rezultātu izsekotājs'!C145)","v":"0"}]
[null,143,{"$f":"'Rezultātu izsekotājs'!C146&COUNTIF('Rezultātu izsekotājs'!$C$4:C146,'Rezultātu izsekotājs'!C146)","v":"0"}]
[null,144,{"$f":"'Rezultātu izsekotājs'!C147&COUNTIF('Rezultātu izsekotājs'!$C$4:C147,'Rezultātu izsekotājs'!C147)","v":"0"}]
[null,145,{"$f":"'Rezultātu izsekotājs'!C148&COUNTIF('Rezultātu izsekotājs'!$C$4:C148,'Rezultātu izsekotājs'!C148)","v":"0"}]
[null,146,{"$f":"'Rezultātu izsekotājs'!C149&COUNTIF('Rezultātu izsekotājs'!$C$4:C149,'Rezultātu izsekotājs'!C149)","v":"0"}]
[null,147,{"$f":"'Rezultātu izsekotājs'!C150&COUNTIF('Rezultātu izsekotājs'!$C$4:C150,'Rezultātu izsekotājs'!C150)","v":"0"}]
[null,148,{"$f":"'Rezultātu izsekotājs'!C151&COUNTIF('Rezultātu izsekotājs'!$C$4:C151,'Rezultātu izsekotājs'!C151)","v":"0"}]
[null,149,{"$f":"'Rezultātu izsekotājs'!C152&COUNTIF('Rezultātu izsekotājs'!$C$4:C152,'Rezultātu izsekotājs'!C152)","v":"0"}]
[null,150,{"$f":"'Rezultātu izsekotājs'!C153&COUNTIF('Rezultātu izsekotājs'!$C$4:C153,'Rezultātu izsekotājs'!C153)","v":"0"}]
[null,151,{"$f":"'Rezultātu izsekotājs'!C154&COUNTIF('Rezultātu izsekotājs'!$C$4:C154,'Rezultātu izsekotājs'!C154)","v":"0"}]
[null,152,{"$f":"'Rezultātu izsekotājs'!C155&COUNTIF('Rezultātu izsekotājs'!$C$4:C155,'Rezultātu izsekotājs'!C155)","v":"0"}]
[null,153,{"$f":"'Rezultātu izsekotājs'!C156&COUNTIF('Rezultātu izsekotājs'!$C$4:C156,'Rezultātu izsekotājs'!C156)","v":"0"}]
[null,154,{"$f":"'Rezultātu izsekotājs'!C157&COUNTIF('Rezultātu izsekotājs'!$C$4:C157,'Rezultātu izsekotājs'!C157)","v":"0"}]
[null,155,{"$f":"'Rezultātu izsekotājs'!C158&COUNTIF('Rezultātu izsekotājs'!$C$4:C158,'Rezultātu izsekotājs'!C158)","v":"0"}]
[null,156,{"$f":"'Rezultātu izsekotājs'!C159&COUNTIF('Rezultātu izsekotājs'!$C$4:C159,'Rezultātu izsekotājs'!C159)","v":"0"}]
[null,157,{"$f":"'Rezultātu izsekotājs'!C160&COUNTIF('Rezultātu izsekotājs'!$C$4:C160,'Rezultātu izsekotājs'!C160)","v":"0"}]
[null,158,{"$f":"'Rezultātu izsekotājs'!C161&COUNTIF('Rezultātu izsekotājs'!$C$4:C161,'Rezultātu izsekotājs'!C161)","v":"0"}]
[null,159,{"$f":"'Rezultātu izsekotājs'!C162&COUNTIF('Rezultātu izsekotājs'!$C$4:C162,'Rezultātu izsekotājs'!C162)","v":"0"}]
[null,160,{"$f":"'Rezultātu izsekotājs'!C163&COUNTIF('Rezultātu izsekotājs'!$C$4:C163,'Rezultātu izsekotājs'!C163)","v":"0"}]
[null,161,{"$f":"'Rezultātu izsekotājs'!C164&COUNTIF('Rezultātu izsekotājs'!$C$4:C164,'Rezultātu izsekotājs'!C164)","v":"0"}]
[null,162,{"$f":"'Rezultātu izsekotājs'!C165&COUNTIF('Rezultātu izsekotājs'!$C$4:C165,'Rezultātu izsekotājs'!C165)","v":"0"}]
[null,163,{"$f":"'Rezultātu izsekotājs'!C166&COUNTIF('Rezultātu izsekotājs'!$C$4:C166,'Rezultātu izsekotājs'!C166)","v":"0"}]
[null,164,{"$f":"'Rezultātu izsekotājs'!C167&COUNTIF('Rezultātu izsekotājs'!$C$4:C167,'Rezultātu izsekotājs'!C167)","v":"0"}]
[null,165,{"$f":"'Rezultātu izsekotājs'!C168&COUNTIF('Rezultātu izsekotājs'!$C$4:C168,'Rezultātu izsekotājs'!C168)","v":"0"}]
[null,166,{"$f":"'Rezultātu izsekotājs'!C169&COUNTIF('Rezultātu izsekotājs'!$C$4:C169,'Rezultātu izsekotājs'!C169)","v":"0"}]
[null,167,{"$f":"'Rezultātu izsekotājs'!C170&COUNTIF('Rezultātu izsekotājs'!$C$4:C170,'Rezultātu izsekotājs'!C170)","v":"0"}]
[null,168,{"$f":"'Rezultātu izsekotājs'!C171&COUNTIF('Rezultātu izsekotājs'!$C$4:C171,'Rezultātu izsekotājs'!C171)","v":"0"}]
[null,169,{"$f":"'Rezultātu izsekotājs'!C172&COUNTIF('Rezultātu izsekotājs'!$C$4:C172,'Rezultātu izsekotājs'!C172)","v":"0"}]
[null,170,{"$f":"'Rezultātu izsekotājs'!C173&COUNTIF('Rezultātu izsekotājs'!$C$4:C173,'Rezultātu izsekotājs'!C173)","v":"0"}]
[null,171,{"$f":"'Rezultātu izsekotājs'!C174&COUNTIF('Rezultātu izsekotājs'!$C$4:C174,'Rezultātu izsekotājs'!C174)","v":"0"}]
[null,172,{"$f":"'Rezultātu izsekotājs'!C175&COUNTIF('Rezultātu izsekotājs'!$C$4:C175,'Rezultātu izsekotājs'!C175)","v":"0"}]
[null,173,{"$f":"'Rezultātu izsekotājs'!C176&COUNTIF('Rezultātu izsekotājs'!$C$4:C176,'Rezultātu izsekotājs'!C176)","v":"0"}]
[null,174,{"$f":"'Rezultātu izsekotājs'!C177&COUNTIF('Rezultātu izsekotājs'!$C$4:C177,'Rezultātu izsekotājs'!C177)","v":"0"}]
[null,175,{"$f":"'Rezultātu izsekotājs'!C178&COUNTIF('Rezultātu izsekotājs'!$C$4:C178,'Rezultātu izsekotājs'!C178)","v":"0"}]
[null,176,{"$f":"'Rezultātu izsekotājs'!C179&COUNTIF('Rezultātu izsekotājs'!$C$4:C179,'Rezultātu izsekotājs'!C179)","v":"0"}]
[null,177,{"$f":"'Rezultātu izsekotājs'!C180&COUNTIF('Rezultātu izsekotājs'!$C$4:C180,'Rezultātu izsekotājs'!C180)","v":"0"}]
[null,178,{"$f":"'Rezultātu izsekotājs'!C181&COUNTIF('Rezultātu izsekotājs'!$C$4:C181,'Rezultātu izsekotājs'!C181)","v":"0"}]
[null,179,{"$f":"'Rezultātu izsekotājs'!C182&COUNTIF('Rezultātu izsekotājs'!$C$4:C182,'Rezultātu izsekotājs'!C182)","v":"0"}]
[null,180,{"$f":"'Rezultātu izsekotājs'!C183&COUNTIF('Rezultātu izsekotājs'!$C$4:C183,'Rezultātu izsekotājs'!C183)","v":"0"}]
[null,181,{"$f":"'Rezultātu izsekotājs'!C184&COUNTIF('Rezultātu izsekotājs'!$C$4:C184,'Rezultātu izsekotājs'!C184)","v":"0"}]
[null,182,{"$f":"'Rezultātu izsekotājs'!C185&COUNTIF('Rezultātu izsekotājs'!$C$4:C185,'Rezultātu izsekotājs'!C185)","v":"0"}]
[null,183,{"$f":"'Rezultātu izsekotājs'!C186&COUNTIF('Rezultātu izsekotājs'!$C$4:C186,'Rezultātu izsekotājs'!C186)","v":"0"}]
[null,184,{"$f":"'Rezultātu izsekotājs'!C187&COUNTIF('Rezultātu izsekotājs'!$C$4:C187,'Rezultātu izsekotājs'!C187)","v":"0"}]
[null,185,{"$f":"'Rezultātu izsekotājs'!C188&COUNTIF('Rezultātu izsekotājs'!$C$4:C188,'Rezultātu izsekotājs'!C188)","v":"0"}]
[null,186,{"$f":"'Rezultātu izsekotājs'!C189&COUNTIF('Rezultātu izsekotājs'!$C$4:C189,'Rezultātu izsekotājs'!C189)","v":"0"}]
[null,187,{"$f":"'Rezultātu izsekotājs'!C190&COUNTIF('Rezultātu izsekotājs'!$C$4:C190,'Rezultātu izsekotājs'!C190)","v":"0"}]
[null,188,{"$f":"'Rezultātu izsekotājs'!C191&COUNTIF('Rezultātu izsekotājs'!$C$4:C191,'Rezultātu izsekotājs'!C191)","v":"0"}]
[null,189,{"$f":"'Rezultātu izsekotājs'!C192&COUNTIF('Rezultātu izsekotājs'!$C$4:C192,'Rezultātu izsekotājs'!C192)","v":"0"}]
[null,190,{"$f":"'Rezultātu izsekotājs'!C193&COUNTIF('Rezultātu izsekotājs'!$C$4:C193,'Rezultātu izsekotājs'!C193)","v":"0"}]
[null,191,{"$f":"'Rezultātu izsekotājs'!C194&COUNTIF('Rezultātu izsekotājs'!$C$4:C194,'Rezultātu izsekotājs'!C194)","v":"0"}]
[null,192,{"$f":"'Rezultātu izsekotājs'!C195&COUNTIF('Rezultātu izsekotājs'!$C$4:C195,'Rezultātu izsekotājs'!C195)","v":"0"}]
[null,193,{"$f":"'Rezultātu izsekotājs'!C196&COUNTIF('Rezultātu izsekotājs'!$C$4:C196,'Rezultātu izsekotājs'!C196)","v":"0"}]
[null,194,{"$f":"'Rezultātu izsekotājs'!C197&COUNTIF('Rezultātu izsekotājs'!$C$4:C197,'Rezultātu izsekotājs'!C197)","v":"0"}]
[null,195,{"$f":"'Rezultātu izsekotājs'!C198&COUNTIF('Rezultātu izsekotājs'!$C$4:C198,'Rezultātu izsekotājs'!C198)","v":"0"}]
[null,196,{"$f":"'Rezultātu izsekotājs'!C199&COUNTIF('Rezultātu izsekotājs'!$C$4:C199,'Rezultātu izsekotājs'!C199)","v":"0"}]
[null,197,{"$f":"'Rezultātu izsekotājs'!C200&COUNTIF('Rezultātu izsekotājs'!$C$4:C200,'Rezultātu izsekotājs'!C200)","v":"0"}]
[null,198,{"$f":"'Rezultātu izsekotājs'!C201&COUNTIF('Rezultātu izsekotājs'!$C$4:C201,'Rezultātu izsekotājs'!C201)","v":"0"}]
[null,199,{"$f":"'Rezultātu izsekotājs'!C202&COUNTIF('Rezultātu izsekotājs'!$C$4:C202,'Rezultātu izsekotājs'!C202)","v":"0"}]
[null,200,{"$f":"'Rezultātu izsekotājs'!C203&COUNTIF('Rezultātu izsekotājs'!$C$4:C203,'Rezultātu izsekotājs'!C203)","v":"0"}]
[null,201,{"$f":"'Rezultātu izsekotājs'!C204&COUNTIF('Rezultātu izsekotājs'!$C$4:C204,'Rezultātu izsekotājs'!C204)","v":"0"}]
[null,202,{"$f":"'Rezultātu izsekotājs'!C205&COUNTIF('Rezultātu izsekotājs'!$C$4:C205,'Rezultātu izsekotājs'!C205)","v":"0"}]
[null,203,{"$f":"'Rezultātu izsekotājs'!C206&COUNTIF('Rezultātu izsekotājs'!$C$4:C206,'Rezultātu izsekotājs'!C206)","v":"0"}]
[null,204,{"$f":"'Rezultātu izsekotājs'!C207&COUNTIF('Rezultātu izsekotājs'!$C$4:C207,'Rezultātu izsekotājs'!C207)","v":"0"}]
[null,205,{"$f":"'Rezultātu izsekotājs'!C208&COUNTIF('Rezultātu izsekotājs'!$C$4:C208,'Rezultātu izsekotājs'!C208)","v":"0"}]
[null,206,{"$f":"'Rezultātu izsekotājs'!C209&COUNTIF('Rezultātu izsekotājs'!$C$4:C209,'Rezultātu izsekotājs'!C209)","v":"0"}]
[null,207,{"$f":"'Rezultātu izsekotājs'!C210&COUNTIF('Rezultātu izsekotājs'!$C$4:C210,'Rezultātu izsekotājs'!C210)","v":"0"}]
[null,208,{"$f":"'Rezultātu izsekotājs'!C211&COUNTIF('Rezultātu izsekotājs'!$C$4:C211,'Rezultātu izsekotājs'!C211)","v":"0"}]
[null,209,{"$f":"'Rezultātu izsekotājs'!C212&COUNTIF('Rezultātu izsekotājs'!$C$4:C212,'Rezultātu izsekotājs'!C212)","v":"0"}]
[null,210,{"$f":"'Rezultātu izsekotājs'!C213&COUNTIF('Rezultātu izsekotājs'!$C$4:C213,'Rezultātu izsekotājs'!C213)","v":"0"}]
[null,211,{"$f":"'Rezultātu izsekotājs'!C214&COUNTIF('Rezultātu izsekotājs'!$C$4:C214,'Rezultātu izsekotājs'!C214)","v":"0"}]
[null,212,{"$f":"'Rezultātu izsekotājs'!C215&COUNTIF('Rezultātu izsekotājs'!$C$4:C215,'Rezultātu izsekotājs'!C215)","v":"0"}]
[null,213,{"$f":"'Rezultātu izsekotājs'!C216&COUNTIF('Rezultātu izsekotājs'!$C$4:C216,'Rezultātu izsekotājs'!C216)","v":"0"}]
[null,214,{"$f":"'Rezultātu izsekotājs'!C217&COUNTIF('Rezultātu izsekotājs'!$C$4:C217,'Rezultātu izsekotājs'!C217)","v":"0"}]
[null,215,{"$f":"'Rezultātu izsekotājs'!C218&COUNTIF('Rezultātu izsekotājs'!$C$4:C218,'Rezultātu izsekotājs'!C218)","v":"0"}]
[null,216,{"$f":"'Rezultātu izsekotājs'!C219&COUNTIF('Rezultātu izsekotājs'!$C$4:C219,'Rezultātu izsekotājs'!C219)","v":"0"}]
[null,217,{"$f":"'Rezultātu izsekotājs'!C220&COUNTIF('Rezultātu izsekotājs'!$C$4:C220,'Rezultātu izsekotājs'!C220)","v":"0"}]
[null,218,{"$f":"'Rezultātu izsekotājs'!C221&COUNTIF('Rezultātu izsekotājs'!$C$4:C221,'Rezultātu izsekotājs'!C221)","v":"0"}]
[null,219,{"$f":"'Rezultātu izsekotājs'!C222&COUNTIF('Rezultātu izsekotājs'!$C$4:C222,'Rezultātu izsekotājs'!C222)","v":"0"}]
[null,220,{"$f":"'Rezultātu izsekotājs'!C223&COUNTIF('Rezultātu izsekotājs'!$C$4:C223,'Rezultātu izsekotājs'!C223)","v":"0"}]
[null,221,{"$f":"'Rezultātu izsekotājs'!C224&COUNTIF('Rezultātu izsekotājs'!$C$4:C224,'Rezultātu izsekotājs'!C224)","v":"0"}]
[null,222,{"$f":"'Rezultātu izsekotājs'!C225&COUNTIF('Rezultātu izsekotājs'!$C$4:C225,'Rezultātu izsekotājs'!C225)","v":"0"}]
[null,223,{"$f":"'Rezultātu izsekotājs'!C226&COUNTIF('Rezultātu izsekotājs'!$C$4:C226,'Rezultātu izsekotājs'!C226)","v":"0"}]
[null,224,{"$f":"'Rezultātu izsekotājs'!C227&COUNTIF('Rezultātu izsekotājs'!$C$4:C227,'Rezultātu izsekotājs'!C227)","v":"0"}]
[null,225,{"$f":"'Rezultātu izsekotājs'!C228&COUNTIF('Rezultātu izsekotājs'!$C$4:C228,'Rezultātu izsekotājs'!C228)","v":"0"}]
[null,226,{"$f":"'Rezultātu izsekotājs'!C229&COUNTIF('Rezultātu izsekotājs'!$C$4:C229,'Rezultātu izsekotājs'!C229)","v":"0"}]
[null,227,{"$f":"'Rezultātu izsekotājs'!C230&COUNTIF('Rezultātu izsekotājs'!$C$4:C230,'Rezultātu izsekotājs'!C230)","v":"0"}]
[null,228,{"$f":"'Rezultātu izsekotājs'!C231&COUNTIF('Rezultātu izsekotājs'!$C$4:C231,'Rezultātu izsekotājs'!C231)","v":"0"}]
[null,229,{"$f":"'Rezultātu izsekotājs'!C232&COUNTIF('Rezultātu izsekotājs'!$C$4:C232,'Rezultātu izsekotājs'!C232)","v":"0"}]
[null,230,{"$f":"'Rezultātu izsekotājs'!C233&COUNTIF('Rezultātu izsekotājs'!$C$4:C233,'Rezultātu izsekotājs'!C233)","v":"0"}]
[null,231,{"$f":"'Rezultātu izsekotājs'!C234&COUNTIF('Rezultātu izsekotājs'!$C$4:C234,'Rezultātu izsekotājs'!C234)","v":"0"}]
[null,232,{"$f":"'Rezultātu izsekotājs'!C235&COUNTIF('Rezultātu izsekotājs'!$C$4:C235,'Rezultātu izsekotājs'!C235)","v":"0"}]
[null,233,{"$f":"'Rezultātu izsekotājs'!C236&COUNTIF('Rezultātu izsekotājs'!$C$4:C236,'Rezultātu izsekotājs'!C236)","v":"0"}]
[null,234,{"$f":"'Rezultātu izsekotājs'!C237&COUNTIF('Rezultātu izsekotājs'!$C$4:C237,'Rezultātu izsekotājs'!C237)","v":"0"}]
[null,235,{"$f":"'Rezultātu izsekotājs'!C238&COUNTIF('Rezultātu izsekotājs'!$C$4:C238,'Rezultātu izsekotājs'!C238)","v":"0"}]
[null,236,{"$f":"'Rezultātu izsekotājs'!C239&COUNTIF('Rezultātu izsekotājs'!$C$4:C239,'Rezultātu izsekotājs'!C239)","v":"0"}]
[null,237,{"$f":"'Rezultātu izsekotājs'!C240&COUNTIF('Rezultātu izsekotājs'!$C$4:C240,'Rezultātu izsekotājs'!C240)","v":"0"}]
[null,238,{"$f":"'Rezultātu izsekotājs'!C241&COUNTIF('Rezultātu izsekotājs'!$C$4:C241,'Rezultātu izsekotājs'!C241)","v":"0"}]
[null,239,{"$f":"'Rezultātu izsekotājs'!C242&COUNTIF('Rezultātu izsekotājs'!$C$4:C242,'Rezultātu izsekotājs'!C242)","v":"0"}]
[null,240,{"$f":"'Rezultātu izsekotājs'!C243&COUNTIF('Rezultātu izsekotājs'!$C$4:C243,'Rezultātu izsekotājs'!C243)","v":"0"}]
[null,241,{"$f":"'Rezultātu izsekotājs'!C244&COUNTIF('Rezultātu izsekotājs'!$C$4:C244,'Rezultātu izsekotājs'!C244)","v":"0"}]
[null,242,{"$f":"'Rezultātu izsekotājs'!C245&COUNTIF('Rezultātu izsekotājs'!$C$4:C245,'Rezultātu izsekotājs'!C245)","v":"0"}]
[null,243,{"$f":"'Rezultātu izsekotājs'!C246&COUNTIF('Rezultātu izsekotājs'!$C$4:C246,'Rezultātu izsekotājs'!C246)","v":"0"}]
[null,244,{"$f":"'Rezultātu izsekotājs'!C247&COUNTIF('Rezultātu izsekotājs'!$C$4:C247,'Rezultātu izsekotājs'!C247)","v":"0"}]
[null,245,{"$f":"'Rezultātu izsekotājs'!C248&COUNTIF('Rezultātu izsekotājs'!$C$4:C248,'Rezultātu izsekotājs'!C248)","v":"0"}]
[null,246,{"$f":"'Rezultātu izsekotājs'!C249&COUNTIF('Rezultātu izsekotājs'!$C$4:C249,'Rezultātu izsekotājs'!C249)","v":"0"}]
[null,247,{"$f":"'Rezultātu izsekotājs'!C250&COUNTIF('Rezultātu izsekotājs'!$C$4:C250,'Rezultātu izsekotājs'!C250)","v":"0"}]
[null,248,{"$f":"'Rezultātu izsekotājs'!C251&COUNTIF('Rezultātu izsekotājs'!$C$4:C251,'Rezultātu izsekotājs'!C251)","v":"0"}]
[null,249,{"$f":"'Rezultātu izsekotājs'!C252&COUNTIF('Rezultātu izsekotājs'!$C$4:C252,'Rezultātu izsekotājs'!C252)","v":"0"}]
[null,250,{"$f":"'Rezultātu izsekotājs'!C253&COUNTIF('Rezultātu izsekotājs'!$C$4:C253,'Rezultātu izsekotājs'!C253)","v":"0"}]
[null,251,{"$f":"'Rezultātu izsekotājs'!C254&COUNTIF('Rezultātu izsekotājs'!$C$4:C254,'Rezultātu izsekotājs'!C254)","v":"0"}]
[null,252,{"$f":"'Rezultātu izsekotājs'!C255&COUNTIF('Rezultātu izsekotājs'!$C$4:C255,'Rezultātu izsekotājs'!C255)","v":"0"}]
[null,253,{"$f":"'Rezultātu izsekotājs'!C256&COUNTIF('Rezultātu izsekotājs'!$C$4:C256,'Rezultātu izsekotājs'!C256)","v":"0"}]
[null,254,{"$f":"'Rezultātu izsekotājs'!C257&COUNTIF('Rezultātu izsekotājs'!$C$4:C257,'Rezultātu izsekotājs'!C257)","v":"0"}]
[null,255,{"$f":"'Rezultātu izsekotājs'!C258&COUNTIF('Rezultātu izsekotājs'!$C$4:C258,'Rezultātu izsekotājs'!C258)","v":"0"}]
[null,256,{"$f":"'Rezultātu izsekotājs'!C259&COUNTIF('Rezultātu izsekotājs'!$C$4:C259,'Rezultātu izsekotājs'!C259)","v":"0"}]
[null,257,{"$f":"'Rezultātu izsekotājs'!C260&COUNTIF('Rezultātu izsekotājs'!$C$4:C260,'Rezultātu izsekotājs'!C260)","v":"0"}]
[null,258,{"$f":"'Rezultātu izsekotājs'!C261&COUNTIF('Rezultātu izsekotājs'!$C$4:C261,'Rezultātu izsekotājs'!C261)","v":"0"}]
[null,259,{"$f":"'Rezultātu izsekotājs'!C262&COUNTIF('Rezultātu izsekotājs'!$C$4:C262,'Rezultātu izsekotājs'!C262)","v":"0"}]
[null,260,{"$f":"'Rezultātu izsekotājs'!C263&COUNTIF('Rezultātu izsekotājs'!$C$4:C263,'Rezultātu izsekotājs'!C263)","v":"0"}]
[null,261,{"$f":"'Rezultātu izsekotājs'!C264&COUNTIF('Rezultātu izsekotājs'!$C$4:C264,'Rezultātu izsekotājs'!C264)","v":"0"}]
[null,262,{"$f":"'Rezultātu izsekotājs'!C265&COUNTIF('Rezultātu izsekotājs'!$C$4:C265,'Rezultātu izsekotājs'!C265)","v":"0"}]
[null,263,{"$f":"'Rezultātu izsekotājs'!C266&COUNTIF('Rezultātu izsekotājs'!$C$4:C266,'Rezultātu izsekotājs'!C266)","v":"0"}]
[null,264,{"$f":"'Rezultātu izsekotājs'!C267&COUNTIF('Rezultātu izsekotājs'!$C$4:C267,'Rezultātu izsekotājs'!C267)","v":"0"}]
[null,265,{"$f":"'Rezultātu izsekotājs'!C268&COUNTIF('Rezultātu izsekotājs'!$C$4:C268,'Rezultātu izsekotājs'!C268)","v":"0"}]
[null,266,{"$f":"'Rezultātu izsekotājs'!C269&COUNTIF('Rezultātu izsekotājs'!$C$4:C269,'Rezultātu izsekotājs'!C269)","v":"0"}]
[null,267,{"$f":"'Rezultātu izsekotājs'!C270&COUNTIF('Rezultātu izsekotājs'!$C$4:C270,'Rezultātu izsekotājs'!C270)","v":"0"}]
[null,268,{"$f":"'Rezultātu izsekotājs'!C271&COUNTIF('Rezultātu izsekotājs'!$C$4:C271,'Rezultātu izsekotājs'!C271)","v":"0"}]
[null,269,{"$f":"'Rezultātu izsekotājs'!C272&COUNTIF('Rezultātu izsekotājs'!$C$4:C272,'Rezultātu izsekotājs'!C272)","v":"0"}]
[null,270,{"$f":"'Rezultātu izsekotājs'!C273&COUNTIF('Rezultātu izsekotājs'!$C$4:C273,'Rezultātu izsekotājs'!C273)","v":"0"}]
[null,271,{"$f":"'Rezultātu izsekotājs'!C274&COUNTIF('Rezultātu izsekotājs'!$C$4:C274,'Rezultātu izsekotājs'!C274)","v":"0"}]
[null,272,{"$f":"'Rezultātu izsekotājs'!C275&COUNTIF('Rezultātu izsekotājs'!$C$4:C275,'Rezultātu izsekotājs'!C275)","v":"0"}]
[null,273,{"$f":"'Rezultātu izsekotājs'!C276&COUNTIF('Rezultātu izsekotājs'!$C$4:C276,'Rezultātu izsekotājs'!C276)","v":"0"}]
[null,274,{"$f":"'Rezultātu izsekotājs'!C277&COUNTIF('Rezultātu izsekotājs'!$C$4:C277,'Rezultātu izsekotājs'!C277)","v":"0"}]
[null,275,{"$f":"'Rezultātu izsekotājs'!C278&COUNTIF('Rezultātu izsekotājs'!$C$4:C278,'Rezultātu izsekotājs'!C278)","v":"0"}]
[null,276,{"$f":"'Rezultātu izsekotājs'!C279&COUNTIF('Rezultātu izsekotājs'!$C$4:C279,'Rezultātu izsekotājs'!C279)","v":"0"}]
[null,277,{"$f":"'Rezultātu izsekotājs'!C280&COUNTIF('Rezultātu izsekotājs'!$C$4:C280,'Rezultātu izsekotājs'!C280)","v":"0"}]
[null,278,{"$f":"'Rezultātu izsekotājs'!C281&COUNTIF('Rezultātu izsekotājs'!$C$4:C281,'Rezultātu izsekotājs'!C281)","v":"0"}]
[null,279,{"$f":"'Rezultātu izsekotājs'!C282&COUNTIF('Rezultātu izsekotājs'!$C$4:C282,'Rezultātu izsekotājs'!C282)","v":"0"}]
[null,280,{"$f":"'Rezultātu izsekotājs'!C283&COUNTIF('Rezultātu izsekotājs'!$C$4:C283,'Rezultātu izsekotājs'!C283)","v":"0"}]
[null,281,{"$f":"'Rezultātu izsekotājs'!C284&COUNTIF('Rezultātu izsekotājs'!$C$4:C284,'Rezultātu izsekotājs'!C284)","v":"0"}]
[null,282,{"$f":"'Rezultātu izsekotājs'!C285&COUNTIF('Rezultātu izsekotājs'!$C$4:C285,'Rezultātu izsekotājs'!C285)","v":"0"}]
[null,283,{"$f":"'Rezultātu izsekotājs'!C286&COUNTIF('Rezultātu izsekotājs'!$C$4:C286,'Rezultātu izsekotājs'!C286)","v":"0"}]
[null,284,{"$f":"'Rezultātu izsekotājs'!C287&COUNTIF('Rezultātu izsekotājs'!$C$4:C287,'Rezultātu izsekotājs'!C287)","v":"0"}]
[null,285,{"$f":"'Rezultātu izsekotājs'!C288&COUNTIF('Rezultātu izsekotājs'!$C$4:C288,'Rezultātu izsekotājs'!C288)","v":"0"}]
[null,286,{"$f":"'Rezultātu izsekotājs'!C289&COUNTIF('Rezultātu izsekotājs'!$C$4:C289,'Rezultātu izsekotājs'!C289)","v":"0"}]
[null,287,{"$f":"'Rezultātu izsekotājs'!C290&COUNTIF('Rezultātu izsekotājs'!$C$4:C290,'Rezultātu izsekotājs'!C290)","v":"0"}]
[null,288,{"$f":"'Rezultātu izsekotājs'!C291&COUNTIF('Rezultātu izsekotājs'!$C$4:C291,'Rezultātu izsekotājs'!C291)","v":"0"}]
[null,289,{"$f":"'Rezultātu izsekotājs'!C292&COUNTIF('Rezultātu izsekotājs'!$C$4:C292,'Rezultātu izsekotājs'!C292)","v":"0"}]
[null,290,{"$f":"'Rezultātu izsekotājs'!C293&COUNTIF('Rezultātu izsekotājs'!$C$4:C293,'Rezultātu izsekotājs'!C293)","v":"0"}]
[null,291,{"$f":"'Rezultātu izsekotājs'!C294&COUNTIF('Rezultātu izsekotājs'!$C$4:C294,'Rezultātu izsekotājs'!C294)","v":"0"}]
[null,292,{"$f":"'Rezultātu izsekotājs'!C295&COUNTIF('Rezultātu izsekotājs'!$C$4:C295,'Rezultātu izsekotājs'!C295)","v":"0"}]
[null,293,{"$f":"'Rezultātu izsekotājs'!C296&COUNTIF('Rezultātu izsekotājs'!$C$4:C296,'Rezultātu izsekotājs'!C296)","v":"0"}]
[null,294,{"$f":"'Rezultātu izsekotājs'!C297&COUNTIF('Rezultātu izsekotājs'!$C$4:C297,'Rezultātu izsekotājs'!C297)","v":"0"}]
[null,295,{"$f":"'Rezultātu izsekotājs'!C298&COUNTIF('Rezultātu izsekotājs'!$C$4:C298,'Rezultātu izsekotājs'!C298)","v":"0"}]
[null,296,{"$f":"'Rezultātu izsekotājs'!C299&COUNTIF('Rezultātu izsekotājs'!$C$4:C299,'Rezultātu izsekotājs'!C299)","v":"0"}]
[null,297,{"$f":"'Rezultātu izsekotājs'!C300&COUNTIF('Rezultātu izsekotājs'!$C$4:C300,'Rezultātu izsekotājs'!C300)","v":"0"}]
[null,298,{"$f":"'Rezultātu izsekotājs'!C301&COUNTIF('Rezultātu izsekotājs'!$C$4:C301,'Rezultātu izsekotājs'!C301)","v":"0"}]
[null,299,{"$f":"'Rezultātu izsekotājs'!C302&COUNTIF('Rezultātu izsekotājs'!$C$4:C302,'Rezultātu izsekotājs'!C302)","v":"0"}]
[null,300,{"$f":"'Rezultātu izsekotājs'!C303&COUNTIF('Rezultātu izsekotājs'!$C$4:C303,'Rezultātu izsekotājs'!C303)","v":"0"}]
[null,301,{"$f":"'Rezultātu izsekotājs'!C304&COUNTIF('Rezultātu izsekotājs'!$C$4:C304,'Rezultātu izsekotājs'!C304)","v":"0"}]
[null,302,{"$f":"'Rezultātu izsekotājs'!C305&COUNTIF('Rezultātu izsekotājs'!$C$4:C305,'Rezultātu izsekotājs'!C305)","v":"0"}]
[null,303,{"$f":"'Rezultātu izsekotājs'!C306&COUNTIF('Rezultātu izsekotājs'!$C$4:C306,'Rezultātu izsekotājs'!C306)","v":"0"}]
[null,304,{"$f":"'Rezultātu izsekotājs'!C307&COUNTIF('Rezultātu izsekotājs'!$C$4:C307,'Rezultātu izsekotājs'!C307)","v":"0"}]
[null,305,{"$f":"'Rezultātu izsekotājs'!C308&COUNTIF('Rezultātu izsekotājs'!$C$4:C308,'Rezultātu izsekotājs'!C308)","v":"0"}]
[null,306,{"$f":"'Rezultātu izsekotājs'!C309&COUNTIF('Rezultātu izsekotājs'!$C$4:C309,'Rezultātu izsekotājs'!C309)","v":"0"}]
[null,307,{"$f":"'Rezultātu izsekotājs'!C310&COUNTIF('Rezultātu izsekotājs'!$C$4:C310,'Rezultātu izsekotājs'!C310)","v":"0"}]
[null,308,{"$f":"'Rezultātu izsekotājs'!C311&COUNTIF('Rezultātu izsekotājs'!$C$4:C311,'Rezultātu izsekotājs'!C311)","v":"0"}]
[null,309,{"$f":"'Rezultātu izsekotājs'!C312&COUNTIF('Rezultātu izsekotājs'!$C$4:C312,'Rezultātu izsekotājs'!C312)","v":"0"}]
[null,310,{"$f":"'Rezultātu izsekotājs'!C313&COUNTIF('Rezultātu izsekotājs'!$C$4:C313,'Rezultātu izsekotājs'!C313)","v":"0"}]
[null,311,{"$f":"'Rezultātu izsekotājs'!C314&COUNTIF('Rezultātu izsekotājs'!$C$4:C314,'Rezultātu izsekotājs'!C314)","v":"0"}]
[null,312,{"$f":"'Rezultātu izsekotājs'!C315&COUNTIF('Rezultātu izsekotājs'!$C$4:C315,'Rezultātu izsekotājs'!C315)","v":"0"}]
[null,313,{"$f":"'Rezultātu izsekotājs'!C316&COUNTIF('Rezultātu izsekotājs'!$C$4:C316,'Rezultātu izsekotājs'!C316)","v":"0"}]
[null,314,{"$f":"'Rezultātu izsekotājs'!C317&COUNTIF('Rezultātu izsekotājs'!$C$4:C317,'Rezultātu izsekotājs'!C317)","v":"0"}]
[null,315,{"$f":"'Rezultātu izsekotājs'!C318&COUNTIF('Rezultātu izsekotājs'!$C$4:C318,'Rezultātu izsekotājs'!C318)","v":"0"}]
[null,316,{"$f":"'Rezultātu izsekotājs'!C319&COUNTIF('Rezultātu izsekotājs'!$C$4:C319,'Rezultātu izsekotājs'!C319)","v":"0"}]
[null,317,{"$f":"'Rezultātu izsekotājs'!C320&COUNTIF('Rezultātu izsekotājs'!$C$4:C320,'Rezultātu izsekotājs'!C320)","v":"0"}]
[null,318,{"$f":"'Rezultātu izsekotājs'!C321&COUNTIF('Rezultātu izsekotājs'!$C$4:C321,'Rezultātu izsekotājs'!C321)","v":"0"}]
[null,319,{"$f":"'Rezultātu izsekotājs'!C322&COUNTIF('Rezultātu izsekotājs'!$C$4:C322,'Rezultātu izsekotājs'!C322)","v":"0"}]
[null,320,{"$f":"'Rezultātu izsekotājs'!C323&COUNTIF('Rezultātu izsekotājs'!$C$4:C323,'Rezultātu izsekotājs'!C323)","v":"0"}]
[null,321,{"$f":"'Rezultātu izsekotājs'!C324&COUNTIF('Rezultātu izsekotājs'!$C$4:C324,'Rezultātu izsekotājs'!C324)","v":"0"}]
[null,322,{"$f":"'Rezultātu izsekotājs'!C325&COUNTIF('Rezultātu izsekotājs'!$C$4:C325,'Rezultātu izsekotājs'!C325)","v":"0"}]
[null,323,{"$f":"'Rezultātu izsekotājs'!C326&COUNTIF('Rezultātu izsekotājs'!$C$4:C326,'Rezultātu izsekotājs'!C326)","v":"0"}]
[null,324,{"$f":"'Rezultātu izsekotājs'!C327&COUNTIF('Rezultātu izsekotājs'!$C$4:C327,'Rezultātu izsekotājs'!C327)","v":"0"}]
[null,325,{"$f":"'Rezultātu izsekotājs'!C328&COUNTIF('Rezultātu izsekotājs'!$C$4:C328,'Rezultātu izsekotājs'!C328)","v":"0"}]
[null,326,{"$f":"'Rezultātu izsekotājs'!C329&COUNTIF('Rezultātu izsekotājs'!$C$4:C329,'Rezultātu izsekotājs'!C329)","v":"0"}]
[null,327,{"$f":"'Rezultātu izsekotājs'!C330&COUNTIF('Rezultātu izsekotājs'!$C$4:C330,'Rezultātu izsekotājs'!C330)","v":"0"}]
[null,328,{"$f":"'Rezultātu izsekotājs'!C331&COUNTIF('Rezultātu izsekotājs'!$C$4:C331,'Rezultātu izsekotājs'!C331)","v":"0"}]
[null,329,{"$f":"'Rezultātu izsekotājs'!C332&COUNTIF('Rezultātu izsekotājs'!$C$4:C332,'Rezultātu izsekotājs'!C332)","v":"0"}]
[null,330,{"$f":"'Rezultātu izsekotājs'!C333&COUNTIF('Rezultātu izsekotājs'!$C$4:C333,'Rezultātu izsekotājs'!C333)","v":"0"}]
[null,331,{"$f":"'Rezultātu izsekotājs'!C334&COUNTIF('Rezultātu izsekotājs'!$C$4:C334,'Rezultātu izsekotājs'!C334)","v":"0"}]
[null,332,{"$f":"'Rezultātu izsekotājs'!C335&COUNTIF('Rezultātu izsekotājs'!$C$4:C335,'Rezultātu izsekotājs'!C335)","v":"0"}]
[null,333,{"$f":"'Rezultātu izsekotājs'!C336&COUNTIF('Rezultātu izsekotājs'!$C$4:C336,'Rezultātu izsekotājs'!C336)","v":"0"}]
[null,334,{"$f":"'Rezultātu izsekotājs'!C337&COUNTIF('Rezultātu izsekotājs'!$C$4:C337,'Rezultātu izsekotājs'!C337)","v":"0"}]
[null,335,{"$f":"'Rezultātu izsekotājs'!C338&COUNTIF('Rezultātu izsekotājs'!$C$4:C338,'Rezultātu izsekotājs'!C338)","v":"0"}]
[null,336,{"$f":"'Rezultātu izsekotājs'!C339&COUNTIF('Rezultātu izsekotājs'!$C$4:C339,'Rezultātu izsekotājs'!C339)","v":"0"}]
[null,337,{"$f":"'Rezultātu izsekotājs'!C340&COUNTIF('Rezultātu izsekotājs'!$C$4:C340,'Rezultātu izsekotājs'!C340)","v":"0"}]
[null,338,{"$f":"'Rezultātu izsekotājs'!C341&COUNTIF('Rezultātu izsekotājs'!$C$4:C341,'Rezultātu izsekotājs'!C341)","v":"0"}]
[null,339,{"$f":"'Rezultātu izsekotājs'!C342&COUNTIF('Rezultātu izsekotājs'!$C$4:C342,'Rezultātu izsekotājs'!C342)","v":"0"}]
[null,340,{"$f":"'Rezultātu izsekotājs'!C343&COUNTIF('Rezultātu izsekotājs'!$C$4:C343,'Rezultātu izsekotājs'!C343)","v":"0"}]
[null,341,{"$f":"'Rezultātu izsekotājs'!C344&COUNTIF('Rezultātu izsekotājs'!$C$4:C344,'Rezultātu izsekotājs'!C344)","v":"0"}]
[null,342,{"$f":"'Rezultātu izsekotājs'!C345&COUNTIF('Rezultātu izsekotājs'!$C$4:C345,'Rezultātu izsekotājs'!C345)","v":"0"}]
[null,343,{"$f":"'Rezultātu izsekotājs'!C346&COUNTIF('Rezultātu izsekotājs'!$C$4:C346,'Rezultātu izsekotājs'!C346)","v":"0"}]
[null,344,{"$f":"'Rezultātu izsekotājs'!C347&COUNTIF('Rezultātu izsekotājs'!$C$4:C347,'Rezultātu izsekotājs'!C347)","v":"0"}]
[null,345,{"$f":"'Rezultātu izsekotājs'!C348&COUNTIF('Rezultātu izsekotājs'!$C$4:C348,'Rezultātu izsekotājs'!C348)","v":"0"}]
[null,346,{"$f":"'Rezultātu izsekotājs'!C349&COUNTIF('Rezultātu izsekotājs'!$C$4:C349,'Rezultātu izsekotājs'!C349)","v":"0"}]
[null,347,{"$f":"'Rezultātu izsekotājs'!C350&COUNTIF('Rezultātu izsekotājs'!$C$4:C350,'Rezultātu izsekotājs'!C350)","v":"0"}]
[null,348,{"$f":"'Rezultātu izsekotājs'!C351&COUNTIF('Rezultātu izsekotājs'!$C$4:C351,'Rezultātu izsekotājs'!C351)","v":"0"}]
[null,349,{"$f":"'Rezultātu izsekotājs'!C352&COUNTIF('Rezultātu izsekotājs'!$C$4:C352,'Rezultātu izsekotājs'!C352)","v":"0"}]
[null,350,{"$f":"'Rezultātu izsekotājs'!C353&COUNTIF('Rezultātu izsekotājs'!$C$4:C353,'Rezultātu izsekotājs'!C353)","v":"0"}]
[null,351,{"$f":"'Rezultātu izsekotājs'!C354&COUNTIF('Rezultātu izsekotājs'!$C$4:C354,'Rezultātu izsekotājs'!C354)","v":"0"}]
[null,352,{"$f":"'Rezultātu izsekotājs'!C355&COUNTIF('Rezultātu izsekotājs'!$C$4:C355,'Rezultātu izsekotājs'!C355)","v":"0"}]
[null,353,{"$f":"'Rezultātu izsekotājs'!C356&COUNTIF('Rezultātu izsekotājs'!$C$4:C356,'Rezultātu izsekotājs'!C356)","v":"0"}]
[null,354,{"$f":"'Rezultātu izsekotājs'!C357&COUNTIF('Rezultātu izsekotājs'!$C$4:C357,'Rezultātu izsekotājs'!C357)","v":"0"}]
[null,355,{"$f":"'Rezultātu izsekotājs'!C358&COUNTIF('Rezultātu izsekotājs'!$C$4:C358,'Rezultātu izsekotājs'!C358)","v":"0"}]
[null,356,{"$f":"'Rezultātu izsekotājs'!C359&COUNTIF('Rezultātu izsekotājs'!$C$4:C359,'Rezultātu izsekotājs'!C359)","v":"0"}]
[null,357,{"$f":"'Rezultātu izsekotājs'!C360&COUNTIF('Rezultātu izsekotājs'!$C$4:C360,'Rezultātu izsekotājs'!C360)","v":"0"}]
[null,358,{"$f":"'Rezultātu izsekotājs'!C361&COUNTIF('Rezultātu izsekotājs'!$C$4:C361,'Rezultātu izsekotājs'!C361)","v":"0"}]
[null,359,{"$f":"'Rezultātu izsekotājs'!C362&COUNTIF('Rezultātu izsekotājs'!$C$4:C362,'Rezultātu izsekotājs'!C362)","v":"0"}]
[null,360,{"$f":"'Rezultātu izsekotājs'!C363&COUNTIF('Rezultātu izsekotājs'!$C$4:C363,'Rezultātu izsekotājs'!C363)","v":"0"}]
[null,361,{"$f":"'Rezultātu izsekotājs'!C364&COUNTIF('Rezultātu izsekotājs'!$C$4:C364,'Rezultātu izsekotājs'!C364)","v":"0"}]
[null,362,{"$f":"'Rezultātu izsekotājs'!C365&COUNTIF('Rezultātu izsekotājs'!$C$4:C365,'Rezultātu izsekotājs'!C365)","v":"0"}]
[null,363,{"$f":"'Rezultātu izsekotājs'!C366&COUNTIF('Rezultātu izsekotājs'!$C$4:C366,'Rezultātu izsekotājs'!C366)","v":"0"}]
[null,364,{"$f":"'Rezultātu izsekotājs'!C367&COUNTIF('Rezultātu izsekotājs'!$C$4:C367,'Rezultātu izsekotājs'!C367)","v":"0"}]
[null,365,{"$f":"'Rezultātu izsekotājs'!C368&COUNTIF('Rezultātu izsekotājs'!$C$4:C368,'Rezultātu izsekotājs'!C368)","v":"0"}]
[null,366,{"$f":"'Rezultātu izsekotājs'!C369&COUNTIF('Rezultātu izsekotājs'!$C$4:C369,'Rezultātu izsekotājs'!C369)","v":"0"}]
[null,367,{"$f":"'Rezultātu izsekotājs'!C370&COUNTIF('Rezultātu izsekotājs'!$C$4:C370,'Rezultātu izsekotājs'!C370)","v":"0"}]
[null,368,{"$f":"'Rezultātu izsekotājs'!C371&COUNTIF('Rezultātu izsekotājs'!$C$4:C371,'Rezultātu izsekotājs'!C371)","v":"0"}]
[null,369,{"$f":"'Rezultātu izsekotājs'!C372&COUNTIF('Rezultātu izsekotājs'!$C$4:C372,'Rezultātu izsekotājs'!C372)","v":"0"}]
[null,370,{"$f":"'Rezultātu izsekotājs'!C373&COUNTIF('Rezultātu izsekotājs'!$C$4:C373,'Rezultātu izsekotājs'!C373)","v":"0"}]
[null,371,{"$f":"'Rezultātu izsekotājs'!C374&COUNTIF('Rezultātu izsekotājs'!$C$4:C374,'Rezultātu izsekotājs'!C374)","v":"0"}]
[null,372,{"$f":"'Rezultātu izsekotājs'!C375&COUNTIF('Rezultātu izsekotājs'!$C$4:C375,'Rezultātu izsekotājs'!C375)","v":"0"}]
[null,373,{"$f":"'Rezultātu izsekotājs'!C376&COUNTIF('Rezultātu izsekotājs'!$C$4:C376,'Rezultātu izsekotājs'!C376)","v":"0"}]
[null,374,{"$f":"'Rezultātu izsekotājs'!C377&COUNTIF('Rezultātu izsekotājs'!$C$4:C377,'Rezultātu izsekotājs'!C377)","v":"0"}]
[null,375,{"$f":"'Rezultātu izsekotājs'!C378&COUNTIF('Rezultātu izsekotājs'!$C$4:C378,'Rezultātu izsekotājs'!C378)","v":"0"}]
[null,376,{"$f":"'Rezultātu izsekotājs'!C379&COUNTIF('Rezultātu izsekotājs'!$C$4:C379,'Rezultātu izsekotājs'!C379)","v":"0"}]
[null,377,{"$f":"'Rezultātu izsekotājs'!C380&COUNTIF('Rezultātu izsekotājs'!$C$4:C380,'Rezultātu izsekotājs'!C380)","v":"0"}]
[null,378,{"$f":"'Rezultātu izsekotājs'!C381&COUNTIF('Rezultātu izsekotājs'!$C$4:C381,'Rezultātu izsekotājs'!C381)","v":"0"}]
[null,379,{"$f":"'Rezultātu izsekotājs'!C382&COUNTIF('Rezultātu izsekotājs'!$C$4:C382,'Rezultātu izsekotājs'!C382)","v":"0"}]
[null,380,{"$f":"'Rezultātu izsekotājs'!C383&COUNTIF('Rezultātu izsekotājs'!$C$4:C383,'Rezultātu izsekotājs'!C383)","v":"0"}]
[null,381,{"$f":"'Rezultātu izsekotājs'!C384&COUNTIF('Rezultātu izsekotājs'!$C$4:C384,'Rezultātu izsekotājs'!C384)","v":"0"}]
[null,382,{"$f":"'Rezultātu izsekotājs'!C385&COUNTIF('Rezultātu izsekotājs'!$C$4:C385,'Rezultātu izsekotājs'!C385)","v":"0"}]
[null,383,{"$f":"'Rezultātu izsekotājs'!C386&COUNTIF('Rezultātu izsekotājs'!$C$4:C386,'Rezultātu izsekotājs'!C386)","v":"0"}]
[null,384,{"$f":"'Rezultātu izsekotājs'!C387&COUNTIF('Rezultātu izsekotājs'!$C$4:C387,'Rezultātu izsekotājs'!C387)","v":"0"}]
[null,385,{"$f":"'Rezultātu izsekotājs'!C388&COUNTIF('Rezultātu izsekotājs'!$C$4:C388,'Rezultātu izsekotājs'!C388)","v":"0"}]
[null,386,{"$f":"'Rezultātu izsekotājs'!C389&COUNTIF('Rezultātu izsekotājs'!$C$4:C389,'Rezultātu izsekotājs'!C389)","v":"0"}]
[null,387,{"$f":"'Rezultātu izsekotājs'!C390&COUNTIF('Rezultātu izsekotājs'!$C$4:C390,'Rezultātu izsekotājs'!C390)","v":"0"}]
[null,388,{"$f":"'Rezultātu izsekotājs'!C391&COUNTIF('Rezultātu izsekotājs'!$C$4:C391,'Rezultātu izsekotājs'!C391)","v":"0"}]
[null,389,{"$f":"'Rezultātu izsekotājs'!C392&COUNTIF('Rezultātu izsekotājs'!$C$4:C392,'Rezultātu izsekotājs'!C392)","v":"0"}]
[null,390,{"$f":"'Rezultātu izsekotājs'!C393&COUNTIF('Rezultātu izsekotājs'!$C$4:C393,'Rezultātu izsekotājs'!C393)","v":"0"}]
[null,391,{"$f":"'Rezultātu izsekotājs'!C394&COUNTIF('Rezultātu izsekotājs'!$C$4:C394,'Rezultātu izsekotājs'!C394)","v":"0"}]
[null,392,{"$f":"'Rezultātu izsekotājs'!C395&COUNTIF('Rezultātu izsekotājs'!$C$4:C395,'Rezultātu izsekotājs'!C395)","v":"0"}]
[null,393,{"$f":"'Rezultātu izsekotājs'!C396&COUNTIF('Rezultātu izsekotājs'!$C$4:C396,'Rezultātu izsekotājs'!C396)","v":"0"}]
[null,394,{"$f":"'Rezultātu izsekotājs'!C397&COUNTIF('Rezultātu izsekotājs'!$C$4:C397,'Rezultātu izsekotājs'!C397)","v":"0"}]
[null,395,{"$f":"'Rezultātu izsekotājs'!C398&COUNTIF('Rezultātu izsekotājs'!$C$4:C398,'Rezultātu izsekotājs'!C398)","v":"0"}]
[null,396,{"$f":"'Rezultātu izsekotājs'!C399&COUNTIF('Rezultātu izsekotājs'!$C$4:C399,'Rezultātu izsekotājs'!C399)","v":"0"}]
[null,397,{"$f":"'Rezultātu izsekotājs'!C400&COUNTIF('Rezultātu izsekotājs'!$C$4:C400,'Rezultātu izsekotājs'!C400)","v":"0"}]
[null,398,{"$f":"'Rezultātu izsekotājs'!C401&COUNTIF('Rezultātu izsekotājs'!$C$4:C401,'Rezultātu izsekotājs'!C401)","v":"0"}]
[null,399,{"$f":"'Rezultātu izsekotājs'!C402&COUNTIF('Rezultātu izsekotājs'!$C$4:C402,'Rezultātu izsekotājs'!C402)","v":"0"}]
[null,400,{"$f":"'Rezultātu izsekotājs'!C403&COUNTIF('Rezultātu izsekotājs'!$C$4:C403,'Rezultātu izsekotājs'!C403)","v":"0"}]
[null,401,{"$f":"'Rezultātu izsekotājs'!C404&COUNTIF('Rezultātu izsekotājs'!$C$4:C404,'Rezultātu izsekotājs'!C404)","v":"0"}]
[null,402,{"$f":"'Rezultātu izsekotājs'!C405&COUNTIF('Rezultātu izsekotājs'!$C$4:C405,'Rezultātu izsekotājs'!C405)","v":"0"}]
[null,403,{"$f":"'Rezultātu izsekotājs'!C406&COUNTIF('Rezultātu izsekotājs'!$C$4:C406,'Rezultātu izsekotājs'!C406)","v":"0"}]
[null,404,{"$f":"'Rezultātu izsekotājs'!C407&COUNTIF('Rezultātu izsekotājs'!$C$4:C407,'Rezultātu izsekotājs'!C407)","v":"0"}]
[null,405,{"$f":"'Rezultātu izsekotājs'!C408&COUNTIF('Rezultātu izsekotājs'!$C$4:C408,'Rezultātu izsekotājs'!C408)","v":"0"}]
[null,406,{"$f":"'Rezultātu izsekotājs'!C409&COUNTIF('Rezultātu izsekotājs'!$C$4:C409,'Rezultātu izsekotājs'!C409)","v":"0"}]
[null,407,{"$f":"'Rezultātu izsekotājs'!C410&COUNTIF('Rezultātu izsekotājs'!$C$4:C410,'Rezultātu izsekotājs'!C410)","v":"0"}]
[null,408,{"$f":"'Rezultātu izsekotājs'!C411&COUNTIF('Rezultātu izsekotājs'!$C$4:C411,'Rezultātu izsekotājs'!C411)","v":"0"}]
[null,409,{"$f":"'Rezultātu izsekotājs'!C412&COUNTIF('Rezultātu izsekotājs'!$C$4:C412,'Rezultātu izsekotājs'!C412)","v":"0"}]
[null,410,{"$f":"'Rezultātu izsekotājs'!C413&COUNTIF('Rezultātu izsekotājs'!$C$4:C413,'Rezultātu izsekotājs'!C413)","v":"0"}]
[null,411,{"$f":"'Rezultātu izsekotājs'!C414&COUNTIF('Rezultātu izsekotājs'!$C$4:C414,'Rezultātu izsekotājs'!C414)","v":"0"}]
[null,412,{"$f":"'Rezultātu izsekotājs'!C415&COUNTIF('Rezultātu izsekotājs'!$C$4:C415,'Rezultātu izsekotājs'!C415)","v":"0"}]
[null,413,{"$f":"'Rezultātu izsekotājs'!C416&COUNTIF('Rezultātu izsekotājs'!$C$4:C416,'Rezultātu izsekotājs'!C416)","v":"0"}]
[null,414,{"$f":"'Rezultātu izsekotājs'!C417&COUNTIF('Rezultātu izsekotājs'!$C$4:C417,'Rezultātu izsekotājs'!C417)","v":"0"}]
[null,415,{"$f":"'Rezultātu izsekotājs'!C418&COUNTIF('Rezultātu izsekotājs'!$C$4:C418,'Rezultātu izsekotājs'!C418)","v":"0"}]
[null,416,{"$f":"'Rezultātu izsekotājs'!C419&COUNTIF('Rezultātu izsekotājs'!$C$4:C419,'Rezultātu izsekotājs'!C419)","v":"0"}]
[null,417,{"$f":"'Rezultātu izsekotājs'!C420&COUNTIF('Rezultātu izsekotājs'!$C$4:C420,'Rezultātu izsekotājs'!C420)","v":"0"}]
[null,418,{"$f":"'Rezultātu izsekotājs'!C421&COUNTIF('Rezultātu izsekotājs'!$C$4:C421,'Rezultātu izsekotājs'!C421)","v":"0"}]
[null,419,{"$f":"'Rezultātu izsekotājs'!C422&COUNTIF('Rezultātu izsekotājs'!$C$4:C422,'Rezultātu izsekotājs'!C422)","v":"0"}]
[null,420,{"$f":"'Rezultātu izsekotājs'!C423&COUNTIF('Rezultātu izsekotājs'!$C$4:C423,'Rezultātu izsekotājs'!C423)","v":"0"}]
[null,421,{"$f":"'Rezultātu izsekotājs'!C424&COUNTIF('Rezultātu izsekotājs'!$C$4:C424,'Rezultātu izsekotājs'!C424)","v":"0"}]
[null,422,{"$f":"'Rezultātu izsekotājs'!C425&COUNTIF('Rezultātu izsekotājs'!$C$4:C425,'Rezultātu izsekotājs'!C425)","v":"0"}]
[null,423,{"$f":"'Rezultātu izsekotājs'!C426&COUNTIF('Rezultātu izsekotājs'!$C$4:C426,'Rezultātu izsekotājs'!C426)","v":"0"}]
[null,424,{"$f":"'Rezultātu izsekotājs'!C427&COUNTIF('Rezultātu izsekotājs'!$C$4:C427,'Rezultātu izsekotājs'!C427)","v":"0"}]
[null,425,{"$f":"'Rezultātu izsekotājs'!C428&COUNTIF('Rezultātu izsekotājs'!$C$4:C428,'Rezultātu izsekotājs'!C428)","v":"0"}]
[null,426,{"$f":"'Rezultātu izsekotājs'!C429&COUNTIF('Rezultātu izsekotājs'!$C$4:C429,'Rezultātu izsekotājs'!C429)","v":"0"}]
[null,427,{"$f":"'Rezultātu izsekotājs'!C430&COUNTIF('Rezultātu izsekotājs'!$C$4:C430,'Rezultātu izsekotājs'!C430)","v":"0"}]
[null,428,{"$f":"'Rezultātu izsekotājs'!C431&COUNTIF('Rezultātu izsekotājs'!$C$4:C431,'Rezultātu izsekotājs'!C431)","v":"0"}]
[null,429,{"$f":"'Rezultātu izsekotājs'!C432&COUNTIF('Rezultātu izsekotājs'!$C$4:C432,'Rezultātu izsekotājs'!C432)","v":"0"}]
[null,430,{"$f":"'Rezultātu izsekotājs'!C433&COUNTIF('Rezultātu izsekotājs'!$C$4:C433,'Rezultātu izsekotājs'!C433)","v":"0"}]
[null,431,{"$f":"'Rezultātu izsekotājs'!C434&COUNTIF('Rezultātu izsekotājs'!$C$4:C434,'Rezultātu izsekotājs'!C434)","v":"0"}]
[null,432,{"$f":"'Rezultātu izsekotājs'!C435&COUNTIF('Rezultātu izsekotājs'!$C$4:C435,'Rezultātu izsekotājs'!C435)","v":"0"}]
[null,433,{"$f":"'Rezultātu izsekotājs'!C436&COUNTIF('Rezultātu izsekotājs'!$C$4:C436,'Rezultātu izsekotājs'!C436)","v":"0"}]
[null,434,{"$f":"'Rezultātu izsekotājs'!C437&COUNTIF('Rezultātu izsekotājs'!$C$4:C437,'Rezultātu izsekotājs'!C437)","v":"0"}]
[null,435,{"$f":"'Rezultātu izsekotājs'!C438&COUNTIF('Rezultātu izsekotājs'!$C$4:C438,'Rezultātu izsekotājs'!C438)","v":"0"}]
[null,436,{"$f":"'Rezultātu izsekotājs'!C439&COUNTIF('Rezultātu izsekotājs'!$C$4:C439,'Rezultātu izsekotājs'!C439)","v":"0"}]
[null,437,{"$f":"'Rezultātu izsekotājs'!C440&COUNTIF('Rezultātu izsekotājs'!$C$4:C440,'Rezultātu izsekotājs'!C440)","v":"0"}]
[null,438,{"$f":"'Rezultātu izsekotājs'!C441&COUNTIF('Rezultātu izsekotājs'!$C$4:C441,'Rezultātu izsekotājs'!C441)","v":"0"}]
[null,439,{"$f":"'Rezultātu izsekotājs'!C442&COUNTIF('Rezultātu izsekotājs'!$C$4:C442,'Rezultātu izsekotājs'!C442)","v":"0"}]
[null,440,{"$f":"'Rezultātu izsekotājs'!C443&COUNTIF('Rezultātu izsekotājs'!$C$4:C443,'Rezultātu izsekotājs'!C443)","v":"0"}]
[null,441,{"$f":"'Rezultātu izsekotājs'!C444&COUNTIF('Rezultātu izsekotājs'!$C$4:C444,'Rezultātu izsekotājs'!C444)","v":"0"}]
[null,442,{"$f":"'Rezultātu izsekotājs'!C445&COUNTIF('Rezultātu izsekotājs'!$C$4:C445,'Rezultātu izsekotājs'!C445)","v":"0"}]
[null,443,{"$f":"'Rezultātu izsekotājs'!C446&COUNTIF('Rezultātu izsekotājs'!$C$4:C446,'Rezultātu izsekotājs'!C446)","v":"0"}]
[null,444,{"$f":"'Rezultātu izsekotājs'!C447&COUNTIF('Rezultātu izsekotājs'!$C$4:C447,'Rezultātu izsekotājs'!C447)","v":"0"}]
[null,445,{"$f":"'Rezultātu izsekotājs'!C448&COUNTIF('Rezultātu izsekotājs'!$C$4:C448,'Rezultātu izsekotājs'!C448)","v":"0"}]
[null,446,{"$f":"'Rezultātu izsekotājs'!C449&COUNTIF('Rezultātu izsekotājs'!$C$4:C449,'Rezultātu izsekotājs'!C449)","v":"0"}]
[null,447,{"$f":"'Rezultātu izsekotājs'!C450&COUNTIF('Rezultātu izsekotājs'!$C$4:C450,'Rezultātu izsekotājs'!C450)","v":"0"}]
[null,448,{"$f":"'Rezultātu izsekotājs'!C451&COUNTIF('Rezultātu izsekotājs'!$C$4:C451,'Rezultātu izsekotājs'!C451)","v":"0"}]
[null,449,{"$f":"'Rezultātu izsekotājs'!C452&COUNTIF('Rezultātu izsekotājs'!$C$4:C452,'Rezultātu izsekotājs'!C452)","v":"0"}]
[null,450,{"$f":"'Rezultātu izsekotājs'!C453&COUNTIF('Rezultātu izsekotājs'!$C$4:C453,'Rezultātu izsekotājs'!C453)","v":"0"}]
[null,451,{"$f":"'Rezultātu izsekotājs'!C454&COUNTIF('Rezultātu izsekotājs'!$C$4:C454,'Rezultātu izsekotājs'!C454)","v":"0"}]
[null,452,{"$f":"'Rezultātu izsekotājs'!C455&COUNTIF('Rezultātu izsekotājs'!$C$4:C455,'Rezultātu izsekotājs'!C455)","v":"0"}]
[null,453,{"$f":"'Rezultātu izsekotājs'!C456&COUNTIF('Rezultātu izsekotājs'!$C$4:C456,'Rezultātu izsekotājs'!C456)","v":"0"}]
[null,454,{"$f":"'Rezultātu izsekotājs'!C457&COUNTIF('Rezultātu izsekotājs'!$C$4:C457,'Rezultātu izsekotājs'!C457)","v":"0"}]
[null,455,{"$f":"'Rezultātu izsekotājs'!C458&COUNTIF('Rezultātu izsekotājs'!$C$4:C458,'Rezultātu izsekotājs'!C458)","v":"0"}]
[null,456,{"$f":"'Rezultātu izsekotājs'!C459&COUNTIF('Rezultātu izsekotājs'!$C$4:C459,'Rezultātu izsekotājs'!C459)","v":"0"}]
[null,457,{"$f":"'Rezultātu izsekotājs'!C460&COUNTIF('Rezultātu izsekotājs'!$C$4:C460,'Rezultātu izsekotājs'!C460)","v":"0"}]
[null,458,{"$f":"'Rezultātu izsekotājs'!C461&COUNTIF('Rezultātu izsekotājs'!$C$4:C461,'Rezultātu izsekotājs'!C461)","v":"0"}]
[null,459,{"$f":"'Rezultātu izsekotājs'!C462&COUNTIF('Rezultātu izsekotājs'!$C$4:C462,'Rezultātu izsekotājs'!C462)","v":"0"}]
[null,460,{"$f":"'Rezultātu izsekotājs'!C463&COUNTIF('Rezultātu izsekotājs'!$C$4:C463,'Rezultātu izsekotājs'!C463)","v":"0"}]
[null,461,{"$f":"'Rezultātu izsekotājs'!C464&COUNTIF('Rezultātu izsekotājs'!$C$4:C464,'Rezultātu izsekotājs'!C464)","v":"0"}]
[null,462,{"$f":"'Rezultātu izsekotājs'!C465&COUNTIF('Rezultātu izsekotājs'!$C$4:C465,'Rezultātu izsekotājs'!C465)","v":"0"}]
[null,463,{"$f":"'Rezultātu izsekotājs'!C466&COUNTIF('Rezultātu izsekotājs'!$C$4:C466,'Rezultātu izsekotājs'!C466)","v":"0"}]
[null,464,{"$f":"'Rezultātu izsekotājs'!C467&COUNTIF('Rezultātu izsekotājs'!$C$4:C467,'Rezultātu izsekotājs'!C467)","v":"0"}]
[null,465,{"$f":"'Rezultātu izsekotājs'!C468&COUNTIF('Rezultātu izsekotājs'!$C$4:C468,'Rezultātu izsekotājs'!C468)","v":"0"}]
[null,466,{"$f":"'Rezultātu izsekotājs'!C469&COUNTIF('Rezultātu izsekotājs'!$C$4:C469,'Rezultātu izsekotājs'!C469)","v":"0"}]
[null,467,{"$f":"'Rezultātu izsekotājs'!C470&COUNTIF('Rezultātu izsekotājs'!$C$4:C470,'Rezultātu izsekotājs'!C470)","v":"0"}]
[null,468,{"$f":"'Rezultātu izsekotājs'!C471&COUNTIF('Rezultātu izsekotājs'!$C$4:C471,'Rezultātu izsekotājs'!C471)","v":"0"}]
[null,469,{"$f":"'Rezultātu izsekotājs'!C472&COUNTIF('Rezultātu izsekotājs'!$C$4:C472,'Rezultātu izsekotājs'!C472)","v":"0"}]
[null,470,{"$f":"'Rezultātu izsekotājs'!C473&COUNTIF('Rezultātu izsekotājs'!$C$4:C473,'Rezultātu izsekotājs'!C473)","v":"0"}]
[null,471,{"$f":"'Rezultātu izsekotājs'!C474&COUNTIF('Rezultātu izsekotājs'!$C$4:C474,'Rezultātu izsekotājs'!C474)","v":"0"}]
[null,472,{"$f":"'Rezultātu izsekotājs'!C475&COUNTIF('Rezultātu izsekotājs'!$C$4:C475,'Rezultātu izsekotājs'!C475)","v":"0"}]
[null,473,{"$f":"'Rezultātu izsekotājs'!C476&COUNTIF('Rezultātu izsekotājs'!$C$4:C476,'Rezultātu izsekotājs'!C476)","v":"0"}]
[null,474,{"$f":"'Rezultātu izsekotājs'!C477&COUNTIF('Rezultātu izsekotājs'!$C$4:C477,'Rezultātu izsekotājs'!C477)","v":"0"}]
[null,475,{"$f":"'Rezultātu izsekotājs'!C478&COUNTIF('Rezultātu izsekotājs'!$C$4:C478,'Rezultātu izsekotājs'!C478)","v":"0"}]
[null,476,{"$f":"'Rezultātu izsekotājs'!C479&COUNTIF('Rezultātu izsekotājs'!$C$4:C479,'Rezultātu izsekotājs'!C479)","v":"0"}]
[null,477,{"$f":"'Rezultātu izsekotājs'!C480&COUNTIF('Rezultātu izsekotājs'!$C$4:C480,'Rezultātu izsekotājs'!C480)","v":"0"}]
[null,478,{"$f":"'Rezultātu izsekotājs'!C481&COUNTIF('Rezultātu izsekotājs'!$C$4:C481,'Rezultātu izsekotājs'!C481)","v":"0"}]
[null,479,{"$f":"'Rezultātu izsekotājs'!C482&COUNTIF('Rezultātu izsekotājs'!$C$4:C482,'Rezultātu izsekotājs'!C482)","v":"0"}]
[null,480,{"$f":"'Rezultātu izsekotājs'!C483&COUNTIF('Rezultātu izsekotājs'!$C$4:C483,'Rezultātu izsekotājs'!C483)","v":"0"}]
[null,481,{"$f":"'Rezultātu izsekotājs'!C484&COUNTIF('Rezultātu izsekotājs'!$C$4:C484,'Rezultātu izsekotājs'!C484)","v":"0"}]
[null,482,{"$f":"'Rezultātu izsekotājs'!C485&COUNTIF('Rezultātu izsekotājs'!$C$4:C485,'Rezultātu izsekotājs'!C485)","v":"0"}]
[null,483,{"$f":"'Rezultātu izsekotājs'!C486&COUNTIF('Rezultātu izsekotājs'!$C$4:C486,'Rezultātu izsekotājs'!C486)","v":"0"}]
[null,484,{"$f":"'Rezultātu izsekotājs'!C487&COUNTIF('Rezultātu izsekotājs'!$C$4:C487,'Rezultātu izsekotājs'!C487)","v":"0"}]
[null,485,{"$f":"'Rezultātu izsekotājs'!C488&COUNTIF('Rezultātu izsekotājs'!$C$4:C488,'Rezultātu izsekotājs'!C488)","v":"0"}]
[null,486,{"$f":"'Rezultātu izsekotājs'!C489&COUNTIF('Rezultātu izsekotājs'!$C$4:C489,'Rezultātu izsekotājs'!C489)","v":"0"}]
[null,487,{"$f":"'Rezultātu izsekotājs'!C490&COUNTIF('Rezultātu izsekotājs'!$C$4:C490,'Rezultātu izsekotājs'!C490)","v":"0"}]
[null,488,{"$f":"'Rezultātu izsekotājs'!C491&COUNTIF('Rezultātu izsekotājs'!$C$4:C491,'Rezultātu izsekotājs'!C491)","v":"0"}]
[null,489,{"$f":"'Rezultātu izsekotājs'!C492&COUNTIF('Rezultātu izsekotājs'!$C$4:C492,'Rezultātu izsekotājs'!C492)","v":"0"}]
[null,490,{"$f":"'Rezultātu izsekotājs'!C493&COUNTIF('Rezultātu izsekotājs'!$C$4:C493,'Rezultātu izsekotājs'!C493)","v":"0"}]
[null,491,{"$f":"'Rezultātu izsekotājs'!C494&COUNTIF('Rezultātu izsekotājs'!$C$4:C494,'Rezultātu izsekotājs'!C494)","v":"0"}]
[null,492,{"$f":"'Rezultātu izsekotājs'!C495&COUNTIF('Rezultātu izsekotājs'!$C$4:C495,'Rezultātu izsekotājs'!C495)","v":"0"}]
[null,493,{"$f":"'Rezultātu izsekotājs'!C496&COUNTIF('Rezultātu izsekotājs'!$C$4:C496,'Rezultātu izsekotājs'!C496)","v":"0"}]
[null,494,{"$f":"'Rezultātu izsekotājs'!C497&COUNTIF('Rezultātu izsekotājs'!$C$4:C497,'Rezultātu izsekotājs'!C497)","v":"0"}]
[null,495,{"$f":"'Rezultātu izsekotājs'!C498&COUNTIF('Rezultātu izsekotājs'!$C$4:C498,'Rezultātu izsekotājs'!C498)","v":"0"}]
[null,496,{"$f":"'Rezultātu izsekotājs'!C499&COUNTIF('Rezultātu izsekotājs'!$C$4:C499,'Rezultātu izsekotājs'!C499)","v":"0"}]
[null,497,{"$f":"'Rezultātu izsekotājs'!C500&COUNTIF('Rezultātu izsekotājs'!$C$4:C500,'Rezultātu izsekotājs'!C500)","v":"0"}]
[null,498,{"$f":"'Rezultātu izsekotājs'!C501&COUNTIF('Rezultātu izsekotājs'!$C$4:C501,'Rezultātu izsekotājs'!C501)","v":"0"}]
[null,499,{"$f":"'Rezultātu izsekotājs'!C502&COUNTIF('Rezultātu izsekotājs'!$C$4:C502,'Rezultātu izsekotājs'!C502)","v":"0"}]
[null,500,{"$f":"'Rezultātu izsekotājs'!C503&COUNTIF('Rezultātu izsekotājs'!$C$4:C503,'Rezultātu izsekotājs'!C503)","v":"0"}]
[null,501,{"$f":"'Rezultātu izsekotājs'!C504&COUNTIF('Rezultātu izsekotājs'!$C$4:C504,'Rezultātu izsekotājs'!C504)","v":"0"}]
[null,502,{"$f":"'Rezultātu izsekotājs'!C505&COUNTIF('Rezultātu izsekotājs'!$C$4:C505,'Rezultātu izsekotājs'!C505)","v":"0"}]
[null,503,{"$f":"'Rezultātu izsekotājs'!C506&COUNTIF('Rezultātu izsekotājs'!$C$4:C506,'Rezultātu izsekotājs'!C506)","v":"0"}]
[null,504,{"$f":"'Rezultātu izsekotājs'!C507&COUNTIF('Rezultātu izsekotājs'!$C$4:C507,'Rezultātu izsekotājs'!C507)","v":"0"}]
[null,505,{"$f":"'Rezultātu izsekotājs'!C508&COUNTIF('Rezultātu izsekotājs'!$C$4:C508,'Rezultātu izsekotājs'!C508)","v":"0"}]
[null,506,{"$f":"'Rezultātu izsekotājs'!C509&COUNTIF('Rezultātu izsekotājs'!$C$4:C509,'Rezultātu izsekotājs'!C509)","v":"0"}]
[null,507,{"$f":"'Rezultātu izsekotājs'!C510&COUNTIF('Rezultātu izsekotājs'!$C$4:C510,'Rezultātu izsekotājs'!C510)","v":"0"}]
[null,508,{"$f":"'Rezultātu izsekotājs'!C511&COUNTIF('Rezultātu izsekotājs'!$C$4:C511,'Rezultātu izsekotājs'!C511)","v":"0"}]
[null,509,{"$f":"'Rezultātu izsekotājs'!C512&COUNTIF('Rezultātu izsekotājs'!$C$4:C512,'Rezultātu izsekotājs'!C512)","v":"0"}]
[null,510,{"$f":"'Rezultātu izsekotājs'!C513&COUNTIF('Rezultātu izsekotājs'!$C$4:C513,'Rezultātu izsekotājs'!C513)","v":"0"}]
[null,511,{"$f":"'Rezultātu izsekotājs'!C514&COUNTIF('Rezultātu izsekotājs'!$C$4:C514,'Rezultātu izsekotājs'!C514)","v":"0"}]
[null,512,{"$f":"'Rezultātu izsekotājs'!C515&COUNTIF('Rezultātu izsekotājs'!$C$4:C515,'Rezultātu izsekotājs'!C515)","v":"0"}]
[null,513,{"$f":"'Rezultātu izsekotājs'!C516&COUNTIF('Rezultātu izsekotājs'!$C$4:C516,'Rezultātu izsekotājs'!C516)","v":"0"}]
[null,514,{"$f":"'Rezultātu izsekotājs'!C517&COUNTIF('Rezultātu izsekotājs'!$C$4:C517,'Rezultātu izsekotājs'!C517)","v":"0"}]
[null,515,{"$f":"'Rezultātu izsekotājs'!C518&COUNTIF('Rezultātu izsekotājs'!$C$4:C518,'Rezultātu izsekotājs'!C518)","v":"0"}]
[null,516,{"$f":"'Rezultātu izsekotājs'!C519&COUNTIF('Rezultātu izsekotājs'!$C$4:C519,'Rezultātu izsekotājs'!C519)","v":"0"}]
[null,517,{"$f":"'Rezultātu izsekotājs'!C520&COUNTIF('Rezultātu izsekotājs'!$C$4:C520,'Rezultātu izsekotājs'!C520)","v":"0"}]
[null,518,{"$f":"'Rezultātu izsekotājs'!C521&COUNTIF('Rezultātu izsekotājs'!$C$4:C521,'Rezultātu izsekotājs'!C521)","v":"0"}]
[null,519,{"$f":"'Rezultātu izsekotājs'!C522&COUNTIF('Rezultātu izsekotājs'!$C$4:C522,'Rezultātu izsekotājs'!C522)","v":"0"}]
[null,520,{"$f":"'Rezultātu izsekotājs'!C523&COUNTIF('Rezultātu izsekotājs'!$C$4:C523,'Rezultātu izsekotājs'!C523)","v":"0"}]
[null,521,{"$f":"'Rezultātu izsekotājs'!C524&COUNTIF('Rezultātu izsekotājs'!$C$4:C524,'Rezultātu izsekotājs'!C524)","v":"0"}]
[null,522,{"$f":"'Rezultātu izsekotājs'!C525&COUNTIF('Rezultātu izsekotājs'!$C$4:C525,'Rezultātu izsekotājs'!C525)","v":"0"}]
[null,523,{"$f":"'Rezultātu izsekotājs'!C526&COUNTIF('Rezultātu izsekotājs'!$C$4:C526,'Rezultātu izsekotājs'!C526)","v":"0"}]
[null,524,{"$f":"'Rezultātu izsekotājs'!C527&COUNTIF('Rezultātu izsekotājs'!$C$4:C527,'Rezultātu izsekotājs'!C527)","v":"0"}]
[null,525,{"$f":"'Rezultātu izsekotājs'!C528&COUNTIF('Rezultātu izsekotājs'!$C$4:C528,'Rezultātu izsekotājs'!C528)","v":"0"}]
[null,526,{"$f":"'Rezultātu izsekotājs'!C529&COUNTIF('Rezultātu izsekotājs'!$C$4:C529,'Rezultātu izsekotājs'!C529)","v":"0"}]
[null,527,{"$f":"'Rezultātu izsekotājs'!C530&COUNTIF('Rezultātu izsekotājs'!$C$4:C530,'Rezultātu izsekotājs'!C530)","v":"0"}]
[null,528,{"$f":"'Rezultātu izsekotājs'!C531&COUNTIF('Rezultātu izsekotājs'!$C$4:C531,'Rezultātu izsekotājs'!C531)","v":"0"}]
[null,529,{"$f":"'Rezultātu izsekotājs'!C532&COUNTIF('Rezultātu izsekotājs'!$C$4:C532,'Rezultātu izsekotājs'!C532)","v":"0"}]
[null,530,{"$f":"'Rezultātu izsekotājs'!C533&COUNTIF('Rezultātu izsekotājs'!$C$4:C533,'Rezultātu izsekotājs'!C533)","v":"0"}]
[null,531,{"$f":"'Rezultātu izsekotājs'!C534&COUNTIF('Rezultātu izsekotājs'!$C$4:C534,'Rezultātu izsekotājs'!C534)","v":"0"}]
[null,532,{"$f":"'Rezultātu izsekotājs'!C535&COUNTIF('Rezultātu izsekotājs'!$C$4:C535,'Rezultātu izsekotājs'!C535)","v":"0"}]
[null,533,{"$f":"'Rezultātu izsekotājs'!C536&COUNTIF('Rezultātu izsekotājs'!$C$4:C536,'Rezultātu izsekotājs'!C536)","v":"0"}]
[null,534,{"$f":"'Rezultātu izsekotājs'!C537&COUNTIF('Rezultātu izsekotājs'!$C$4:C537,'Rezultātu izsekotājs'!C537)","v":"0"}]
[null,535,{"$f":"'Rezultātu izsekotājs'!C538&COUNTIF('Rezultātu izsekotājs'!$C$4:C538,'Rezultātu izsekotājs'!C538)","v":"0"}]
[null,536,{"$f":"'Rezultātu izsekotājs'!C539&COUNTIF('Rezultātu izsekotājs'!$C$4:C539,'Rezultātu izsekotājs'!C539)","v":"0"}]
[null,537,{"$f":"'Rezultātu izsekotājs'!C540&COUNTIF('Rezultātu izsekotājs'!$C$4:C540,'Rezultātu izsekotājs'!C540)","v":"0"}]
[null,538,{"$f":"'Rezultātu izsekotājs'!C541&COUNTIF('Rezultātu izsekotājs'!$C$4:C541,'Rezultātu izsekotājs'!C541)","v":"0"}]
[null,539,{"$f":"'Rezultātu izsekotājs'!C542&COUNTIF('Rezultātu izsekotājs'!$C$4:C542,'Rezultātu izsekotājs'!C542)","v":"0"}]
[null,540,{"$f":"'Rezultātu izsekotājs'!C543&COUNTIF('Rezultātu izsekotājs'!$C$4:C543,'Rezultātu izsekotājs'!C543)","v":"0"}]
[null,541,{"$f":"'Rezultātu izsekotājs'!C544&COUNTIF('Rezultātu izsekotājs'!$C$4:C544,'Rezultātu izsekotājs'!C544)","v":"0"}]
[null,542,{"$f":"'Rezultātu izsekotājs'!C545&COUNTIF('Rezultātu izsekotājs'!$C$4:C545,'Rezultātu izsekotājs'!C545)","v":"0"}]
[null,543,{"$f":"'Rezultātu izsekotājs'!C546&COUNTIF('Rezultātu izsekotājs'!$C$4:C546,'Rezultātu izsekotājs'!C546)","v":"0"}]
[null,544,{"$f":"'Rezultātu izsekotājs'!C547&COUNTIF('Rezultātu izsekotājs'!$C$4:C547,'Rezultātu izsekotājs'!C547)","v":"0"}]
[null,545,{"$f":"'Rezultātu izsekotājs'!C548&COUNTIF('Rezultātu izsekotājs'!$C$4:C548,'Rezultātu izsekotājs'!C548)","v":"0"}]
[null,546,{"$f":"'Rezultātu izsekotājs'!C549&COUNTIF('Rezultātu izsekotājs'!$C$4:C549,'Rezultātu izsekotājs'!C549)","v":"0"}]
[null,547,{"$f":"'Rezultātu izsekotājs'!C550&COUNTIF('Rezultātu izsekotājs'!$C$4:C550,'Rezultātu izsekotājs'!C550)","v":"0"}]
[null,548,{"$f":"'Rezultātu izsekotājs'!C551&COUNTIF('Rezultātu izsekotājs'!$C$4:C551,'Rezultātu izsekotājs'!C551)","v":"0"}]
[null,549,{"$f":"'Rezultātu izsekotājs'!C552&COUNTIF('Rezultātu izsekotājs'!$C$4:C552,'Rezultātu izsekotājs'!C552)","v":"0"}]
[null,550,{"$f":"'Rezultātu izsekotājs'!C553&COUNTIF('Rezultātu izsekotājs'!$C$4:C553,'Rezultātu izsekotājs'!C553)","v":"0"}]
[null,551,{"$f":"'Rezultātu izsekotājs'!C554&COUNTIF('Rezultātu izsekotājs'!$C$4:C554,'Rezultātu izsekotājs'!C554)","v":"0"}]
[null,552,{"$f":"'Rezultātu izsekotājs'!C555&COUNTIF('Rezultātu izsekotājs'!$C$4:C555,'Rezultātu izsekotājs'!C555)","v":"0"}]
[null,553,{"$f":"'Rezultātu izsekotājs'!C556&COUNTIF('Rezultātu izsekotājs'!$C$4:C556,'Rezultātu izsekotājs'!C556)","v":"0"}]
[null,554,{"$f":"'Rezultātu izsekotājs'!C557&COUNTIF('Rezultātu izsekotājs'!$C$4:C557,'Rezultātu izsekotājs'!C557)","v":"0"}]
[null,555,{"$f":"'Rezultātu izsekotājs'!C558&COUNTIF('Rezultātu izsekotājs'!$C$4:C558,'Rezultātu izsekotājs'!C558)","v":"0"}]
[null,556,{"$f":"'Rezultātu izsekotājs'!C559&COUNTIF('Rezultātu izsekotājs'!$C$4:C559,'Rezultātu izsekotājs'!C559)","v":"0"}]
[null,557,{"$f":"'Rezultātu izsekotājs'!C560&COUNTIF('Rezultātu izsekotājs'!$C$4:C560,'Rezultātu izsekotājs'!C560)","v":"0"}]
[null,558,{"$f":"'Rezultātu izsekotājs'!C561&COUNTIF('Rezultātu izsekotājs'!$C$4:C561,'Rezultātu izsekotājs'!C561)","v":"0"}]
[null,559,{"$f":"'Rezultātu izsekotājs'!C562&COUNTIF('Rezultātu izsekotājs'!$C$4:C562,'Rezultātu izsekotājs'!C562)","v":"0"}]
[null,560,{"$f":"'Rezultātu izsekotājs'!C563&COUNTIF('Rezultātu izsekotājs'!$C$4:C563,'Rezultātu izsekotājs'!C563)","v":"0"}]
[null,561,{"$f":"'Rezultātu izsekotājs'!C564&COUNTIF('Rezultātu izsekotājs'!$C$4:C564,'Rezultātu izsekotājs'!C564)","v":"0"}]
[null,562,{"$f":"'Rezultātu izsekotājs'!C565&COUNTIF('Rezultātu izsekotājs'!$C$4:C565,'Rezultātu izsekotājs'!C565)","v":"0"}]
[null,563,{"$f":"'Rezultātu izsekotājs'!C566&COUNTIF('Rezultātu izsekotājs'!$C$4:C566,'Rezultātu izsekotājs'!C566)","v":"0"}]
[null,564,{"$f":"'Rezultātu izsekotājs'!C567&COUNTIF('Rezultātu izsekotājs'!$C$4:C567,'Rezultātu izsekotājs'!C567)","v":"0"}]
[null,565,{"$f":"'Rezultātu izsekotājs'!C568&COUNTIF('Rezultātu izsekotājs'!$C$4:C568,'Rezultātu izsekotājs'!C568)","v":"0"}]
[null,566,{"$f":"'Rezultātu izsekotājs'!C569&COUNTIF('Rezultātu izsekotājs'!$C$4:C569,'Rezultātu izsekotājs'!C569)","v":"0"}]
[null,567,{"$f":"'Rezultātu izsekotājs'!C570&COUNTIF('Rezultātu izsekotājs'!$C$4:C570,'Rezultātu izsekotājs'!C570)","v":"0"}]
[null,568,{"$f":"'Rezultātu izsekotājs'!C571&COUNTIF('Rezultātu izsekotājs'!$C$4:C571,'Rezultātu izsekotājs'!C571)","v":"0"}]
[null,569,{"$f":"'Rezultātu izsekotājs'!C572&COUNTIF('Rezultātu izsekotājs'!$C$4:C572,'Rezultātu izsekotājs'!C572)","v":"0"}]
[null,570,{"$f":"'Rezultātu izsekotājs'!C573&COUNTIF('Rezultātu izsekotājs'!$C$4:C573,'Rezultātu izsekotājs'!C573)","v":"0"}]
[null,571,{"$f":"'Rezultātu izsekotājs'!C574&COUNTIF('Rezultātu izsekotājs'!$C$4:C574,'Rezultātu izsekotājs'!C574)","v":"0"}]
[null,572,{"$f":"'Rezultātu izsekotājs'!C575&COUNTIF('Rezultātu izsekotājs'!$C$4:C575,'Rezultātu izsekotājs'!C575)","v":"0"}]
[null,573,{"$f":"'Rezultātu izsekotājs'!C576&COUNTIF('Rezultātu izsekotājs'!$C$4:C576,'Rezultātu izsekotājs'!C576)","v":"0"}]
[null,574,{"$f":"'Rezultātu izsekotājs'!C577&COUNTIF('Rezultātu izsekotājs'!$C$4:C577,'Rezultātu izsekotājs'!C577)","v":"0"}]
[null,575,{"$f":"'Rezultātu izsekotājs'!C578&COUNTIF('Rezultātu izsekotājs'!$C$4:C578,'Rezultātu izsekotājs'!C578)","v":"0"}]
[null,576,{"$f":"'Rezultātu izsekotājs'!C579&COUNTIF('Rezultātu izsekotājs'!$C$4:C579,'Rezultātu izsekotājs'!C579)","v":"0"}]
[null,577,{"$f":"'Rezultātu izsekotājs'!C580&COUNTIF('Rezultātu izsekotājs'!$C$4:C580,'Rezultātu izsekotājs'!C580)","v":"0"}]
[null,578,{"$f":"'Rezultātu izsekotājs'!C581&COUNTIF('Rezultātu izsekotājs'!$C$4:C581,'Rezultātu izsekotājs'!C581)","v":"0"}]
[null,579,{"$f":"'Rezultātu izsekotājs'!C582&COUNTIF('Rezultātu izsekotājs'!$C$4:C582,'Rezultātu izsekotājs'!C582)","v":"0"}]
[null,580,{"$f":"'Rezultātu izsekotājs'!C583&COUNTIF('Rezultātu izsekotājs'!$C$4:C583,'Rezultātu izsekotājs'!C583)","v":"0"}]
[null,581,{"$f":"'Rezultātu izsekotājs'!C584&COUNTIF('Rezultātu izsekotājs'!$C$4:C584,'Rezultātu izsekotājs'!C584)","v":"0"}]
[null,582,{"$f":"'Rezultātu izsekotājs'!C585&COUNTIF('Rezultātu izsekotājs'!$C$4:C585,'Rezultātu izsekotājs'!C585)","v":"0"}]
[null,583,{"$f":"'Rezultātu izsekotājs'!C586&COUNTIF('Rezultātu izsekotājs'!$C$4:C586,'Rezultātu izsekotājs'!C586)","v":"0"}]
[null,584,{"$f":"'Rezultātu izsekotājs'!C587&COUNTIF('Rezultātu izsekotājs'!$C$4:C587,'Rezultātu izsekotājs'!C587)","v":"0"}]
[null,585,{"$f":"'Rezultātu izsekotājs'!C588&COUNTIF('Rezultātu izsekotājs'!$C$4:C588,'Rezultātu izsekotājs'!C588)","v":"0"}]
[null,586,{"$f":"'Rezultātu izsekotājs'!C589&COUNTIF('Rezultātu izsekotājs'!$C$4:C589,'Rezultātu izsekotājs'!C589)","v":"0"}]
[null,587,{"$f":"'Rezultātu izsekotājs'!C590&COUNTIF('Rezultātu izsekotājs'!$C$4:C590,'Rezultātu izsekotājs'!C590)","v":"0"}]
[null,588,{"$f":"'Rezultātu izsekotājs'!C591&COUNTIF('Rezultātu izsekotājs'!$C$4:C591,'Rezultātu izsekotājs'!C591)","v":"0"}]
[null,589,{"$f":"'Rezultātu izsekotājs'!C592&COUNTIF('Rezultātu izsekotājs'!$C$4:C592,'Rezultātu izsekotājs'!C592)","v":"0"}]
[null,590,{"$f":"'Rezultātu izsekotājs'!C593&COUNTIF('Rezultātu izsekotājs'!$C$4:C593,'Rezultātu izsekotājs'!C593)","v":"0"}]
[null,591,{"$f":"'Rezultātu izsekotājs'!C594&COUNTIF('Rezultātu izsekotājs'!$C$4:C594,'Rezultātu izsekotājs'!C594)","v":"0"}]
[null,592,{"$f":"'Rezultātu izsekotājs'!C595&COUNTIF('Rezultātu izsekotājs'!$C$4:C595,'Rezultātu izsekotājs'!C595)","v":"0"}]
[null,593,{"$f":"'Rezultātu izsekotājs'!C596&COUNTIF('Rezultātu izsekotājs'!$C$4:C596,'Rezultātu izsekotājs'!C596)","v":"0"}]
[null,594,{"$f":"'Rezultātu izsekotājs'!C597&COUNTIF('Rezultātu izsekotājs'!$C$4:C597,'Rezultātu izsekotājs'!C597)","v":"0"}]
[null,595,{"$f":"'Rezultātu izsekotājs'!C598&COUNTIF('Rezultātu izsekotājs'!$C$4:C598,'Rezultātu izsekotājs'!C598)","v":"0"}]
[null,596,{"$f":"'Rezultātu izsekotājs'!C599&COUNTIF('Rezultātu izsekotājs'!$C$4:C599,'Rezultātu izsekotājs'!C599)","v":"0"}]
[null,597,{"$f":"'Rezultātu izsekotājs'!C600&COUNTIF('Rezultātu izsekotājs'!$C$4:C600,'Rezultātu izsekotājs'!C600)","v":"0"}]
[null,598,{"$f":"'Rezultātu izsekotājs'!C601&COUNTIF('Rezultātu izsekotājs'!$C$4:C601,'Rezultātu izsekotājs'!C601)","v":"0"}]
[null,599,{"$f":"'Rezultātu izsekotājs'!C602&COUNTIF('Rezultātu izsekotājs'!$C$4:C602,'Rezultātu izsekotājs'!C602)","v":"0"}]
[null,600,{"$f":"'Rezultātu izsekotājs'!C603&COUNTIF('Rezultātu izsekotājs'!$C$4:C603,'Rezultātu izsekotājs'!C603)","v":"0"}]
[null,601,{"$f":"'Rezultātu izsekotājs'!C604&COUNTIF('Rezultātu izsekotājs'!$C$4:C604,'Rezultātu izsekotājs'!C604)","v":"0"}]
[null,602,{"$f":"'Rezultātu izsekotājs'!C605&COUNTIF('Rezultātu izsekotājs'!$C$4:C605,'Rezultātu izsekotājs'!C605)","v":"0"}]
[null,603,{"$f":"'Rezultātu izsekotājs'!C606&COUNTIF('Rezultātu izsekotājs'!$C$4:C606,'Rezultātu izsekotājs'!C606)","v":"0"}]
[null,604,{"$f":"'Rezultātu izsekotājs'!C607&COUNTIF('Rezultātu izsekotājs'!$C$4:C607,'Rezultātu izsekotājs'!C607)","v":"0"}]
[null,605,{"$f":"'Rezultātu izsekotājs'!C608&COUNTIF('Rezultātu izsekotājs'!$C$4:C608,'Rezultātu izsekotājs'!C608)","v":"0"}]
[null,606,{"$f":"'Rezultātu izsekotājs'!C609&COUNTIF('Rezultātu izsekotājs'!$C$4:C609,'Rezultātu izsekotājs'!C609)","v":"0"}]
[null,607,{"$f":"'Rezultātu izsekotājs'!C610&COUNTIF('Rezultātu izsekotājs'!$C$4:C610,'Rezultātu izsekotājs'!C610)","v":"0"}]
[null,608,{"$f":"'Rezultātu izsekotājs'!C611&COUNTIF('Rezultātu izsekotājs'!$C$4:C611,'Rezultātu izsekotājs'!C611)","v":"0"}]
[null,609,{"$f":"'Rezultātu izsekotājs'!C612&COUNTIF('Rezultātu izsekotājs'!$C$4:C612,'Rezultātu izsekotājs'!C612)","v":"0"}]
[null,610,{"$f":"'Rezultātu izsekotājs'!C613&COUNTIF('Rezultātu izsekotājs'!$C$4:C613,'Rezultātu izsekotājs'!C613)","v":"0"}]
[null,611,{"$f":"'Rezultātu izsekotājs'!C614&COUNTIF('Rezultātu izsekotājs'!$C$4:C614,'Rezultātu izsekotājs'!C614)","v":"0"}]
[null,612,{"$f":"'Rezultātu izsekotājs'!C615&COUNTIF('Rezultātu izsekotājs'!$C$4:C615,'Rezultātu izsekotājs'!C615)","v":"0"}]
[null,613,{"$f":"'Rezultātu izsekotājs'!C616&COUNTIF('Rezultātu izsekotājs'!$C$4:C616,'Rezultātu izsekotājs'!C616)","v":"0"}]
[null,614,{"$f":"'Rezultātu izsekotājs'!C617&COUNTIF('Rezultātu izsekotājs'!$C$4:C617,'Rezultātu izsekotājs'!C617)","v":"0"}]
[null,615,{"$f":"'Rezultātu izsekotājs'!C618&COUNTIF('Rezultātu izsekotājs'!$C$4:C618,'Rezultātu izsekotājs'!C618)","v":"0"}]
[null,616,{"$f":"'Rezultātu izsekotājs'!C619&COUNTIF('Rezultātu izsekotājs'!$C$4:C619,'Rezultātu izsekotājs'!C619)","v":"0"}]
[null,617,{"$f":"'Rezultātu izsekotājs'!C620&COUNTIF('Rezultātu izsekotājs'!$C$4:C620,'Rezultātu izsekotājs'!C620)","v":"0"}]
[null,618,{"$f":"'Rezultātu izsekotājs'!C621&COUNTIF('Rezultātu izsekotājs'!$C$4:C621,'Rezultātu izsekotājs'!C621)","v":"0"}]
[null,619,{"$f":"'Rezultātu izsekotājs'!C622&COUNTIF('Rezultātu izsekotājs'!$C$4:C622,'Rezultātu izsekotājs'!C622)","v":"0"}]
[null,620,{"$f":"'Rezultātu izsekotājs'!C623&COUNTIF('Rezultātu izsekotājs'!$C$4:C623,'Rezultātu izsekotājs'!C623)","v":"0"}]
[null,621,{"$f":"'Rezultātu izsekotājs'!C624&COUNTIF('Rezultātu izsekotājs'!$C$4:C624,'Rezultātu izsekotājs'!C624)","v":"0"}]
[null,622,{"$f":"'Rezultātu izsekotājs'!C625&COUNTIF('Rezultātu izsekotājs'!$C$4:C625,'Rezultātu izsekotājs'!C625)","v":"0"}]
[null,623,{"$f":"'Rezultātu izsekotājs'!C626&COUNTIF('Rezultātu izsekotājs'!$C$4:C626,'Rezultātu izsekotājs'!C626)","v":"0"}]
[null,624,{"$f":"'Rezultātu izsekotājs'!C627&COUNTIF('Rezultātu izsekotājs'!$C$4:C627,'Rezultātu izsekotājs'!C627)","v":"0"}]
[null,625,{"$f":"'Rezultātu izsekotājs'!C628&COUNTIF('Rezultātu izsekotājs'!$C$4:C628,'Rezultātu izsekotājs'!C628)","v":"0"}]